Workbook

Sheet Forside
A1: Sjekkliste årsberetning
A2: Selskap
A3: År | B3: 2023
A4: Utfylt
A5: Review
B8: Ubesvart | C8: Ja | D8: Nei | E8: IA | F8: Sum
A9: Årsberetning | B9: =F9-SUM(C9:E9) -> 72 | C9: =_xlfn.AGGREGATE(3,5,'Sjekkliste for utfylling'!E8:E276) -> 0 | D9: =_xlfn.AGGREGATE(3,5,'Sjekkliste for utfylling'!F8:F276) -> 0 | E9: =_xlfn.AGGREGATE(3,5,'Sjekkliste for utfylling'!G8:G276)+(F9-_xlfn.AGGREGATE(2,5,'Sjekkliste for utfylling'!A8:A276)) -> 68 | F9: =_xlfn.AGGREGATE(2,4,'Sjekkliste for utfylling'!A8:A276) -> 140
A11: Ønsker du å bruke full sjekkliste, eller kun å kontrollere endringer i regelverk fra tidligere år, de punkter som revisor er ansvarlig for å kontrollere og eventuelle utvalgte risikoområder i virksomheten?
A13: Veiledning for bruk av full sjekkliste: Sjekklisten kan spisses sånn at den kun omfatter forhold som er relevante for den aktuelle virksomheten.
A15: Full sjekkliste
A16: Er følgende aktuelt for foretaket:
A17: Resultatdisponering og utbyttegrunnlag | C17: Ja | E17: Nei
A18: Rapportering om betalinger til myndigheter m.v. (land-for-land rapportering) | C18: Ja | E18: Nei
A19: Regnskapspliktige som er utstedere med verdipapirer notert på regulert marked | C19: Ja | E19: Nei
A20: Redegjørelse for foretaksstyring | C20: Ja | E20: Nei
A21: Redegjørelse for samfunnsansvar | C21: Ja | E21: Nei
A22: Rapport om godtgjørelse til ledende personer | C22: Ja | E22: Nei
A24: Er foretaket omfattet av disse bransjereglene:
A25: Bank, finansieringsforetak med mer | C25: Ja | E25: Nei
A26: Livsforsikringsforetak eller skadeforsikringsforetak | C26: Ja | E26: Nei
A27: Verdipapirfond | C27: Ja | E27: Nei
A28: Verdipapirforetak | C28: Ja | E28: Nei
A29: Pensjonsforetak | C29: Ja | E29: Nei
A30: Borettslag | C30: Ja | E30: Nei
A34: Veiledning for bruk av endringssjekkliste: Endringssjekklisten inneholder de punkter hvor det har vært lovendringer inneværende år. Ved avkryssing i listen nedenfor velger du i tillegg de deler av sjekklisten som er relevante for det temaet du krysser av for. Du får da opp alle sjekkpunkter i regelverket som er aktuelle for det temaet du har valgt.
A36: Endringssjekkliste
A37: Er policy for bruk av endringssjekkliste fulgt? | C37: Ja | E37: Nei
A39: Angi siste år for gjennomgang av full sjekkliste
A41: Har det vært endringer i foretaket, eller er det spesifikke områder som kan ha økt risiko for feil, som man ønsker å kontrollere?
A44: Resultatdisponering og utbyttegrunnlag | C44: Ja | E44: Nei
A45: Rapportering om betalinger til myndigheter m.v. (land-for-land rapportering) | C45: Ja | E45: Nei
A46: Regnskapspliktige som er utstedere med verdipapirer notert på regulert marked | C46: Ja | E46: Nei
A47: Redegjørelse for foretaksstyring | C47: Ja | E47: Nei
A48: Redegjørelse for samfunnsansvar | C48: Ja | E48: Nei
A49: Rapport om godtgjørelse til ledende personer | C49: Ja | E49: Nei
A50: Bank, finansieringsforetak med mer | C50: Ja | E50: Nei
A51: Livsforsikringsforetak eller skadeforsikringsforetak | C51: Ja | E51: Nei
A52: Verdipapirfond | C52: Ja | E52: Nei
A53: Verdipapirforetak | C53: Ja | E53: Nei
A54: Pensjonskasse | C54: Ja | E54: Nei
A55: Borettslag | C55: Ja | E55: Nei

Sheet sjekkliste_matrix (hidden)
A1: F0 | B1: E0 | C1: F1 | D1: F2 | E1: F3 | F1: F4 | G1: F5 | H1: F6 | I1: F7 | J1: F8 | K1: F9 | L1: F10 | M1: F11 | N1: F12 | O1: E1 | P1: E2 | Q1: E3 | R1: E4 | S1: E5 | T1: E6 | U1: E7 | V1: E8 | W1: E9 | X1: E10 | Y1: E11 | Z1: E12 | AA1: E13 | AB1: E14
A2: x | B2: x | C2: x | D2: x | E2: x | F2: x | G2: x | H2: x | I2: x | J2: x | K2: x | L2: x | M2: x | N2: x | O2: x | P2: x | Q2: x | R2: x | S2: x | T2: x | U2: x | V2: x | W2: x | X2: x | Y2: x | Z2: x | AA2: x | AB2: x
A3: x | B3: x | C3: x | D3: x | E3: x | F3: x | G3: x | H3: x | I3: x | J3: x | K3: x | L3: x | M3: x | N3: x | O3: x | P3: x | Q3: x | R3: x | S3: x | T3: x | U3: x | V3: x | W3: x | X3: x | Y3: x | Z3: x | AA3: x | AB3: x
A4: x | B4: x | C4: x | D4: x | E4: x | F4: x | G4: x | H4: x | I4: x | J4: x | K4: x | L4: x | M4: x | N4: x | O4: x | P4: x | Q4: x | R4: x | S4: x | T4: x | U4: x | V4: x | W4: x | X4: x | Y4: x | Z4: x | AA4: x | AB4: x
A5: x | B5: x | C5: x | D5: x | E5: x | F5: x | G5: x | H5: x | I5: x | J5: x | K5: x | L5: x | M5: x | N5: x | O5: x | P5: x | Q5: x | R5: x | S5: x | T5: x | U5: x | V5: x | W5: x | X5: x | Y5: x | Z5: x | AA5: x | AB5: x
A6: x | B6: x | C6: x | D6: x | E6: x | F6: x | G6: x | H6: x | I6: x | J6: x | K6: x | L6: x | M6: x | N6: x | O6: x | P6: x | Q6: x | R6: x | S6: x | T6: x | U6: x | V6: x | W6: x | X6: x | Y6: x | Z6: x | AA6: x | AB6: x
A7: x | B7: x | C7: x | D7: x | E7: x | F7: x | G7: x | H7: x | I7: x | J7: x | K7: x | L7: x | M7: x | N7: x | O7: x | P7: x | Q7: x | R7: x | S7: x | T7: x | U7: x | V7: x | W7: x | X7: x | Y7: x | Z7: x | AA7: x | AB7: x
A8: x | B8: x | C8: x | D8: x | E8: x | F8: x | G8: x | H8: x | I8: x | J8: x | K8: x | L8: x | M8: x | N8: x | O8: x | P8: x | Q8: x | R8: x | S8: x | T8: x | U8: x | V8: x | W8: x | X8: x | Y8: x | Z8: x | AA8: x | AB8: x
A9: x | B9: x | C9: x | D9: x | E9: x | F9: x | G9: x | H9: x | I9: x | J9: x | K9: x | L9: x | M9: x | N9: x | O9: x | P9: x | Q9: x | R9: x | S9: x | T9: x | U9: x | V9: x | W9: x | X9: x | Y9: x | Z9: x | AA9: x | AB9: x
A10: x | B10: x | C10: x | D10: x | E10: x | F10: x | G10: x | H10: x | I10: x | J10: x | K10: x | L10: x | M10: x | N10: x | O10: x | P10: x | Q10: x | R10: x | S10: x | T10: x | U10: x | V10: x | W10: x | X10: x | Y10: x | Z10: x | AA10: x | AB10: x
A11: x | B11: x | C11: x | D11: x | E11: x | F11: x | G11: x | H11: x | I11: x | J11: x | K11: x | L11: x | M11: x | N11: x | O11: x | P11: x | Q11: x | R11: x | S11: x | T11: x | U11: x | V11: x | W11: x | X11: x | Y11: x | Z11: x | AA11: x | AB11: x
A12: x | B12: x | C12: x | D12: x | E12: x | F12: x | G12: x | H12: x | I12: x | J12: x | K12: x | L12: x | M12: x | N12: x | O12: x | P12: x | Q12: x | R12: x | S12: x | T12: x | U12: x | V12: x | W12: x | X12: x | Y12: x | Z12: x | AA12: x | AB12: x
A13: x | C13: x | D13: x | E13: x | F13: x | G13: x | H13: x | I13: x | J13: x | K13: x | L13: x | M13: x | N13: x
A14: x | C14: x | D14: x | E14: x | F14: x | G14: x | H14: x | I14: x | J14: x | K14: x | L14: x | M14: x | N14: x
A15: x | C15: x | D15: x | E15: x | F15: x | G15: x | H15: x | I15: x | J15: x | K15: x | L15: x | M15: x | N15: x
A16: x | C16: x | D16: x | E16: x | F16: x | G16: x | H16: x | I16: x | J16: x | K16: x | L16: x | M16: x | N16: x
A17: x | C17: x | D17: x | E17: x | F17: x | G17: x | H17: x | I17: x | J17: x | K17: x | L17: x | M17: x | N17: x
A18: x | B18: x | C18: x | D18: x | E18: x | F18: x | G18: x | H18: x | I18: x | J18: x | K18: x | L18: x | M18: x | N18: x | O18: x | P18: x | Q18: x | R18: x | S18: x | T18: x | U18: x | V18: x | W18: x | X18: x | Y18: x | Z18: x | AA18: x | AB18: x
A19: x | C19: x | D19: x | E19: x | F19: x | G19: x | H19: x | I19: x | J19: x | K19: x | L19: x | M19: x | N19: x
A20: x | C20: x | D20: x | E20: x | F20: x | G20: x | H20: x | I20: x | J20: x | K20: x | L20: x | M20: x | N20: x
A21: x | C21: x | D21: x | E21: x | F21: x | G21: x | H21: x | I21: x | J21: x | K21: x | L21: x | M21: x | N21: x
A22: x | C22: x | D22: x | E22: x | F22: x | G22: x | H22: x | I22: x | J22: x | K22: x | L22: x | M22: x | N22: x | P22: x
A23: x | C23: x | D23: x | E23: x | F23: x | G23: x | H23: x | I23: x | J23: x | K23: x | L23: x | M23: x | N23: x
A24: x | C24: x | D24: x | E24: x | F24: x | G24: x | H24: x | I24: x | J24: x | K24: x | L24: x | M24: x | N24: x
A25: x | C25: x | D25: x | E25: x | F25: x | G25: x | H25: x | I25: x | J25: x | K25: x | L25: x | M25: x | N25: x | P25: x
A26: x | C26: x | D26: x | E26: x | F26: x | G26: x | H26: x | I26: x | J26: x | K26: x | L26: x | M26: x | N26: x
A27: x | C27: x | D27: x | E27: x | F27: x | G27: x | H27: x | I27: x | J27: x | K27: x | L27: x | M27: x | N27: x
A28: x | B28: x | C28: x | D28: x | E28: x | F28: x | G28: x | H28: x | I28: x | J28: x | K28: x | L28: x | M28: x | N28: x | O28: x | P28: x | Q28: x | R28: x | S28: x | T28: x | U28: x | V28: x | W28: x | X28: x | Y28: x | Z28: x | AA28: x | AB28: x
A29: x | B29: x | C29: x | D29: x | E29: x | F29: x | G29: x | H29: x | I29: x | J29: x | K29: x | L29: x | M29: x | N29: x | O29: x | P29: x | Q29: x | R29: x | S29: x | T29: x | U29: x | V29: x | W29: x | X29: x | Y29: x | Z29: x | AA29: x | AB29: x
A30: x | C30: x | D30: x | E30: x | F30: x | G30: x | H30: x | I30: x | J30: x | K30: x | L30: x | M30: x | N30: x
A31: x | C31: x | D31: x | E31: x | F31: x | G31: x | H31: x | I31: x | J31: x | K31: x | L31: x | M31: x | N31: x
A32: x | C32: x | D32: x | E32: x | F32: x | G32: x | H32: x | I32: x | J32: x | K32: x | L32: x | M32: x | N32: x
A33: x | C33: x | D33: x | E33: x | F33: x | G33: x | H33: x | I33: x | J33: x | K33: x | L33: x | M33: x | N33: x
A34: x | C34: x | D34: x | E34: x | F34: x | G34: x | H34: x | I34: x | J34: x | K34: x | L34: x | M34: x | N34: x
A35: x | B35: x | C35: x | D35: x | E35: x | F35: x | G35: x | H35: x | I35: x | J35: x | K35: x | L35: x | M35: x | N35: x | O35: x | P35: x | Q35: x | R35: x | S35: x | T35: x | U35: x | V35: x | W35: x | X35: x | Y35: x | Z35: x | AA35: x | AB35: x
A36: x | B36: x | C36: x | D36: x | E36: x | F36: x | G36: x | H36: x | I36: x | J36: x | K36: x | L36: x | M36: x | N36: x | O36: x | P36: x | Q36: x | R36: x | S36: x | T36: x | U36: x | V36: x | W36: x | X36: x | Y36: x | Z36: x | AA36: x | AB36: x
A37: x | C37: x | D37: x | E37: x | F37: x | G37: x | H37: x | I37: x | J37: x | K37: x | L37: x | M37: x | N37: x | P37: x
A38: x | C38: x | D38: x | E38: x | F38: x | G38: x | H38: x | I38: x | J38: x | K38: x | L38: x | M38: x | N38: x | P38: x
A39: x | C39: x | D39: x | E39: x | F39: x | G39: x | H39: x | I39: x | J39: x | K39: x | L39: x | M39: x | N39: x | P39: x
A40: x | C40: x | D40: x | E40: x | F40: x | G40: x | H40: x | I40: x | J40: x | K40: x | L40: x | M40: x | N40: x | P40: x
A41: x | C41: x | D41: x | E41: x | F41: x | G41: x | H41: x | I41: x | J41: x | K41: x | L41: x | M41: x | N41: x | P41: x
A42: x | C42: x | D42: x | E42: x | F42: x | G42: x | H42: x | I42: x | J42: x | K42: x | L42: x | M42: x | N42: x | P42: x
A43: x | C43: x | D43: x | E43: x | F43: x | G43: x | H43: x | I43: x | J43: x | K43: x | L43: x | M43: x | N43: x | P43: x
A44: x | C44: x | D44: x | E44: x | F44: x | G44: x | H44: x | I44: x | J44: x | K44: x | L44: x | M44: x | N44: x | P44: x
A45: x | C45: x | D45: x | E45: x | F45: x | G45: x | H45: x | I45: x | J45: x | K45: x | L45: x | M45: x | N45: x | P45: x
A46: x | C46: x | D46: x | E46: x | F46: x | G46: x | H46: x | I46: x | J46: x | K46: x | L46: x | M46: x | N46: x | P46: x
A47: x | C47: x | D47: x | E47: x | F47: x | G47: x | H47: x | I47: x | J47: x | K47: x | L47: x | M47: x | N47: x | P47: x
A48: x | C48: x | D48: x | E48: x | F48: x | G48: x | H48: x | I48: x | J48: x | K48: x | L48: x | M48: x | N48: x | P48: x
A49: x | C49: x | D49: x | E49: x | F49: x | G49: x | H49: x | I49: x | J49: x | K49: x | L49: x | M49: x | N49: x | P49: x
A50: x | C50: x | D50: x | E50: x | F50: x | G50: x | H50: x | I50: x | J50: x | K50: x | L50: x | M50: x | N50: x | P50: x
A51: x | C51: x | D51: x | E51: x | F51: x | G51: x | H51: x | I51: x | J51: x | K51: x | L51: x | M51: x | N51: x | P51: x
A52: x | C52: x | D52: x | E52: x | F52: x | G52: x | H52: x | I52: x | J52: x | K52: x | L52: x | M52: x | N52: x | P52: x
A53: x | C53: x | D53: x | E53: x | F53: x | G53: x | H53: x | I53: x | J53: x | K53: x | L53: x | M53: x | N53: x | P53: x
A54: x | C54: x | D54: x | E54: x | F54: x | G54: x | H54: x | I54: x | J54: x | K54: x | L54: x | M54: x | N54: x | P54: x
A55: x | C55: x | D55: x | E55: x | F55: x | G55: x | H55: x | I55: x | J55: x | K55: x | L55: x | M55: x | N55: x | P55: x
A56: x | C56: x | D56: x | E56: x | F56: x | G56: x | H56: x | I56: x | J56: x | K56: x | L56: x | M56: x | N56: x | P56: x
A57: x | C57: x | D57: x | E57: x | F57: x | G57: x | H57: x | I57: x | J57: x | K57: x | L57: x | M57: x | N57: x | P57: x
A58: x | C58: x | D58: x | E58: x | F58: x | G58: x | H58: x | I58: x | J58: x | K58: x | L58: x | M58: x | N58: x | P58: x
A59: x | C59: x | D59: x | E59: x | F59: x | G59: x | H59: x | I59: x | J59: x | K59: x | L59: x | M59: x | N59: x | P59: x
A60: x | C60: x | D60: x | E60: x | F60: x | G60: x | H60: x | I60: x | J60: x | K60: x | L60: x | M60: x | N60: x | P60: x
A61: x | C61: x | D61: x | E61: x | F61: x | G61: x | H61: x | I61: x | J61: x | K61: x | L61: x | M61: x | N61: x | P61: x
A62: x | C62: x | D62: x | E62: x | F62: x | G62: x | H62: x | I62: x | J62: x | K62: x | L62: x | M62: x | N62: x | P62: x
A63: x | C63: x | D63: x | E63: x | F63: x | G63: x | H63: x | I63: x | J63: x | K63: x | L63: x | M63: x | N63: x | P63: x
A64: x | C64: x | D64: x | E64: x | F64: x | G64: x | H64: x | I64: x | J64: x | K64: x | L64: x | M64: x | N64: x | P64: x
A65: x | C65: x | D65: x | E65: x | F65: x | G65: x | H65: x | I65: x | J65: x | K65: x | L65: x | M65: x | N65: x | P65: x
A66: x | C66: x | D66: x | E66: x | F66: x | G66: x | H66: x | I66: x | J66: x | K66: x | L66: x | M66: x | N66: x | P66: x
A67: x | B67: x | C67: x | D67: x | E67: x | F67: x | G67: x | H67: x | I67: x | J67: x | K67: x | L67: x | M67: x | N67: x | O67: x | P67: x | Q67: x | R67: x | S67: x | T67: x | U67: x | V67: x | W67: x | X67: x | Y67: x | Z67: x | AA67: x | AB67: x
A68: x | B68: x | C68: x | D68: x | E68: x | F68: x | G68: x | H68: x | I68: x | J68: x | K68: x | L68: x | M68: x | N68: x | O68: x | P68: x | Q68: x | R68: x | S68: x | T68: x | U68: x | V68: x | W68: x | X68: x | Y68: x | Z68: x | AA68: x | AB68: x
A69: x | C69: x | D69: x | E69: x | F69: x | G69: x | H69: x | I69: x | J69: x | K69: x | L69: x | M69: x | N69: x
A70: x | C70: x | D70: x | E70: x | F70: x | G70: x | H70: x | I70: x | J70: x | K70: x | L70: x | M70: x | N70: x
A71: x | C71: x | D71: x | E71: x | F71: x | G71: x | H71: x | I71: x | J71: x | K71: x | L71: x | M71: x | N71: x
A72: x | C72: x | D72: x | E72: x | F72: x | G72: x | H72: x | I72: x | J72: x | K72: x | L72: x | M72: x | N72: x
A73: x | C73: x | D73: x | E73: x | F73: x | G73: x | H73: x | I73: x | J73: x | K73: x | L73: x | M73: x | N73: x
A74: x | C74: x | D74: x | E74: x | F74: x | G74: x | H74: x | I74: x | J74: x | K74: x | L74: x | M74: x | N74: x
A75: x | C75: x | D75: x | E75: x | F75: x | G75: x | H75: x | I75: x | J75: x | K75: x | L75: x | M75: x | N75: x
A76: x | C76: x | D76: x | E76: x | F76: x | G76: x | H76: x | I76: x | J76: x | K76: x | L76: x | M76: x | N76: x
A77: x | C77: x | D77: x | E77: x | F77: x | G77: x | H77: x | I77: x | J77: x | K77: x | L77: x | M77: x | N77: x
A78: x | C78: x | D78: x | E78: x | F78: x | G78: x | H78: x | I78: x | J78: x | K78: x | L78: x | M78: x | N78: x
A79: x | C79: x | D79: x | E79: x | F79: x | G79: x | H79: x | I79: x | J79: x | K79: x | L79: x | M79: x | N79: x
A80: x | B80: x | C80: x | D80: x | E80: x | F80: x | G80: x | H80: x | I80: x | J80: x | K80: x | L80: x | M80: x | N80: x | O80: x | P80: x | Q80: x | R80: x | S80: x | T80: x | U80: x | V80: x | W80: x | X80: x | Y80: x | Z80: x | AA80: x | AB80: x
A81: x | B81: x | C81: x | D81: x | E81: x | F81: x | G81: x | H81: x | I81: x | J81: x | K81: x | L81: x | M81: x | N81: x | O81: x | P81: x | Q81: x | R81: x | S81: x | T81: x | U81: x | V81: x | W81: x | X81: x | Y81: x | Z81: x | AA81: x | AB81: x
A82: x | C82: x | D82: x | E82: x | F82: x | G82: x | H82: x | I82: x | J82: x | K82: x | L82: x | M82: x | N82: x
A83: x | C83: x | D83: x | E83: x | F83: x | G83: x | H83: x | I83: x | J83: x | K83: x | L83: x | M83: x | N83: x
A84: x | C84: x | D84: x | E84: x | F84: x | G84: x | H84: x | I84: x | J84: x | K84: x | L84: x | M84: x | N84: x
A85: x | C85: x | D85: x | E85: x | F85: x | G85: x | H85: x | I85: x | J85: x | K85: x | L85: x | M85: x | N85: x
A86: x | C86: x | D86: x | E86: x | F86: x | G86: x | H86: x | I86: x | J86: x | K86: x | L86: x | M86: x | N86: x
A87: x | B87: x | C87: x | D87: x | E87: x | F87: x | G87: x | H87: x | I87: x | J87: x | K87: x | L87: x | M87: x | N87: x | O87: x | P87: x | Q87: x | R87: x | S87: x | T87: x | U87: x | V87: x | W87: x | X87: x | Y87: x | Z87: x | AA87: x | AB87: x
A88: x | B88: x | C88: x | D88: x | E88: x | F88: x | G88: x | H88: x | I88: x | J88: x | K88: x | L88: x | M88: x | N88: x | O88: x | P88: x | Q88: x | R88: x | S88: x | T88: x | U88: x | V88: x | W88: x | X88: x | Y88: x | Z88: x | AA88: x | AB88: x
A89: x | B89: x | C89: x | D89: x | E89: x | F89: x | G89: x | H89: x | I89: x | J89: x | K89: x | L89: x | M89: x | N89: x | O89: x | P89: x | Q89: x | R89: x | S89: x | T89: x | U89: x | V89: x | W89: x | X89: x | Y89: x | Z89: x | AA89: x | AB89: x
A90: x | C90: x | D90: x | E90: x | F90: x | G90: x | H90: x | I90: x | J90: x | K90: x | L90: x | M90: x | N90: x | P90: x
A91: x | C91: x | D91: x | E91: x | F91: x | G91: x | H91: x | I91: x | J91: x | K91: x | L91: x | M91: x | N91: x | P91: x
A92: x | C92: x | D92: x | E92: x | F92: x | G92: x | H92: x | I92: x | J92: x | K92: x | L92: x | M92: x | N92: x | P92: x
A93: x | C93: x | D93: x | E93: x | F93: x | G93: x | H93: x | I93: x | J93: x | K93: x | L93: x | M93: x | N93: x | P93: x
A94: x | C94: x | D94: x | E94: x | F94: x | G94: x | H94: x | I94: x | J94: x | K94: x | L94: x | M94: x | N94: x | P94: x
A95: x | C95: x | D95: x | E95: x | F95: x | G95: x | H95: x | I95: x | J95: x | K95: x | L95: x | M95: x | N95: x | P95: x
A96: x | C96: x | D96: x | E96: x | F96: x | G96: x | H96: x | I96: x | J96: x | K96: x | L96: x | M96: x | N96: x | P96: x
A97: x | C97: x | D97: x | E97: x | F97: x | G97: x | H97: x | I97: x | J97: x | K97: x | L97: x | M97: x | N97: x | P97: x
A98: x | C98: x | D98: x | E98: x | F98: x | G98: x | H98: x | I98: x | J98: x | K98: x | L98: x | M98: x | N98: x | P98: x
A99: x | C99: x | D99: x | E99: x | F99: x | G99: x | H99: x | I99: x | J99: x | K99: x | L99: x | M99: x | N99: x | P99: x
A100: x | C100: x | D100: x | E100: x | F100: x | G100: x | H100: x | I100: x | J100: x | K100: x | L100: x | M100: x | N100: x | P100: x
A101: x | B101: x | C101: x | D101: x | E101: x | F101: x | G101: x | H101: x | I101: x | J101: x | K101: x | L101: x | M101: x | N101: x | O101: x | P101: x | Q101: x | R101: x | S101: x | T101: x | U101: x | V101: x | W101: x | X101: x | Y101: x | Z101: x | AA101: x | AB101: x
A102: x | B102: x | C102: x | D102: x | E102: x | F102: x | G102: x | H102: x | I102: x | J102: x | K102: x | L102: x | M102: x | N102: x | O102: x | P102: x | Q102: x | R102: x | S102: x | T102: x | U102: x | V102: x | W102: x | X102: x | Y102: x | Z102: x | AA102: x | AB102: x
A103: x | D103: x | E103: x | F103: x | G103: x | H103: x | I103: x | J103: x | K103: x | L103: x | M103: x | N103: x | P103: x | Q103: x
A104: x | D104: x | E104: x | F104: x | G104: x | H104: x | I104: x | J104: x | K104: x | L104: x | M104: x | N104: x | P104: x | Q104: x
A105: x | B105: x | C105: x | D105: x | E105: x | F105: x | G105: x | H105: x | I105: x | J105: x | K105: x | L105: x | M105: x | N105: x | O105: x | P105: x | Q105: x | R105: x | S105: x | T105: x | U105: x | V105: x | W105: x | X105: x | Y105: x | Z105: x | AA105: x | AB105: x
A106: x | C106: x | D106: x | E106: x | F106: x | G106: x | H106: x | I106: x | J106: x | K106: x | L106: x | M106: x | N106: x
A107: x | C107: x | D107: x | E107: x | F107: x | G107: x | H107: x | I107: x | J107: x | K107: x | L107: x | M107: x | N107: x
A108: x | C108: x | D108: x | E108: x | F108: x | G108: x | H108: x | I108: x | J108: x | K108: x | L108: x | M108: x | N108: x
A109: x | C109: x | D109: x | E109: x | F109: x | G109: x | H109: x | I109: x | J109: x | K109: x | L109: x | M109: x | N109: x
A110: x | C110: x | D110: x | E110: x | F110: x | G110: x | H110: x | I110: x | J110: x | K110: x | L110: x | M110: x | N110: x
A111: x | B111: x | C111: x | D111: x | E111: x | F111: x | G111: x | H111: x | I111: x | J111: x | K111: x | L111: x | M111: x | N111: x | O111: x | P111: x | Q111: x | R111: x | S111: x | T111: x | U111: x | V111: x | W111: x | X111: x | Y111: x | Z111: x | AA111: x | AB111: x
A112: x | B112: x | C112: x | D112: x | E112: x | F112: x | G112: x | H112: x | I112: x | J112: x | K112: x | L112: x | M112: x | N112: x | O112: x | P112: x | Q112: x | R112: x | S112: x | T112: x | U112: x | V112: x | W112: x | X112: x | Y112: x | Z112: x | AA112: x | AB112: x
A113: x | C113: x | D113: x | E113: x | F113: x | G113: x | H113: x | I113: x | J113: x | K113: x | L113: x | M113: x | N113: x
A114: x | C114: x | D114: x | E114: x | F114: x | G114: x | H114: x | I114: x | J114: x | K114: x | L114: x | M114: x | N114: x
A115: x | C115: x | D115: x | E115: x | F115: x | G115: x | H115: x | I115: x | J115: x | K115: x | L115: x | M115: x | N115: x
A116: x | C116: x | D116: x | E116: x | F116: x | G116: x | H116: x | I116: x | J116: x | K116: x | L116: x | M116: x | N116: x
A117: x | C117: x | D117: x | E117: x | F117: x | G117: x | H117: x | I117: x | J117: x | K117: x | L117: x | M117: x | N117: x
A118: x | C118: x | D118: x | E118: x | F118: x | G118: x | H118: x | I118: x | J118: x | K118: x | L118: x | M118: x | N118: x
A119: x | C119: x | D119: x | E119: x | F119: x | G119: x | H119: x | I119: x | J119: x | K119: x | L119: x | M119: x | N119: x
A120: x | C120: x | D120: x | E120: x | F120: x | G120: x | H120: x | I120: x | J120: x | K120: x | L120: x | M120: x | N120: x
A121: x | B121: x | C121: x | D121: x | E121: x | F121: x | G121: x | H121: x | I121: x | J121: x | K121: x | L121: x | M121: x | N121: x | O121: x | P121: x | Q121: x | R121: x | S121: x | T121: x | U121: x | V121: x | W121: x | X121: x | Y121: x | Z121: x | AA121: x | AB121: x
A122: x | B122: x | C122: x | D122: x | E122: x | F122: x | G122: x | H122: x | I122: x | J122: x | K122: x | L122: x | M122: x | N122: x | O122: x | P122: x | Q122: x | R122: x | S122: x | T122: x | U122: x | V122: x | W122: x | X122: x | Y122: x | Z122: x | AA122: x | AB122: x
A123: x | B123: x | C123: x | D123: x | E123: x | F123: x | G123: x | H123: x | I123: x | J123: x | K123: x | L123: x | M123: x | N123: x | O123: x | P123: x | Q123: x | R123: x | S123: x | T123: x | U123: x | V123: x | W123: x | X123: x | Y123: x | Z123: x | AA123: x | AB123: x
A124: x | C124: x | D124: x | E124: x | F124: x | G124: x | H124: x | I124: x | J124: x | K124: x | L124: x | M124: x | N124: x
A125: x | C125: x | D125: x | E125: x | F125: x | G125: x | H125: x | I125: x | J125: x | K125: x | L125: x | M125: x | N125: x
A126: x | C126: x | D126: x | E126: x | F126: x | G126: x | H126: x | I126: x | J126: x | K126: x | L126: x | M126: x | N126: x
A127: x | C127: x | D127: x | E127: x | F127: x | G127: x | H127: x | I127: x | J127: x | K127: x | L127: x | M127: x | N127: x
A128: x | C128: x | D128: x | E128: x | F128: x | G128: x | H128: x | I128: x | J128: x | K128: x | L128: x | M128: x | N128: x
A129: x | C129: x | D129: x | E129: x | F129: x | G129: x | H129: x | I129: x | J129: x | K129: x | L129: x | M129: x | N129: x
A130: x | C130: x | D130: x | E130: x | F130: x | G130: x | H130: x | I130: x | J130: x | K130: x | L130: x | M130: x | N130: x
A131: x | C131: x | D131: x | E131: x | F131: x | G131: x | H131: x | I131: x | J131: x | K131: x | L131: x | M131: x | N131: x
A132: x | B132: x | C132: x | D132: x | E132: x | F132: x | G132: x | H132: x | I132: x | J132: x | K132: x | L132: x | M132: x | N132: x | O132: x | P132: x | Q132: x | R132: x | S132: x | T132: x | U132: x | V132: x | W132: x | X132: x | Y132: x | Z132: x | AA132: x | AB132: x
A133: x | B133: x | C133: x | D133: x | E133: x | F133: x | G133: x | H133: x | I133: x | J133: x | K133: x | L133: x | M133: x | N133: x | O133: x | P133: x | Q133: x | R133: x | S133: x | T133: x | U133: x | V133: x | W133: x | X133: x | Y133: x | Z133: x | AA133: x | AB133: x
A134: x | C134: x | D134: x | E134: x | F134: x | G134: x | H134: x | I134: x | J134: x | K134: x | L134: x | M134: x | N134: x
A135: x | C135: x | D135: x | E135: x | F135: x | G135: x | H135: x | I135: x | J135: x | K135: x | L135: x | M135: x | N135: x
A136: x | C136: x | D136: x | E136: x | F136: x | G136: x | H136: x | I136: x | J136: x | K136: x | L136: x | M136: x | N136: x
A137: x | C137: x | D137: x | E137: x | F137: x | G137: x | H137: x | I137: x | J137: x | K137: x | L137: x | M137: x | N137: x
A138: x | C138: x | D138: x | E138: x | F138: x | G138: x | H138: x | I138: x | J138: x | K138: x | L138: x | M138: x | N138: x
A139: x | B139: x | C139: x | D139: x | E139: x | F139: x | G139: x | H139: x | I139: x | J139: x | K139: x | L139: x | M139: x | N139: x | O139: x | P139: x | Q139: x | R139: x | S139: x | T139: x | U139: x | V139: x | W139: x | X139: x | Y139: x | Z139: x | AA139: x | AB139: x
A140: x | C140: x | D140: x | E140: x | F140: x | G140: x | H140: x | I140: x | J140: x | K140: x | L140: x | M140: x | N140: x | R140: x
A141: x | C141: x | D141: x | E141: x | F141: x | G141: x | H141: x | I141: x | J141: x | K141: x | L141: x | M141: x | N141: x | R141: x
A142: x | C142: x | D142: x | E142: x | F142: x | G142: x | H142: x | I142: x | J142: x | K142: x | L142: x | M142: x | N142: x | R142: x
A143: x | B143: x | C143: x | D143: x | E143: x | F143: x | G143: x | H143: x | I143: x | J143: x | K143: x | L143: x | M143: x | N143: x | O143: x | P143: x | Q143: x | R143: x | S143: x | T143: x | U143: x | V143: x | W143: x | X143: x | Y143: x | Z143: x | AA143: x | AB143: x
A144: x | C144: x | D144: x | E144: x | F144: x | G144: x | H144: x | I144: x | J144: x | K144: x | L144: x | M144: x | N144: x | R144: x
A145: x | C145: x | D145: x | E145: x | F145: x | G145: x | H145: x | I145: x | J145: x | K145: x | L145: x | M145: x | N145: x | R145: x
A146: x | B146: x | C146: x | D146: x | E146: x | F146: x | G146: x | H146: x | I146: x | J146: x | K146: x | L146: x | M146: x | N146: x | O146: x | P146: x | Q146: x | R146: x | S146: x | T146: x | U146: x | V146: x | W146: x | X146: x | Y146: x | Z146: x | AA146: x | AB146: x
A147: x | C147: x | E147: x | F147: x | G147: x | H147: x | I147: x | J147: x | K147: x | L147: x | M147: x | N147: x | R147: x
A148: x | C148: x | E148: x | F148: x | G148: x | H148: x | I148: x | J148: x | K148: x | L148: x | M148: x | N148: x | R148: x
A149: x | C149: x | E149: x | F149: x | G149: x | H149: x | I149: x | J149: x | K149: x | L149: x | M149: x | N149: x | R149: x
A150: x | C150: x | E150: x | F150: x | G150: x | H150: x | I150: x | J150: x | K150: x | L150: x | M150: x | N150: x | R150: x
A151: x | C151: x | E151: x | F151: x | G151: x | H151: x | I151: x | J151: x | K151: x | L151: x | M151: x | N151: x | R151: x
A152: x | C152: x | E152: x | F152: x | G152: x | H152: x | I152: x | J152: x | K152: x | L152: x | M152: x | N152: x | R152: x
A153: x | C153: x | E153: x | F153: x | G153: x | H153: x | I153: x | J153: x | K153: x | L153: x | M153: x | N153: x | R153: x
A154: x | C154: x | E154: x | F154: x | G154: x | H154: x | I154: x | J154: x | K154: x | L154: x | M154: x | N154: x | R154: x
A155: x | C155: x | E155: x | F155: x | G155: x | H155: x | I155: x | J155: x | K155: x | L155: x | M155: x | N155: x | R155: x
A156: x | C156: x | E156: x | F156: x | G156: x | H156: x | I156: x | J156: x | K156: x | L156: x | M156: x | N156: x | R156: x
A157: x | C157: x | E157: x | F157: x | G157: x | H157: x | I157: x | J157: x | K157: x | L157: x | M157: x | N157: x | R157: x
A158: x | C158: x | E158: x | F158: x | G158: x | H158: x | I158: x | J158: x | K158: x | L158: x | M158: x | N158: x | R158: x
A159: x | C159: x | E159: x | F159: x | G159: x | H159: x | I159: x | J159: x | K159: x | L159: x | M159: x | N159: x | R159: x
A160: x | C160: x | E160: x | F160: x | G160: x | H160: x | I160: x | J160: x | K160: x | L160: x | M160: x | N160: x | R160: x
A161: x | C161: x | E161: x | F161: x | G161: x | H161: x | I161: x | J161: x | K161: x | L161: x | M161: x | N161: x | R161: x
A162: x | C162: x | E162: x | F162: x | G162: x | H162: x | I162: x | J162: x | K162: x | L162: x | M162: x | N162: x | R162: x
A163: x | C163: x | E163: x | F163: x | G163: x | H163: x | I163: x | J163: x | K163: x | L163: x | M163: x | N163: x | R163: x
A164: x | C164: x | E164: x | F164: x | G164: x | H164: x | I164: x | J164: x | K164: x | L164: x | M164: x | N164: x | R164: x
A165: x | C165: x | E165: x | F165: x | G165: x | H165: x | I165: x | J165: x | K165: x | L165: x | M165: x | N165: x | R165: x
A166: x | C166: x | E166: x | F166: x | G166: x | H166: x | I166: x | J166: x | K166: x | L166: x | M166: x | N166: x | R166: x
A167: x | C167: x | E167: x | F167: x | G167: x | H167: x | I167: x | J167: x | K167: x | L167: x | M167: x | N167: x | R167: x
A168: x | C168: x | E168: x | F168: x | G168: x | H168: x | I168: x | J168: x | K168: x | L168: x | M168: x | N168: x | R168: x
A169: x | C169: x | E169: x | F169: x | G169: x | H169: x | I169: x | J169: x | K169: x | L169: x | M169: x | N169: x | R169: x
A170: x | C170: x | E170: x | F170: x | G170: x | H170: x | I170: x | J170: x | K170: x | L170: x | M170: x | N170: x | R170: x
A171: x | C171: x | E171: x | F171: x | G171: x | H171: x | I171: x | J171: x | K171: x | L171: x | M171: x | N171: x | R171: x
A172: x | C172: x | E172: x | F172: x | G172: x | H172: x | I172: x | J172: x | K172: x | L172: x | M172: x | N172: x | R172: x
A173: x | C173: x | E173: x | F173: x | G173: x | H173: x | I173: x | J173: x | K173: x | L173: x | M173: x | N173: x | R173: x
A174: x | C174: x | E174: x | F174: x | G174: x | H174: x | I174: x | J174: x | K174: x | L174: x | M174: x | N174: x | R174: x
A175: x | C175: x | E175: x | F175: x | G175: x | H175: x | I175: x | J175: x | K175: x | L175: x | M175: x | N175: x | R175: x
A176: x | C176: x | E176: x | F176: x | G176: x | H176: x | I176: x | J176: x | K176: x | L176: x | M176: x | N176: x | R176: x
A177: x | C177: x | E177: x | F177: x | G177: x | H177: x | I177: x | J177: x | K177: x | L177: x | M177: x | N177: x | R177: x
A178: x | C178: x | E178: x | F178: x | G178: x | H178: x | I178: x | J178: x | K178: x | L178: x | M178: x | N178: x | R178: x
A179: x | C179: x | E179: x | F179: x | G179: x | H179: x | I179: x | J179: x | K179: x | L179: x | M179: x | N179: x | R179: x
A180: x | C180: x | E180: x | F180: x | G180: x | H180: x | I180: x | J180: x | K180: x | L180: x | M180: x | N180: x | R180: x
A181: x | C181: x | E181: x | F181: x | G181: x | H181: x | I181: x | J181: x | K181: x | L181: x | M181: x | N181: x | R181: x
A182: x | C182: x | E182: x | F182: x | G182: x | H182: x | I182: x | J182: x | K182: x | L182: x | M182: x | N182: x | R182: x
A183: x | C183: x | E183: x | F183: x | G183: x | H183: x | I183: x | J183: x | K183: x | L183: x | M183: x | N183: x | R183: x
A184: x | B184: x | C184: x | D184: x | E184: x | F184: x | G184: x | H184: x | I184: x | J184: x | K184: x | L184: x | M184: x | N184: x | O184: x | P184: x | Q184: x | R184: x | S184: x | T184: x | U184: x | V184: x | W184: x | X184: x | Y184: x | Z184: x | AA184: x | AB184: x
A185: x | C185: x | D185: x | F185: x | G185: x | H185: x | I185: x | J185: x | K185: x | L185: x | M185: x | N185: x | S185: x
A186: x | C186: x | D186: x | F186: x | G186: x | H186: x | I186: x | J186: x | K186: x | L186: x | M186: x | N186: x | S186: x
A187: x | C187: x | D187: x | F187: x | G187: x | H187: x | I187: x | J187: x | K187: x | L187: x | M187: x | N187: x | S187: x
A188: x | C188: x | D188: x | F188: x | G188: x | H188: x | I188: x | J188: x | K188: x | L188: x | M188: x | N188: x | S188: x
A189: x | C189: x | D189: x | F189: x | G189: x | H189: x | I189: x | J189: x | K189: x | L189: x | M189: x | N189: x | S189: x
A190: x | B190: x | C190: x | D190: x | E190: x | F190: x | G190: x | H190: x | I190: x | J190: x | K190: x | L190: x | M190: x | N190: x | O190: x | P190: x | Q190: x | R190: x | S190: x | T190: x | U190: x | V190: x | W190: x | X190: x | Y190: x | Z190: x | AA190: x | AB190: x
A191: x | B191: x | C191: x | D191: x | E191: x | F191: x | G191: x | H191: x | I191: x | J191: x | K191: x | L191: x | M191: x | N191: x | O191: x | P191: x | Q191: x | R191: x | S191: x | T191: x | U191: x | V191: x | W191: x | X191: x | Y191: x | Z191: x | AA191: x | AB191: x
A192: x | C192: x | D192: x | E192: x | G192: x | H192: x | I192: x | J192: x | K192: x | L192: x | M192: x | N192: x | T192: x
A193: x | C193: x | D193: x | E193: x | G193: x | H193: x | I193: x | J193: x | K193: x | L193: x | M193: x | N193: x | T193: x
A194: x | C194: x | D194: x | E194: x | G194: x | H194: x | I194: x | J194: x | K194: x | L194: x | M194: x | N194: x | T194: x
A195: x | C195: x | D195: x | E195: x | G195: x | H195: x | I195: x | J195: x | K195: x | L195: x | M195: x | N195: x | T195: x
A196: x | C196: x | D196: x | E196: x | G196: x | H196: x | I196: x | J196: x | K196: x | L196: x | M196: x | N196: x | T196: x
A197: x | C197: x | D197: x | E197: x | G197: x | H197: x | I197: x | J197: x | K197: x | L197: x | M197: x | N197: x | T197: x
A198: x | C198: x | D198: x | E198: x | G198: x | H198: x | I198: x | J198: x | K198: x | L198: x | M198: x | N198: x | T198: x
A199: x | C199: x | D199: x | E199: x | G199: x | H199: x | I199: x | J199: x | K199: x | L199: x | M199: x | N199: x | T199: x
A200: x | C200: x | D200: x | E200: x | G200: x | H200: x | I200: x | J200: x | K200: x | L200: x | M200: x | N200: x | T200: x
... 74 more rows

Sheet meta_data (hidden)
A1: Key | B1: Beskrivelse | C1: trigger_code | D1: Indicates wether the algo shall loop through the matrix on releated column
A2: F0 | B2: Full | C2: TRUE | D2: trigger code har jeg ikke kontroll på her, på key får jeg heller ikke til koden, så har bare lagt det inn manuelt
A3: E0 | B3: Endring | C3: FALSE
A4: F1 | B4: Resultatdisponering og utbyttegrunnlag | C4: TRUE
A5: F2 | B5: Rapportering om betalinger til myndigheter m.v. (land-for-land rapportering) | C5: FALSE
A6: F3 | B6: Regnskapspliktige som er utstedere med verdipapirer notert på regulert marked | C6: FALSE
A7: F4 | B7: Redegjørelse for foretaksstyring | C7: FALSE
A8: F5 | B8: Redegjørelse for samfunnsansvar | C8: FALSE
A9: F6 | B9: Rapport om godtgjørelse til ledende personer | C9: FALSE
A10: F7 | B10: Bank, finansieringsforetak med mer | C10: FALSE
A11: F8 | B11: Livsforsikringsforetak eller skadeforsikringsforetak | C11: FALSE
A12: F9 | B12: Verdipapirfond | C12: FALSE
A13: F10 | B13: Verdipapirforetak | C13: FALSE
A14: F11 | B14: Pensjonskasse | C14: FALSE
A15: F12 | B15: Borettslag | C15: FALSE
A16: E1 | B16: Policy | C16: FALSE
A17: E2 | B17: Revisors ansvar | C17: FALSE
A18: E3 | B18: Resultatdisponering og utbyttegrunnlag | C18: FALSE
A19: E4 | B19: Rapportering om betalinger til myndigheter m.v. (land-for-land rapportering) | C19: FALSE
A20: E5 | B20: Regnskapspliktige som er utstedere med verdipapirer notert på regulert marked
A21: E6 | B21: Redegjørelse for foretaksstyring | C21: FALSE
A22: E7 | B22: Redegjørelse for samfunnsansvar | C22: FALSE
A23: E8 | B23: Rapport om godtgjørelse til ledende personer | C23: FALSE
A24: E9 | B24: Bank, finansieringsforetak med mer
A25: E10 | B25: Livsforsikringsforetak eller skadeforsikringsforetak
A26: E11 | B26: Verdipapirfond
A27: E12 | B27: Verdipapirforetak
A28: E13 | B28: Pensjonskasse
A29: E14 | B29: Borettslag | C29: FALSE

Sheet Sjekkliste for utfylling
A1: Kontroll av årsberetningen samt evt redegjørelser for foretaksstyring og samfunnsansvar - øvrige og store foretak | D1: Utfylt: | K1: Sum
A2: Klient: | B2: =+Forside!B2 -> 0 | D2: Review: | J2: Ikke besvart: | K2: =Forside!B9 -> 72
A3: År: | B3: =+Forside!B3 -> 2023 | J3: Ja-svar: | K3: =Forside!C9 -> 0
J4: Nei-svar: | K4: =Forside!D9 -> 0
A5: Enkelte selskaper har tilleggskrav ihht regnskapsloven eller forskrifter til regnskapsloven, disse fremgår nederst i denne sjekklisten. | J5: IA-svar: | K5: =Forside!E9 -> 68
J6: Sum: | K6: =SUM(K2:K5) -> 140
B7: Spørsmål | C7: Ref. | E7: Ja | F7: Nei | G7: I/A | H7: Kommentar
A8: Plikt til utarbeidelse
B9: Regnskapspliktige som ikke er små foretak skal utarbeide årsberetning. Det kan være andre forhold enn de som spesifikt er omtalt i regnskapsloven § 3-3a og NRS 16 Årsberetning som kan påvirke verdien av foretaket eller på annen måte har betydning for foretakets interessegrupper. Det bør gis informasjon om slike forhold, for eksempel: • Endringer i aksjonærsammensetningen • Endringer i ledelses- og organisasjonsforhold • Aksjonærpolitikk • Endringer i foretakets vedtekter • Erverv av egne aksjer | C9: rskl § 3-1
C10: rskl § 3-3a
C11: NRS 16 pkt 2.12.
A12: Formkrav
A13: 1 | B13: Er årsberetningen på norsk? | C13: rskl § 3-4 | J13: =IF(F13<>"","Du har satt X for at forholdet ikke er avklart. Gi en nærmere foklaring i kommentarfeltet.","") -> 
A14: =+A13+1 -> 2 | B14: Er årsberetningen underskrevet av samtlige styremedlemmer og eventuelt av daglig leder, alternativt av deltakerne eller medlemmene hvis foretaket ikke har styre eller daglig leder? | C14: rskl § 3-5 | J14: =IF(F14<>"","Du har satt X for at forholdet ikke er avklart. Gi en nærmere foklaring i kommentarfeltet.","") -> 
A15: =+A14+1 -> 3 | B15: Dersom en som skal underskrive har innvendinger mot årsregnskapet, har vedkommende underskrevet med påtegnet forbehold og gitt nærmere redegjørelse i selve årsberetningen? | C15: rskl § 3-5 | J15: =IF(F15<>"","Du har satt X for at forholdet ikke er avklart. Gi en nærmere foklaring i kommentarfeltet.","") -> 
B16: Merk at dersom det i årsberetningen er henvist til redegjørelse for foretakssstyring ihht rskl § 3-3b, så omfatter underskriften på årsberetningen også denne redegjørelsen. | C16: rskl § 3-5 3. ledd
A17: =+A15+1 -> 4 | B17: Er årsberetningen avgitt innenfor lovens frist? | C17: rskl § 3-1 | J17: =IF(F17<>"","Du har satt X for at forholdet ikke er avklart. Gi en nærmere foklaring i kommentarfeltet.","") -> 
A18: Generelle krav
B19: Ved rapportering av virksomhetsområder bør informasjonen i årsberetningen søkes organisert på samme måte som virksomhetsområdene er behandlet i årsregnskapet | C19: NRS 16, pkt 2.3
A20: =+A17+1 -> 5 | B20: Gir årsberetningen et dekkende bilde av foretakets historiske og fremtidige utvikling, resultat og stilling? | J20: =IF(F20<>"","Du har satt X for at forholdet ikke er avklart. Gi en nærmere foklaring i kommentarfeltet.","") -> 
A21: =+A20+1 -> 6 | B21: Er årsberetningen skrevet så klart og presist som mulig, i et forståelig språk, og med en balansert omtale av positive og negative forhold i den grad det gis slik omtale?
A22: 7 | B22: Er det konsistens i behandlingen av samme forhold i årsberetningen og årsregnskapet?
A23: 8 | B23: Er det redegjort for forholdet dersom utviklingen ikke har vært i overensstemmelse med vesentlige utsagn i tidligere årsberetninger?
A24: 9 | B24: Er det lagt vekt på vurderinger av kvalitativ art som forklarer forholdstall og annen tallbasert informasjon?
A25: 10 | B25: Kan refererte regnskapsmessige tallstørrelser i årsberetningen gjenfinnes i årsregnskapet, eventuelt som avstemming i notene?
A26: 11 | B26: For morselskap som utarbeider konsernregnskap, dekker årsberetningen også virksomheten i konsernet? | C26: rskl § 3-3a, 12. ledd
C27: NRS 16, pkt 2.1
A28: Virksomhetens art og tilholdssted | C28: rskl § 3-3a, 1.ledd
C29: NRS 16, pkt 2.4
A30: =+A26+1 -> 12 | B30: Er det opplyst om arten av virksomheten? | J30: =IF(F30<>"","Du har satt X for at forholdet ikke er avklart. Gi en nærmere foklaring i kommentarfeltet.","") -> 
A31: =+A30+1 -> 13 | B31: Dersom det er flere typer virksomhet, er det gitt opplysninger om hver virksomhet? | J31: =IF(F31<>"","Du har satt X for at forholdet ikke er avklart. Gi en nærmere foklaring i kommentarfeltet.","") -> 
A32: =+A31+1 -> 14 | B32: Er det opplyst hvor virksomheten drives? | J32: =IF(F32<>"","Du har satt X for at forholdet ikke er avklart. Gi en nærmere foklaring i kommentarfeltet.","") -> 
A33: =+A32+1 -> 15 | B33: Ved flere filialer eller avdelinger, er det opplyst om hvor de ulike filialene / avdelingene drives? | J33: =IF(F33<>"","Du har satt X for at forholdet ikke er avklart. Gi en nærmere foklaring i kommentarfeltet.","") -> 
B34: Dersom det kan være viktig for å forstå virksomhetens art og lokalisering oppfordres det i regnskapsstandarden til å gi en redegjørelse for foretakets forretningsidé og strategi. | J34: =IF(F34<>"","Du har satt X for at forholdet ikke er avklart. Gi en nærmere foklaring i kommentarfeltet.","") -> 
A35: Rettvisende oversikt / redegjørelse for årsregnskapet | C35: rskl § 3-3a, 2. til 4. ledd
C36: NRS 16, pkt 2.5
B37: NRS 16 pkt 2.5 inneholder utdypende kommentarer og anbefalinger til kravene i rskl § 3-3a, 2. til 4. ledd vedrørende rettvisende oversikt over utvikling og resultat av foretakets virksomhet og stilling.
A38: =+A33+1 -> 16 | B38: Er det gitt en rettvisende oversikt over utvikling og resultat av foretakets virksomhet og dets stilling? | J38: =IF(F38<>"","Du har satt X for at forholdet ikke er avklart. Gi en nærmere foklaring i kommentarfeltet.","") -> 
A39: =+A38+1 -> 17 | B39: Er sentrale risikoer og usikkerhetsfaktorer beskrevet? | J39: =IF(F39<>"","Du har satt X for at forholdet ikke er avklart. Gi en nærmere foklaring i kommentarfeltet.","") -> 
A40: =+A39+1 -> 18 | B40: Er oversikten en balansert og fyllestgjørende analyse av utvikling, resultat og stilling?
A41: 19 | B41: I den grad det anses nødvendig for å forstå foretakets utvikling, resultat eller stilling, inneholder analysen både finansielle og, der det passer, ikke-finansielle sentrale og aktuelle resultatindikatorer, inkludert opplysninger om miljø- og personalsaker?
A42: 20 | B42: Inneholder årsberetningen, der det passer, henvisninger og tilleggsforklaringer til beløp presentert i årsregnskapet?
A43: 21 | B43: Er hovedfaktorene som påvirker virksomheten identifisert og forklart?
A44: 22 | B44: Er uvanlige eller ekstraordinære forhold belyst?
A45: 23 | B45: Er det opplyst om årsaken til og virkningen av vesentlige endringer i regnskapsprinsipper?
A46: 24 | B46: Er det opplyst om viktige hendelser etter balansedagen, samt redegjort for hendelsenes faktiske eller potensielle virkning på resultat og stilling?
A47: 25 | B47: Er endringer av overordnet og strategisk betydning, som for eksempel endring i satsningsområder og vesentlige strukturelle endringer, omtalt?
A48: 26 | B48: Er forventede virkninger av slike endringer kommentert?
A49: =+A48+1 -> 27 | B49: Er det gitt en overordnet vurdering av total usikkerhet vedrørende foretakets regnskapsførte resultat og finansielle stilling?
A50: Resultatregnskapet | C50: NRS 16, pkt 2.5
A51: =+A49+1 -> 28 | B51: Er viktige utviklingstrekk for virksomheten som er av betydning for å bedømme foretakets stilling og resultat drøftet, for eksempel: o Endringer i markedsforhold o Nye produkter og tjenester o Endringer i markedsandeler eller markedsposisjoner o Endringer i salgsmengde eller marginer o Endringer i valutakurser og relevante prisforhold o Restrukturering | J51: =IF(F51<>"","Du har satt X for at forholdet ikke er avklart. Gi en nærmere foklaring i kommentarfeltet.","") -> 
A52: =+A51+1 -> 29 | B52: Er det gitt opplysninger om eventuelle forsknings- og utviklingsaktiviteter? | J52: =IF(F52<>"","Du har satt X for at forholdet ikke er avklart. Gi en nærmere foklaring i kommentarfeltet.","") -> 
B53: Opplysningene om eventuelle forsknings- og utviklingsaktiviteter kan normalt begrense seg til en overordnet verbal beskrivelse. Ved kostnadsføring som prinsipp er det særlig aktuelt å gi en vurdering av hvordan årets resultat samsvarer med den underliggende verdiskapning i foretaket. | J53: =IF(F53<>"","Du har satt X for at forholdet ikke er avklart. Gi en nærmere foklaring i kommentarfeltet.","") -> 
A54: =+A52+1 -> 30 | B54: Er spesielle forhold som i betydelig grad kan ha påvirket årsregnskapet kommentert, for eksempel: o Store enkelttransaksjoner o Kjøp eller salg av foretak, ny virksomhet, avviklet virksomhet og andre viktige anskaffelser og avhendelser o Realisering eller oppbygging av merverdier i for eksempel verdipapirer eller eiendom o Særlige poster | J54: =IF(F54<>"","Du har satt X for at forholdet ikke er avklart. Gi en nærmere foklaring i kommentarfeltet.","") -> 
B55: Ved betydelige oppkjøp av virksomhet bør det redegjøres for i hvilken utstrekning forventningene til oppkjøpet er blitt realisert. Dersom resultater som er medregnet ved kjøp av virksomhet med betydelig sesong-variasjoner ikke er indikative for virkningen på helårsbasis, bør dette opplyses. | J55: =IF(F55<>"","Du har satt X for at forholdet ikke er avklart. Gi en nærmere foklaring i kommentarfeltet.","") -> 
A56: Balansen | C56: NRS 16, pkt 2.5 | H56: =IF(F56<>"","Du har satt X for at forholdet ikke er avklart. Gi en nærmere foklaring i kommentarfeltet.","") -> 
B57: Beskrivelsen bør være vurderende med bruk av tallmateriale i den grad det letter forståelsen, for eksempel finansielle forholdstall som egenkapitalandel og rentedekningsgrad. | J57: =IF(F57<>"","Du har satt X for at forholdet ikke er avklart. Gi en nærmere foklaring i kommentarfeltet.","") -> 
A58: =+A54+1 -> 31 | B58: Er likviditetssituasjonen på balansedagen gjennomgått? | J58: =IF(F58<>"","Du har satt X for at forholdet ikke er avklart. Gi en nærmere foklaring i kommentarfeltet.","") -> 
B59: Gjennomgang av likviditetssituasjonen kan omfatte - nivå på kortsiktig gjeld - sesongvariasjoner med angivelse av maksimalt lånebehov - forfallsstruktur på gjeld og kommitterte kredittlinjer
B60: Restriksjoner for overføring av midler fra en del av virksomheten for å møte forpliktelser i andre deler av foretaket bør drøftes dersom dette anses for å være en vesentlig beskrankning for selskapet
A61: Kontantstrømoppstillingen | C61: NRS 16, pkt 2.5
A62: =+A58+1 -> 32 | B62: Dersom ikke tilsvarende informasjon gis gjennom øvrige deler av årsberetningen, er kontantstrømoppstillingen kommentert? | J62: =IF(F62<>"","Du har satt X for at forholdet ikke er avklart. Gi en nærmere foklaring i kommentarfeltet.","") -> 
A63: =+A62+1 -> 33 | B63: Er det redegjort for eventuelle vesentlige avvik mellom driftsresultat og kontantstrøm fra operasjonelle aktiviteter?
A64: =+A63+1 -> 34 | B64: Dersom man anser det for å være sentral informasjon for brukerne, er det informert om skillet mellom investeringer som er gjort for å opprettholde kapasiteten og investeringer som er gjort for å øke kapasiteten / lønnsomheten?
A65: =+A64+1 -> 35 | B65: Er det gitt en vurdering av sammenhengene mellom kontantstrømmene fra operasjonelle aktiviteter og investeringsaktiviteter, herunder evnen til egenfinansiering av investeringer?
A66: =+A65+1 -> 36 | B66: Er det redegjort for formålet med og virkningen av større finansielle transaksjoner som er gjennomført fram til avleggelsen av årsberetningen?
A67: Foretakets utsikter | C67: rskl § 3-3a, 5. ledd
C68: NRS 16, pkt 2.6
B69: NRS 16 pkt 2.6 inneholder utdypende kommentarer og anbefalinger til kravene i rskl § 3-3a, 5. ledd vedrørende redegjørelse for foretakets framtidige utsikter. | J69: =IF(F69<>"","Du har satt X for at forholdet ikke er avklart. Gi en nærmere foklaring i kommentarfeltet.","") -> 
B70: Redegjørelse for fremtidsutsikter kan blant annet omhandle - rammebetingelser - makroøkonomiske forhold - renter, valutakurser, internasjonale varepriser - priskontrakter - investeringer/investeringsbehov fordelt på vedlikehold og ekspansjonsbehov - kostnadsføringer av utgifter som kan gi økonomiske fordeler på sikt - finansielle ressurser i forhold til framtidig kapitalbehov - framtidige miljøkrav
B71: Det må vurderes å gi kvalitative og kvantitative vurderinger av de viktigste faktorene som kan påvirke framtidig resultat.
B72: Det forventes at store foretak gir en fyldigere fremstilling av foretakets utsikter enn andre foretak
A73: =+A66+1 -> 37 | B73: Er det gitt er redegjørelse som gir grunnlag for å vurdere foretakets forventede økonomiske utvikling?
A74: =+A73+1 -> 38 | B74: Er det gitt en vurdering av foretakets forventede økonomiske utvikling på et overordnet nivå, med angivelse av de viktigste forutsetninger som er lagt til grunn?
A75: =+A74+1 -> 39 | B75: Har styret presisert at det normalt er betydelig usikkerhet knyttet til vurderinger av fremtidige forhold?
A76: =+A75+1 -> 40 | B76: Er faktorer som kan ha betydning for fremtidige resultater drøftet?
A77: =+A76+1 -> 41 | B77: Omfatter drøftelsen en identifisering av de vesentligste risiki for virksomheten?
B78: Det må vurderes å gi kvalitative og kvantitative vurderinger av de viktigste faktorene som kan påvirke framtidig resultat.
A79: =+A77+1 -> 42 | B79: Dersom det i tidligere beretninger er gitt opplysninger om fremtidig utvikling, er det informert om årets resultat er i samsvar med forventningen, og er eventuelle avvik begrunnet?
A80: Finansiell risiko | C80: rskl § 3-3a, 6. ledd
C81: NRS 16, pkt 2.7
A82: =+A79+1 -> 43 | B82: Er det gitt opplysninger om finansiell risiko som er av betydning for å bedømme foretakets eiendeler, gjeld, finansiell stilling og resultat? | J82: =IF(F82<>"","Du har satt X for at forholdet ikke er avklart. Gi en nærmere foklaring i kommentarfeltet.","") -> 
A83: =+A82+1 -> 44 | B83: Omfatter opplysningene mål og strategier som er fastsatt for styring av finansiell risiko, herunder strategien for sikring av hver hovedtype av planlagte transaksjoner der sikringsvurdering er benyttet?
B84: Det bør opplyses på hvilke områder foretaket velger å bruke finansielle instrumenter, for eksempel • renter • valuta • råvarer • egenkapitalbaserte instrumenter Det bør videre opplyses om hvilke typer instrumenter som brukes, for eksempel • terminkontrakter • opsjoner
A85: =+A83+1 -> 45 | B85: Er det redegjort for foretakets eksponering mot markedsrisiko, kredittrisiko og likviditetsrisiko?
A86: =+A85+1 -> 46 | B86: Dersom det foreligger brudd på vilkår og/eller forutsetninger for lån (covenants), eller det forventes at dette vil skje i neste regnskapsperiode, er det opplyst om hvilke spesifikke tiltak som vil bli eller har vært gjennomført for å rette opp forholdet?
A87: Fortsatt drift | C87: rskl § 3-3a, 7.ledd
C88: rskl § 4-5
C89: NRS 16, pkt 2.8
B90: Fortsatt drift forutsetningen skal omhandles i årsberetningen, og vil dekke tre prinsipielt forskjellige situasjoner: • Utvilsom fortsatt drift • Usikker fortsatt drift • Avvikling Standarden gir utdypende veiledning til årsberetningens innhold ved både usikkerhet om fortsatt drift og avvikling. Det er også gitt nærmere veiledning om årsberetningens innhold dersom styrets handleplikt ved tap av egenkapital har inntrådt ihht aksjeloven § 3-5. | J90: =IF(F90<>"","Du har satt X for at forholdet ikke er avklart. Gi en nærmere foklaring i kommentarfeltet.","") -> 
A91: =+A86+1 -> 47 | B91: Utvilsom fortsatt drift: Er det bekreftet at forutsetningen for fortsatt drift er til stede? | C91: rskl § 3-3a, 7. ledd nr 1 | J91: =IF(F91<>"","Du har satt X for at forholdet ikke er avklart. Gi en nærmere foklaring i kommentarfeltet.","") -> 
C92: NRS 16, pkt 2.8
A93: =+A91+1 -> 48 | B93: Usikker fortsatt drift: er det redegjort for usikkerheten om fortsatt drift? | C93: rskl § 3-3a, 7. ledd nr 2 | J93: =IF(F93<>"","Du har satt X for at forholdet ikke er avklart. Gi en nærmere foklaring i kommentarfeltet.","") -> 
C94: NRS 16, pkt 2.8
A95: =+A93+1 -> 49 | B95: Ved stor usikkerhet og tvil om fortsatt drift, er det opplyst om større poster i årsregnskapet som vil påvirkes dersom forutsetningen om fortsatt drift ikke legges til grunn for vurderingene? | C95: NRS 16, pkt 2.8 | J95: =IF(F95<>"","Du har satt X for at forholdet ikke er avklart. Gi en nærmere foklaring i kommentarfeltet.","") -> 
A96: =+A95+1 -> 50 | B96: Er virkningene, dersom det er mulig, kvantifisert? | C96: NRS 16, pkt 2.8 | J96: =IF(F96<>"","Du har satt X for at forholdet ikke er avklart. Gi en nærmere foklaring i kommentarfeltet.","") -> 
A97: =+A96+1 -> 51 | B97: Sannsynlig avvikling: Er det redegjort for hvordan virkelig verdi ved avvikling er beregnet dersom dette ikke fremgår i note til årsregnskapet? | C97: rskl § 3-3a, 7. ledd nr 4 | J97: =IF(F97<>"","Du har satt X for at forholdet ikke er avklart. Gi en nærmere foklaring i kommentarfeltet.","") -> 
C98: NRS 16, pkt 2.8
A99: =+A97+1 -> 52 | B99: Dersom styrets handleplikt etter asl/asal § 3-5 er inntrådt, er det opplyst om det er besluttet eller satt i verk tiltak for å sikre selskapets drift, eventuelt å oppløse selskapet? | C99: rskl § 3-3a, 7. ledd nr 3 | J99: =IF(F99<>"","Du har satt X for at forholdet ikke er avklart. Gi en nærmere foklaring i kommentarfeltet.","") -> 
C100: NRS 16, pkt 2.8
A101: Resultatdisponering og utbyttegrunnlag | C101: Rskl § 3-3a, 8. ledd | J101: =IF(F101<>"","Du har satt X for at forholdet ikke er avklart. Gi en nærmere foklaring i kommentarfeltet.","") -> 
C102: NRS 16, pkt. 2.9
A103: =+A99+1 -> 53 | B103: Dersom resultatregnskapet, noter eller evt. oppstilling av endring i egenkapitalen ikke inneholder forslag til anvendelse av overskudd eller dekning av tap, fremgår forslaget av årsberetningen? | J103: =IF(F103<>"","Du har satt X for at forholdet ikke er avklart. Gi en nærmere foklaring i kommentarfeltet.","") -> 
B104: Forslaget bør begrunnes i forhold til eventuelle inntjeningsmål, utbyttepolitikk og mål for kapitalstruktur | J104: =IF(F104<>"","Du har satt X for at forholdet ikke er avklart. Gi en nærmere foklaring i kommentarfeltet.","") -> 
A105: Opplysninger om miljø og sosiale forhold | C105: NRS 16 pkt 2.10 | J105: =IF(F105<>"","Du har satt X for at forholdet ikke er avklart. Gi en nærmere foklaring i kommentarfeltet.","") -> 
B106: Opplysninger om miljø omfatter arbeidsmiljø, likestilling, diskriminering og tilgjengelighet samt ytre miljø.
B107: Når selskapet utarbeider egen miljørapport, kan detaljeringsgraden i årsberetningen reduseres noe, forutsatt at miljørapporten inneholder detaljer minst tilsvarende lovkravene. | J107: =IF(F107<>"","Du har satt X for at forholdet ikke er avklart. Gi en nærmere foklaring i kommentarfeltet.","") -> 
B108: Årsberetningen for morselskap kan ha en lavere detaljeringsgrad for konsernets forhold (hvert enkelt selskap må tilfredsstille lovkravene). | J108: =IF(F108<>"","Du har satt X for at forholdet ikke er avklart. Gi en nærmere foklaring i kommentarfeltet.","") -> 
B109: Store foretak skal i henhold til § 3-3c avgi redegjørelse om samfunnsansvar, denne kan inntas i et eget dokument utenfor årsberetningen. Selskapet kan da velge å ta inn de påkrevde opplysningene om arbeidsmiljø og ytre miljø direkte i den separate redegjørelsen istedenfor i årsberetningen. Dette gjelder imidlertid ikke for redegjørelser avgitt etter rammeverk for Global Compact, samt konsernrapporter hvor foretaket er omfattet som datterselskap.
A110: =+A103+1 -> 54 | B110: Dersom foretaket har valgt å ta inn opplysningen om arbeidsmiljø og ytre miljø i separat redegjørelse om samfunnsansvar, er det opplyst særskilt om dette i årsberetning?
A111: Arbeidsmiljø | C111: rskl § 3-3a, 9. ledd | J111: =IF(F111<>"","Du har satt X for at forholdet ikke er avklart. Gi en nærmere foklaring i kommentarfeltet.","") -> 
C112: NRS 16, pkt 2.10
B113: Standarden gir utdypende veiledning til årsberetningens innhold vedrørende omtale av arbeidsmiljø, spesielt vedrørende sykefravær, skader og ulykker. | J113: =IF(F113<>"","Du har satt X for at forholdet ikke er avklart. Gi en nærmere foklaring i kommentarfeltet.","") -> 
A114: =+A110+1 -> 55 | B114: Er det gitt opplysninger om arbeidsmiljøet?
A115: =+A114+1 -> 56 | B115: Er det gitt en oversikt over eventuelle iverksatte tiltak som har betydning for arbeidsmiljøet?
A116: 57 | B116: Er det opplyst om eventuelle skader, herunder både personskader og materielle skader?
A117: 58 | B117: Er det opplyst om skader som gjelder både ulykker og andre skader, for eksempel slitasje- og belastningsskader?
A118: 59 | B118: Er det opplyst om eventuelle ulykker, herunder både personskader og materielle skader?
A119: 60 | B119: Dersom foretaket har minst 5 årsverk, er det opplyst om sykefravær?
A120: 61 | B120: Dersom foretaket ikke har ansatte, og således ikke noe arbeidsmiljø, er dette opplyst?
A121: Likestilling og diskriminering
C122: Lov om likestilling og forbud mot diskriminering § 26 a)
C123: NRS 16, pkt 2.10
B124: Følgende arbeidsgivere har utvidet aktivitetsplikt etter likestillings- og diskrimineringsloven § 26, 2. ledd: - alle offentlige virksomheter, uavhengig av størrelse, - private virksomheter som jevnlig sysselsetter mer enn 50 ansatte, - private virksomheter som jevnlig sysselsetter mellom 20 og 50 ansatte, når en av arbeidslivets parter i virksomheten krever det.
B125: For arbeidsgivere med utvidet aktivitetsplikt etter likestillings- og diskrimineringsloven § 26, 2. ledd (se definisjon ovenfor):
A126: =+A120+1 -> 62 | B126: Er det redegjort for den faktiske tilstanden når det gjelder kjønnslikestilling i virksomheten? | J126: =IF(F126<>"","Du har satt X for at forholdet ikke er avklart. Gi en nærmere foklaring i kommentarfeltet.","") -> 
B127: Det er varslet at redegjørelsesplikten på likestillingsområdet skal standardiseres via forskrift, slik forskrift er foreløpig ikke vedtatt.
A128: =+A126+1 -> 63 | B128: Er det redegjort for hva foretaket gjør for å oppfylle aktivitetsplikten etter likestillings- og diskrimineringsloven § 26? | J128: =IF(F128<>"","Du har satt X for at forholdet ikke er avklart. Gi en nærmere foklaring i kommentarfeltet.","") -> 
A129: =+A128+1 -> 64 | B129: Er redegjørelsen utformet slik at enkeltansattes personlige forhold ikke røpes?
A130: 65 | B130: Fremgår resultatene av lønnskartleggingen av redegjørelsen i anonymisert form?
B131: Redegjørelsen om likestilling og oppfyllelse av aktivitetsplikten skal gis i årsberetningen eller i annet offentlig tilgjengelig dokument. Dersom redegjørelsen gis i annet offentlig tilgjengelig dokument, og foretaket har en plikt til å levere årsberetning, skal det i årsberetningen opplyses hvor dokumentet finnes offentlig tilgjengelig. | J131: =IF(F131<>"","Du har satt X for at forholdet ikke er avklart. Gi en nærmere foklaring i kommentarfeltet.","") -> 
A132: Ytre miljø | C132: rskl § 3-3a, 10. ledd | J132: =IF(F132<>"","Du har satt X for at forholdet ikke er avklart. Gi en nærmere foklaring i kommentarfeltet.","") -> 
C133: NRS 16, pkt 2.10
B134: Det skal gis opplysninger om forhold ved virksomheten, herunder dens innsatsfaktorer og produkter, som kan medføre en ikke ubetydelig påvirkning av det ytre miljø. Formålet med redegjørelsen er å gi grunnlag for å vurdere foretakets virksomhet i en miljømessig sammenheng, og å gi et bilde av selskapets miljømessige forpliktelser og utviklingsmuligheter. Regnskapsstandarden gir ytterligere veiledning vedrørende årsberetningens innhold vedrørende påvirking på det ytre miljø. Det bør redegjøres for hvilke ambisjoner og mål foretaket har på miljøområdet og hvilke miljøkrav som forventes fra myndigheter, kunder og leverandører. Det bør også redegjøres for hvilke miljøforhold som er viktigst for foretaket. | J134: =IF(F134<>"","Du har satt X for at forholdet ikke er avklart. Gi en nærmere foklaring i kommentarfeltet.","") -> 
A135: =+A130+1 -> 66 | B135: Er det opplyst om forhold som kan medføre en ikke ubetydelig påvirkning av det ytre miljø? | J135: =IF(F135<>"","Du har satt X for at forholdet ikke er avklart. Gi en nærmere foklaring i kommentarfeltet.","") -> 
A136: =+A135+1 -> 67 | B136: Er det redegjort for hvilke miljøvirkninger de enkelte forhold gir eller kan gi? | J136: =IF(F136<>"","Du har satt X for at forholdet ikke er avklart. Gi en nærmere foklaring i kommentarfeltet.","") -> 
A137: =+A136+1 -> 68 | B137: Er det redegjort for hvilke tiltak, både forebyggende og opprettende, som er eller planleggs iverksatt for å forhindre eller redusere negative miljøvirkninger? | J137: =IF(F137<>"","Du har satt X for at forholdet ikke er avklart. Gi en nærmere foklaring i kommentarfeltet.","") -> 
A138: =+A137+1 -> 69 | B138: Dersom foretaket ikke forurenser det ytre miljø i særlig grad, er det spesifikt opplyst at man ikke forurenser det ytre miljø? | J138: =IF(F138<>"","Du har satt X for at forholdet ikke er avklart. Gi en nærmere foklaring i kommentarfeltet.","") -> 
A139: Forsikring for styrets medlemmer og daglig leder
A140: =+A138+1 -> 70 | B140: Er det gitt opplysninger om det er tegnet forsikring for styrets medlemmer og daglig leder for deres mulige ansvar overfor foretaket og tredjepersoner, og i tilfelle om forsikringsdekningen? | C140: rskl § 3-3a 11. ledd
B141: Styreansvarsforsikringer varierer i innhold og kompleksitet. Å opplyse om forsikringsdekningen betyr ikke at det er krav om å opplyse om alle spesifikke vilkår, men hva som er kjernen i den forsikringsdekningen som er tegnet. | C141: NRS 16 pkt 2.11
A142: =+A140+1 -> 71 | B142: Hvis det ikke er tegnet forsikring for styremedlemmenes og daglig leders mulige ansvar overfor foretaket og tredjepersoner, er det opplyst om dette?
A143: Redegjørelse etter åpenhetsloven
A144: =+A142+1 -> 72 | B144: Dersom selskapet er pliktig til å avgi redegjørelse etter åpenhetsloven, er det opplyst i årsberetningen om hvor redegjørelsen er tilgjengelig? | C144: åpenhetsloven § 5
B145: For krav til innholdet i redegjørelsen, se punkter under redegjørelse om samfunnsansvar
A146: Rapportering om betalinger til myndigheter m.v. (land-for-land rapportering) | C146: rskl 3-3d
B147: Regnskapspliktige som driver virksomhet innen utvinningsindustrien skal utarbeide og offentliggjøre en årlig rapport med opplysninger om sine betalinger til myndigheter på land- og prosjektnivå. Det samme gjelder skogdrift innen ikke-beplantet skog.
B148: Rapporteringsplikten gjelder foretak som som har regnskapsplikt etter rskl § 1-2 nr 1, 3, 4, 5, 6 eller nr 13 og som på balansedagen tilfredsstiller minst to av de tre følgende vilkår: | C148: Forskrift om land-for-land-rapportering F20.12.2013 nr 1682
B149: • årlig salgsinntekt mer enn 320 millioner kroner,
B150: • balansesum mer enn 160 millioner kroner,
B151: • gjennomsnittlig antall ansatte gjennom regnskapsåret mer enn 250.
B152: Reglene gjelder også for foretak som er regnskapspliktige etter rskl § 1-2 nr. 2, eller er utsteder med Norge som hjemstat etter vphl § 5-4 annet til fjerde ledd.
B153: Rapporteringsplikten gjelder også foretak som er utsteder eller er regnskapspliktig og enten alene eller sammen med datterselskapene tilfredsstiller størrelseskriteriene nevnt ovenfor, som har ett eller flere datterselskaper som driver virksomhet innen utvinningsindustrien eller skogsdrift innen ikke-beplantet skog.
B154: Rapporteringsplikten gjelder ikke for regnskapspliktige som utarbeider en årlig rapport etter tilsvarende utenlandsk regelverk. Plikten gjelder heller ikke dersom tilstrekkelige opplysninger er tatt inn i morselskapets årlige rapport om konsernets betalinger til myndigheter, utarbeidet som konsernrapportering.
A155: =+A144+1 -> 73 | B155: For foretak som kommer inn under rapporteringskravene om betalinger til myndigheter mv., er det i årsberetningen opplyst om hvor rapporten er offentliggjort? | C155: rskl § 3-3d
B156: Inneholder rapporten minst følgende opplysninger om betalinger til myndigheter: (kravene gjelder ikke for betalinger som tilsvarer mindre enn kr 800.000, som gjøres enkeltvis eller som flere sammenhørende betalinger innenfor samme regnskapsår) | C156: Forskrift om land-for-land-rapportering F20.12.2013 nr 1682
A157: =+A155+1 -> 74 | B157: Den samlede betaling til hver myndighet i løpet av regnskapsåret, fordelt per land og fordelt per type betaling (typer betaling er definert i forskriften § 3 nr. 5 bokstav a-h)? | C157: Forskriften § 4
A158: =+A157+1 -> 75 | B158: Betalinger knyttet til et prosjekt, rapportert per prosjekt og per type betaling som nevnt i § 3 nr. 5 bokstav a-h?
A159: =+A158+1 -> 76 | B159: Når det er plikt til å gi opplysninger om betalinger til myndigheter, inneholder rapporten også opplysninger om foretakets investeringer, salgsinntekt, produksjonsvolum og kostnader, fordelt på de enkelte land hvor foretaket driver virksomhet?
A160: 77 | B160: Er det i rapporten også opplyst om foretakets rentekostnad til andre foretak i samme konsern som er hjemmehørende i andre jurisdiksjoner enn foretaket?
A161: 78 | B161: Er opplysningene i de to foregående spørsmålene så vidt mulig hentet fra årsregnskapet, og er eventuelle forskjeller forklart?
B162: Beløp som er utbetalt av foretaket for forpliktelser som pålegges på enhetsnivå, kan rapporteres på enhetsnivå i stedet for på prosjektnivå.
A163: =+A161+1 -> 79 | B163: For betalinger in natura til en myndighet, er både verdi og, når relevant, mengde, oppgitt?
A164: =+A163+1 -> 80 | B164: Er det gitt en forklaring om hvordan verdien er fastsatt?
B165: Konsernrapportering: Foretak som er utsteder eller er regnskapspliktig og enten alene eller sammen med datterselskapene tilfredsstiller størrelseskriteriene nevnt ovenfor, som har ett eller flere datterselskaper som driver virksomhet innen utvinningsindustrien eller skogsdrift innen ikke-beplantet skog, skal utarbeide en konsernrapport med konsolidert oppstilling hvor de foretakene i konsernet som driver virksomhet innen utvinningsindustrien eller skogdrift innen ikke-beplantet skog, vises som en enhet. | C165: Forskriften § 5
B166: Viser konsernrapporten konsolidert oppstilling av følgende opplysninger:
A167: =+A164+1 -> 81 | B167: Den samlede betaling til hver myndighet i løpet av regnskapsåret, fordelt per land og fordelt per type betaling (typer betaling er definert i forskriften § 3 nr. 5 bokstav a-h)?
A168: =+A167+1 -> 82 | B168: Betalinger knyttet til et prosjekt, rapportert per prosjekt og per type betaling som nevnt i § 3 nr. 5 bokstav a-h?
A169: =+A168+1 -> 83 | B169: Når det er plikt til å gi opplysninger om betalinger til myndigheter, inneholder rapporten også opplysninger om foretakets investeringer, salgsinntekt, produksjonsvolum og kostnader, fordelt på de enkelte land hvor foretaket driver virksomhet?
B170: Datterselskap kan utelates fra den konsoliderte oppstillingen etter første ledd dersom a. alvorlige langvarige restriksjoner hindrer morselskapet i vesentlig grad i å utøve sine rettigheter over datterselskapet, b. de opplysninger som er nødvendige for å utarbeide den konsoliderte rapporten i samsvar med denne forskrift, i svært sjeldne tilfeller ikke kan innhentes innen rimelig tid eller uten uforholdsmessig store kostnader, eller c. aksjer eller andeler i datterselskapet eies midlertidig og skal klassifiseres som omløpsmidler etter regnskapsloven § 5-1, og tilsvarende unntak også gjøres gjeldende for konsernregnskapet.
A171: =+A169+1 -> 84 | B171: Dersom unntak beskrevet ovenfor er benyttet, er det gitt en nærmere forklaring på hvorfor unntaket er benyttet, hvilket datterselskap det gjelder, samt hvilke tiltak som er iverksatt for å forhindre at tilsvarende unntak benyttes for senere rapportering?
B172: Inneholder konsernrapporten, uavhengig av om det er plikt til å gi opplysninger om betalinger til myndigheter, i en separat del minst inneholde følgende opplysninger om hvert av foretakets datterselskap:
A173: =+A171+1 -> 85 | B173: a. hvor datterselskapet er hjemmehørende,
A174: =+A173+1 -> 86 | B174: b. antall ansatte,
A175: =+A174+1 -> 87 | B175: c. rentekostnad til andre foretak i samme konsern som er hjemmehørende i andre jurisdiksjoner enn datterselskapet,
A176: 88 | B176: d. en kortfattet beskrivelse av datterselskapets aktiviteter,
A177: 89 | B177: e. netto omsetning, inkludert omsetning med foretak i samme konsern,
A178: 90 | B178: f. resultat før skatt,
A179: 91 | B179: g. inntektsskatt i regnskapsåret som beregnet av den skattepliktiges overskudd eller underskudd i regnskapsåret,
A180: 92 | B180: h. inntektsskatt som er betalt i løpet av det aktuelle regnskapsåret av datterselskapet,
A181: 93 | B181: i. akkumulert fortjeneste
A182: 94 | B182: Er opplysningene så vidt mulig hentet fra årsregnskapet, og er eventuelle forskjeller forklart?
B183: Offentliggjøring: Rapport på både selskaps- og konsernnivå skal offentliggjøres på den rapporteringspliktiges hjemmesider på internett, og skal være tilgjengelig i minst 5 år. | C183: Forskriften § 6
A184: TILLEGGSKRAV FOR STORE FORETAK | J184: =IF(F184<>"","Du har satt X for at forholdet ikke er avklart. Gi en nærmere foklaring i kommentarfeltet.","") -> 
B185: For regnskapspliktige som er utstedere med verdipapirer notert på regulert marked, er det gitt følgende opplysninger som nevnt i verdipapirhandelloven § 5-8 a: | C185: rskl § 3-3a 13. ledd
A186: =+A182+1 -> 95 | B186: • en beskrivelse av vedtektsbestemmelser som begrenser rettet til å omsette selskapets aksjer, | C186: vphl § 5-8 a
A187: =+A186+1 -> 96 | B187: • en beskrivelse av hvem som utøver rettighetene til aksjer i eventuelle ansatteaksjeordninger når myndigheten ikke utøves direkte av de ansatte som er omfattet av ordningen,
A188: =+A187+1 -> 97 | B188: • avtaler mellom aksjeeiere selskapet er kjent med som begrenser mulighetene til å omsette eller utøve stemmerett for aksjer,
A189: =+A188+1 -> 98 | B189: • vesentlige avtaler selskapet er part i hvis vilkår trer i kraft, endres eller opphører som følge av et overtakelsestilbud, samt en redegjørelse for vilkårene. I den grad det vil medføre urimelig forretningsmessig ulempe at en avtale blir kjent kan foretaket la være å opplyse om avtalen. Unntaket kommer ikke til anvendelse dersom selskapet er forpliktet til å offentliggjøre opplysninger om avtalen i henhold til annen lovgivning.
A190: Redegjørelse om foretaksstyring | C190: rskl § 3-3b
C191: NUES (Norsk Anbefaling Eierstyring og Selskapsledelse)
B192: Regnskapspliktige som er utstedere med Norge som hjemstat etter verdipapirhandelloven § 5-4 og med verdipapirer notert på regulert marked, skal i årsberetningen eller i dokument som det er henvist til i årsberetningen, redegjøre for sine prinsipper og praksis vedrørende foretaksstyring. Plikten til å redegjøre for foretaksstyring gjelder tilsvarende for ASA hvis aksjer bare er notert på en autorisert markedsplass utenfor EØS-området | C192: NUES kap 1 Redegjørelse for eierstyring og selskapsledelse
B193: EU-kommisjonen har utgitt to ikke-bindende retningslinjer som gir veiledning til kravene til redegjørelse om samfunnsansvar og redegjørelse om foretaksstyring:
B194: • «Guidelines on non-financial reporting» (publisert 2017)
B195: • «Guidelines on non-financial reporting: Supplement on reporting climaterelated information» (publisert 2019)
B196: Inneholder redegjørelsen for prinsipper og praksis vedrørende foretaksstyring minst følgende opplysninger:
A197: =+A189+1 -> 99 | B197: • en beskrivelse av hovedelementene i foretakets, og for regnskapspliktige som utarbeider konsernregnskap eventuelt også konsernets, systemer for internkontroll og risikostyring knyttet til regnskapsrapporteringsprosessen | C197: NUES kap 10 Risikostyring og intern kontroll
A198: =+A197+1 -> 100 | B198: • vedtektsbestemmelser som regulerer oppnevning og utskifting av styremedlemmer | C198: NUES kap 7 Valgkomité
A199: =+A198+1 -> 101 | B199: • vedtektsbestemmelser og fullmakter som gir styret adgang til å beslutte at foretaket skal kjøpe tilbake eller utstede egne aksjer eller egenkapitalbevis | C199: NUES kap 4 Likebehandling av aksjeeiere og transaksjoner med nærstående
A200: =+A199+1 -> 102 | B200: • en beskrivelse av foretakets retningslinjer for likestilling og mangfold med hensyn til for eksempel alder, kjønn og utdannings- og yrkesbakgrunn for sammensetning av styre, ledelses- og kontrollorganer og deres eventuelle underutvalg.
... 74 more rows

Sheet Sheet1 (hidden)

Sheet Ikke besvart (hidden)
A1: Ikke besvart | B1: ='Sjekkliste for utfylling'!B2 -> 0 | C1: ='Sjekkliste for utfylling'!B3 -> 2023 | D1: Kommentarer
A2: 1 | B2: Er årsberetningen på norsk?
A3: 2 | B3: Er årsberetningen underskrevet av samtlige styremedlemmer og eventuelt av daglig leder, alternativt av deltakerne eller medlemmene hvis foretaket ikke har styre eller daglig leder?
A4: 3 | B4: Dersom en som skal underskrive har innvendinger mot årsregnskapet, har vedkommende underskrevet med påtegnet forbehold og gitt nærmere redegjørelse i selve årsberetningen?
A5: 4 | B5: Er årsberetningen avgitt innenfor lovens frist?
A6: 5 | B6: Gir årsberetningen et dekkende bilde av foretakets historiske og fremtidige utvikling, resultat og stilling?
A7: 6 | B7: Er årsberetningen skrevet så klart og presist som mulig, i et forståelig språk, og med en balansert omtale av positive og negative forhold i den grad det gis slik omtale?
A8: 7 | B8: Er det konsistens i behandlingen av samme forhold i årsberetningen og årsregnskapet?
A9: 8 | B9: Er det redegjort for forholdet dersom utviklingen ikke har vært i overensstemmelse med vesentlige utsagn i tidligere årsberetninger?
A10: 9 | B10: Er det lagt vekt på vurderinger av kvalitativ art som forklarer forholdstall og annen tallbasert informasjon?
A11: 10 | B11: Kan refererte regnskapsmessige tallstørrelser i årsberetningen gjenfinnes i årsregnskapet, eventuelt som avstemming i notene?
A12: 11 | B12: For morselskap som utarbeider konsernregnskap, dekker årsberetningen også virksomheten i konsernet?
A13: 12 | B13: Er det opplyst om arten av virksomheten?
A14: 13 | B14: Dersom det er flere typer virksomhet, er det gitt opplysninger om hver virksomhet?
A15: 14 | B15: Er det opplyst hvor virksomheten drives?
A16: 15 | B16: Ved flere filialer eller avdelinger, er det opplyst om hvor de ulike filialene / avdelingene drives?
A17: 16 | B17: Er det gitt en rettvisende oversikt over utvikling og resultat av foretakets virksomhet og dets stilling?
A18: 17 | B18: Er sentrale risikoer og usikkerhetsfaktorer beskrevet?
A19: 18 | B19: Er oversikten en balansert og fyllestgjørende analyse av utvikling, resultat og stilling?
A20: 19 | B20: I den grad det anses nødvendig for å forstå foretakets utvikling, resultat eller stilling, inneholder analysen både finansielle og, der det passer, ikke-finansielle sentrale og aktuelle resultatindikatorer, inkludert opplysninger om miljø- og personalsaker?
A21: 20 | B21: Inneholder årsberetningen, der det passer, henvisninger og tilleggsforklaringer til beløp presentert i årsregnskapet?
A22: 21 | B22: Er hovedfaktorene som påvirker virksomheten identifisert og forklart?
A23: 22 | B23: Er uvanlige eller ekstraordinære forhold belyst?
A24: 23 | B24: Er det opplyst om årsaken til og virkningen av vesentlige endringer i regnskapsprinsipper?
A25: 24 | B25: Er det opplyst om viktige hendelser etter balansedagen, samt redegjort for hendelsenes faktiske eller potensielle virkning på resultat og stilling?
A26: 25 | B26: Er endringer av overordnet og strategisk betydning, som for eksempel endring i satsningsområder og vesentlige strukturelle endringer, omtalt?
A27: 26 | B27: Er forventede virkninger av slike endringer kommentert?
A28: 27 | B28: Er det gitt en overordnet vurdering av total usikkerhet vedrørende foretakets regnskapsførte resultat og finansielle stilling?
A29: 28 | B29: Er viktige utviklingstrekk for virksomheten som er av betydning for å bedømme foretakets stilling og resultat drøftet, for eksempel: o Endringer i markedsforhold o Nye produkter og tjenester o Endringer i markedsandeler eller markedsposisjoner o Endringer i salgsmengde eller marginer o Endringer i valutakurser og relevante prisforhold o Restrukturering
A30: 29 | B30: Er det gitt opplysninger om eventuelle forsknings- og utviklingsaktiviteter?
A31: 30 | B31: Er spesielle forhold som i betydelig grad kan ha påvirket årsregnskapet kommentert, for eksempel: o Store enkelttransaksjoner o Kjøp eller salg av foretak, ny virksomhet, avviklet virksomhet og andre viktige anskaffelser og avhendelser o Realisering eller oppbygging av merverdier i for eksempel verdipapirer eller eiendom o Særlige poster
A32: 31 | B32: Er likviditetssituasjonen på balansedagen gjennomgått?
A33: 32 | B33: Dersom ikke tilsvarende informasjon gis gjennom øvrige deler av årsberetningen, er kontantstrømoppstillingen kommentert?
A34: 33 | B34: Er det redegjort for eventuelle vesentlige avvik mellom driftsresultat og kontantstrøm fra operasjonelle aktiviteter?
A35: 34 | B35: Dersom man anser det for å være sentral informasjon for brukerne, er det informert om skillet mellom investeringer som er gjort for å opprettholde kapasiteten og investeringer som er gjort for å øke kapasiteten / lønnsomheten?
A36: 35 | B36: Er det gitt en vurdering av sammenhengene mellom kontantstrømmene fra operasjonelle aktiviteter og investeringsaktiviteter, herunder evnen til egenfinansiering av investeringer?
A37: 36 | B37: Er det redegjort for formålet med og virkningen av større finansielle transaksjoner som er gjennomført fram til avleggelsen av årsberetningen?
A38: 37 | B38: Er det gitt er redegjørelse som gir grunnlag for å vurdere foretakets forventede økonomiske utvikling?
A39: 38 | B39: Er det gitt en vurdering av foretakets forventede økonomiske utvikling på et overordnet nivå, med angivelse av de viktigste forutsetninger som er lagt til grunn?
A40: 39 | B40: Har styret presisert at det normalt er betydelig usikkerhet knyttet til vurderinger av fremtidige forhold?
A41: 40 | B41: Er faktorer som kan ha betydning for fremtidige resultater drøftet?
A42: 41 | B42: Omfatter drøftelsen en identifisering av de vesentligste risiki for virksomheten?
A43: 42 | B43: Dersom det i tidligere beretninger er gitt opplysninger om fremtidig utvikling, er det informert om årets resultat er i samsvar med forventningen, og er eventuelle avvik begrunnet?
A44: 43 | B44: Er det gitt opplysninger om finansiell risiko som er av betydning for å bedømme foretakets eiendeler, gjeld, finansiell stilling og resultat?
A45: 44 | B45: Omfatter opplysningene mål og strategier som er fastsatt for styring av finansiell risiko, herunder strategien for sikring av hver hovedtype av planlagte transaksjoner der sikringsvurdering er benyttet?
A46: 45 | B46: Er det redegjort for foretakets eksponering mot markedsrisiko, kredittrisiko og likviditetsrisiko?
A47: 46 | B47: Dersom det foreligger brudd på vilkår og/eller forutsetninger for lån (covenants), eller det forventes at dette vil skje i neste regnskapsperiode, er det opplyst om hvilke spesifikke tiltak som vil bli eller har vært gjennomført for å rette opp forholdet?
A48: 47 | B48: Utvilsom fortsatt drift: Er det bekreftet at forutsetningen for fortsatt drift er til stede?
A49: 48 | B49: Usikker fortsatt drift: er det redegjort for usikkerheten om fortsatt drift?
A50: 49 | B50: Ved stor usikkerhet og tvil om fortsatt drift, er det opplyst om større poster i årsregnskapet som vil påvirkes dersom forutsetningen om fortsatt drift ikke legges til grunn for vurderingene?
A51: 50 | B51: Er virkningene, dersom det er mulig, kvantifisert?
A52: 51 | B52: Sannsynlig avvikling: Er det redegjort for hvordan virkelig verdi ved avvikling er beregnet dersom dette ikke fremgår i note til årsregnskapet?
A53: 52 | B53: Dersom styrets handleplikt etter asl/asal § 3-5 er inntrådt, er det opplyst om det er besluttet eller satt i verk tiltak for å sikre selskapets drift, eventuelt å oppløse selskapet?
A54: 54 | B54: Dersom foretaket har valgt å ta inn opplysningen om arbeidsmiljø og ytre miljø i separat redegjørelse om samfunnsansvar, er det opplyst særskilt om dette i årsberetning?
A55: 55 | B55: Er det gitt opplysninger om arbeidsmiljøet?
A56: 56 | B56: Er det gitt en oversikt over eventuelle iverksatte tiltak som har betydning for arbeidsmiljøet?
A57: 57 | B57: Er det opplyst om eventuelle skader, herunder både personskader og materielle skader?
A58: 58 | B58: Er det opplyst om skader som gjelder både ulykker og andre skader, for eksempel slitasje- og belastningsskader?
A59: 59 | B59: Er det opplyst om eventuelle ulykker, herunder både personskader og materielle skader?
A60: 60 | B60: Dersom foretaket har minst 5 årsverk, er det opplyst om sykefravær?
A61: 61 | B61: Dersom foretaket ikke har ansatte, og således ikke noe arbeidsmiljø, er dette opplyst?
A62: 62 | B62: Er det redegjort for den faktiske tilstanden når det gjelder kjønnslikestilling i virksomheten?
A63: 63 | B63: Er det redegjort for hva foretaket gjør for å oppfylle aktivitetsplikten etter likestillings- og diskrimineringsloven § 26?
A64: 64 | B64: Er redegjørelsen utformet slik at enkeltansattes personlige forhold ikke røpes?
A65: 65 | B65: Fremgår resultatene av lønnskartleggingen av redegjørelsen i anonymisert form?
A66: 66 | B66: Er det opplyst om forhold som kan medføre en ikke ubetydelig påvirkning av det ytre miljø?
A67: 67 | B67: Er det redegjort for hvilke miljøvirkninger de enkelte forhold gir eller kan gi?
A68: 68 | B68: Er det redegjort for hvilke tiltak, både forebyggende og opprettende, som er eller planleggs iverksatt for å forhindre eller redusere negative miljøvirkninger?
A69: 69 | B69: Dersom foretaket ikke forurenser det ytre miljø i særlig grad, er det spesifikt opplyst at man ikke forurenser det ytre miljø?
A70: 70 | B70: Er det gitt opplysninger om det er tegnet forsikring for styrets medlemmer og daglig leder for deres mulige ansvar overfor foretaket og tredjepersoner, og i tilfelle om forsikringsdekningen?
A71: 71 | B71: Hvis det ikke er tegnet forsikring for styremedlemmenes og daglig leders mulige ansvar overfor foretaket og tredjepersoner, er det opplyst om dette?
A72: 72 | B72: Dersom selskapet er pliktig til å avgi redegjørelse etter åpenhetsloven, er det opplyst i årsberetningen om hvor redegjørelsen er tilgjengelig?

Sheet JA-svar (hidden)
C1: =COUNTIF(C2:C3,"=1")-D1 -> 0 | D1: =SUM(D2:D327) -> 0 | E1: JA-svar | F1: ='Sjekkliste for utfylling'!B2 -> 0 | G1: ='Sjekkliste for utfylling'!B3 -> 2023 | H1: ='Sjekkliste for utfylling'!C3 -> 0
A2: ='Sjekkliste for utfylling'!A274 -> 140 | B2: =IF('Sjekkliste for utfylling'!E274<>"",1,0) -> 0 | C2: =SUM(B2:B2) -> 0 | E2: =IF($C2=1,'Sjekkliste for utfylling'!A274,"") ->  | F2: =IF($C2=1,'Sjekkliste for utfylling'!B274,"") ->  | H2: =IF(C2=1,'Sjekkliste for utfylling'!H274," ") -> 
A3: ='Sjekkliste for utfylling'!A227 -> 0 | B3: =IF('Sjekkliste for utfylling'!E227<>"",1,0) -> 0 | C3: 0 | E3: =IF($C3=1,'Sjekkliste for utfylling'!A227,"") ->  | F3: =IF($C3=1,'Sjekkliste for utfylling'!B227,"") ->  | H3: =IF(C3=1,'Sjekkliste for utfylling'!H227," ") -> 
A4: ='Sjekkliste for utfylling'!A13 -> 1 | B4: =IF('Sjekkliste for utfylling'!E13<>"",1,0) -> 0 | C4: 0 | E4: =IF($C4=1,'Sjekkliste for utfylling'!A13,"") ->  | F4: =IF($C4=1,'Sjekkliste for utfylling'!B13,"") ->  | H4: =IF(C4=1,'Sjekkliste for utfylling'!H13," ") -> 
A5: ='Sjekkliste for utfylling'!A14 -> 2 | B5: =IF('Sjekkliste for utfylling'!E14<>"",1,0) -> 0 | C5: 0 | E5: =IF($C5=1,'Sjekkliste for utfylling'!A14,"") ->  | F5: =IF($C5=1,'Sjekkliste for utfylling'!B14,"") ->  | H5: =IF(C5=1,'Sjekkliste for utfylling'!H14," ") -> 
A6: ='Sjekkliste for utfylling'!A15 -> 3 | B6: =IF('Sjekkliste for utfylling'!E15<>"",1,0) -> 0 | C6: 0 | E6: =IF($C6=1,'Sjekkliste for utfylling'!A15,"") ->  | F6: =IF($C6=1,'Sjekkliste for utfylling'!B15,"") ->  | H6: =IF(C6=1,'Sjekkliste for utfylling'!H15," ") -> 
A7: ='Sjekkliste for utfylling'!A17 -> 4 | B7: =IF('Sjekkliste for utfylling'!E17<>"",1,0) -> 0 | C7: 0 | E7: =IF($C7=1,'Sjekkliste for utfylling'!A17,"") ->  | F7: =IF($C7=1,'Sjekkliste for utfylling'!B17,"") ->  | H7: =IF(C7=1,'Sjekkliste for utfylling'!H17," ") -> 
A8: ='Sjekkliste for utfylling'!A20 -> 5 | B8: =IF('Sjekkliste for utfylling'!E20<>"",1,0) -> 0 | C8: 0 | E8: =IF($C8=1,'Sjekkliste for utfylling'!A20,"") ->  | F8: =IF($C8=1,'Sjekkliste for utfylling'!B20,"") ->  | H8: =IF(C8=1,'Sjekkliste for utfylling'!H20," ") -> 
A9: ='Sjekkliste for utfylling'!A21 -> 6 | B9: =IF('Sjekkliste for utfylling'!E21<>"",1,0) -> 0 | C9: 0 | E9: =IF($C9=1,'Sjekkliste for utfylling'!A21,"") ->  | F9: =IF($C9=1,'Sjekkliste for utfylling'!B21,"") ->  | H9: =IF(C9=1,'Sjekkliste for utfylling'!H21," ") -> 
A10: ='Sjekkliste for utfylling'!A22 -> 7 | B10: =IF('Sjekkliste for utfylling'!E22<>"",1,0) -> 0 | C10: 0 | E10: =IF($C10=1,'Sjekkliste for utfylling'!A22,"") ->  | F10: =IF($C10=1,'Sjekkliste for utfylling'!B22,"") ->  | H10: =IF(C10=1,'Sjekkliste for utfylling'!H22," ") -> 
A11: ='Sjekkliste for utfylling'!A23 -> 8 | B11: =IF('Sjekkliste for utfylling'!E23<>"",1,0) -> 0 | C11: 0 | E11: =IF($C11=1,'Sjekkliste for utfylling'!A23,"") ->  | F11: =IF($C11=1,'Sjekkliste for utfylling'!B23,"") ->  | H11: =IF(C11=1,'Sjekkliste for utfylling'!H23," ") -> 
A12: ='Sjekkliste for utfylling'!A24 -> 9 | B12: =IF('Sjekkliste for utfylling'!E24<>"",1,0) -> 0 | C12: 0 | E12: =IF($C12=1,'Sjekkliste for utfylling'!A24,"") ->  | F12: =IF($C12=1,'Sjekkliste for utfylling'!B24,"") ->  | H12: =IF(C12=1,'Sjekkliste for utfylling'!H24," ") -> 
A13: ='Sjekkliste for utfylling'!A25 -> 10 | B13: =IF('Sjekkliste for utfylling'!E25<>"",1,0) -> 0 | C13: 0 | E13: =IF($C13=1,'Sjekkliste for utfylling'!A25,"") ->  | F13: =IF($C13=1,'Sjekkliste for utfylling'!B25,"") ->  | H13: =IF(C13=1,'Sjekkliste for utfylling'!H25," ") -> 
A14: ='Sjekkliste for utfylling'!A26 -> 11 | B14: =IF('Sjekkliste for utfylling'!E26<>"",1,0) -> 0 | C14: 0 | E14: =IF($C14=1,'Sjekkliste for utfylling'!A26,"") ->  | F14: =IF($C14=1,'Sjekkliste for utfylling'!B26,"") ->  | H14: =IF(C14=1,'Sjekkliste for utfylling'!H26," ") -> 
A15: ='Sjekkliste for utfylling'!A30 -> 12 | B15: =IF('Sjekkliste for utfylling'!E30<>"",1,0) -> 0 | C15: 0 | E15: =IF($C15=1,'Sjekkliste for utfylling'!A30,"") ->  | F15: =IF($C15=1,'Sjekkliste for utfylling'!B30,"") ->  | H15: =IF(C15=1,'Sjekkliste for utfylling'!H30," ") -> 
A16: ='Sjekkliste for utfylling'!A31 -> 13 | B16: =IF('Sjekkliste for utfylling'!E31<>"",1,0) -> 0 | C16: 0 | E16: =IF($C16=1,'Sjekkliste for utfylling'!A31,"") ->  | F16: =IF($C16=1,'Sjekkliste for utfylling'!B31,"") ->  | H16: =IF(C16=1,'Sjekkliste for utfylling'!H31," ") -> 
A17: ='Sjekkliste for utfylling'!A32 -> 14 | B17: =IF('Sjekkliste for utfylling'!E32<>"",1,0) -> 0 | C17: 0 | E17: =IF($C17=1,'Sjekkliste for utfylling'!A32,"") ->  | F17: =IF($C17=1,'Sjekkliste for utfylling'!B32,"") ->  | H17: =IF(C17=1,'Sjekkliste for utfylling'!H32," ") -> 
A18: ='Sjekkliste for utfylling'!A33 -> 15 | B18: =IF('Sjekkliste for utfylling'!E33<>"",1,0) -> 0 | C18: 0 | E18: =IF($C18=1,'Sjekkliste for utfylling'!A33,"") ->  | F18: =IF($C18=1,'Sjekkliste for utfylling'!B33,"") ->  | H18: =IF(C18=1,'Sjekkliste for utfylling'!H33," ") -> 
A19: ='Sjekkliste for utfylling'!A38 -> 16 | B19: =IF('Sjekkliste for utfylling'!E38<>"",1,0) -> 0 | C19: 0 | E19: =IF($C19=1,'Sjekkliste for utfylling'!A38,"") ->  | F19: =IF($C19=1,'Sjekkliste for utfylling'!B38,"") ->  | H19: =IF(C19=1,'Sjekkliste for utfylling'!H38," ") -> 
A20: ='Sjekkliste for utfylling'!A39 -> 17 | B20: =IF('Sjekkliste for utfylling'!E39<>"",1,0) -> 0 | C20: 0 | E20: =IF($C20=1,'Sjekkliste for utfylling'!A39,"") ->  | F20: =IF($C20=1,'Sjekkliste for utfylling'!B39,"") ->  | H20: =IF(C20=1,'Sjekkliste for utfylling'!H39," ") -> 
A21: ='Sjekkliste for utfylling'!A40 -> 18 | B21: =IF('Sjekkliste for utfylling'!E40<>"",1,0) -> 0 | C21: 0 | E21: =IF($C21=1,'Sjekkliste for utfylling'!A40,"") ->  | F21: =IF($C21=1,'Sjekkliste for utfylling'!B40,"") ->  | H21: =IF(C21=1,'Sjekkliste for utfylling'!H40," ") -> 
A22: ='Sjekkliste for utfylling'!A41 -> 19 | B22: =IF('Sjekkliste for utfylling'!E41<>"",1,0) -> 0 | C22: 0 | E22: =IF($C22=1,'Sjekkliste for utfylling'!A41,"") ->  | F22: =IF($C22=1,'Sjekkliste for utfylling'!B41,"") ->  | H22: =IF(C22=1,'Sjekkliste for utfylling'!H41," ") -> 
A23: ='Sjekkliste for utfylling'!A42 -> 20 | B23: =IF('Sjekkliste for utfylling'!E42<>"",1,0) -> 0 | C23: 0 | E23: =IF($C23=1,'Sjekkliste for utfylling'!A42,"") ->  | F23: =IF($C23=1,'Sjekkliste for utfylling'!B42,"") ->  | H23: =IF(C23=1,'Sjekkliste for utfylling'!H42," ") -> 
A24: ='Sjekkliste for utfylling'!A43 -> 21 | B24: =IF('Sjekkliste for utfylling'!E43<>"",1,0) -> 0 | C24: 0 | E24: =IF($C24=1,'Sjekkliste for utfylling'!A43,"") ->  | F24: =IF($C24=1,'Sjekkliste for utfylling'!B43,"") ->  | H24: =IF(C24=1,'Sjekkliste for utfylling'!H43," ") -> 
A25: ='Sjekkliste for utfylling'!A44 -> 22 | B25: =IF('Sjekkliste for utfylling'!E44<>"",1,0) -> 0 | C25: 0 | E25: =IF($C25=1,'Sjekkliste for utfylling'!A44,"") ->  | F25: =IF($C25=1,'Sjekkliste for utfylling'!B44,"") ->  | H25: =IF(C25=1,'Sjekkliste for utfylling'!H44," ") -> 
A26: ='Sjekkliste for utfylling'!A45 -> 23 | B26: =IF('Sjekkliste for utfylling'!E45<>"",1,0) -> 0 | C26: 0 | E26: =IF($C26=1,'Sjekkliste for utfylling'!A45,"") ->  | F26: =IF($C26=1,'Sjekkliste for utfylling'!B45,"") ->  | H26: =IF(C26=1,'Sjekkliste for utfylling'!H45," ") -> 
A27: ='Sjekkliste for utfylling'!A46 -> 24 | B27: =IF('Sjekkliste for utfylling'!E46<>"",1,0) -> 0 | C27: 0 | E27: =IF($C27=1,'Sjekkliste for utfylling'!A46,"") ->  | F27: =IF($C27=1,'Sjekkliste for utfylling'!B46,"") ->  | H27: =IF(C27=1,'Sjekkliste for utfylling'!H46," ") -> 
A28: ='Sjekkliste for utfylling'!A47 -> 25 | B28: =IF('Sjekkliste for utfylling'!E47<>"",1,0) -> 0 | C28: 0 | E28: =IF($C28=1,'Sjekkliste for utfylling'!A47,"") ->  | F28: =IF($C28=1,'Sjekkliste for utfylling'!B47,"") ->  | H28: =IF(C28=1,'Sjekkliste for utfylling'!H47," ") -> 
A29: ='Sjekkliste for utfylling'!A48 -> 26 | B29: =IF('Sjekkliste for utfylling'!E48<>"",1,0) -> 0 | C29: 0 | E29: =IF($C29=1,'Sjekkliste for utfylling'!A48,"") ->  | F29: =IF($C29=1,'Sjekkliste for utfylling'!B48,"") ->  | H29: =IF(C29=1,'Sjekkliste for utfylling'!H48," ") -> 
A30: ='Sjekkliste for utfylling'!A49 -> 27 | B30: =IF('Sjekkliste for utfylling'!E49<>"",1,0) -> 0 | C30: 0 | E30: =IF($C30=1,'Sjekkliste for utfylling'!A49,"") ->  | F30: =IF($C30=1,'Sjekkliste for utfylling'!B49,"") ->  | H30: =IF(C30=1,'Sjekkliste for utfylling'!H49," ") -> 
A31: ='Sjekkliste for utfylling'!A51 -> 28 | B31: =IF('Sjekkliste for utfylling'!E51<>"",1,0) -> 0 | C31: 0 | E31: =IF($C31=1,'Sjekkliste for utfylling'!A51,"") ->  | F31: =IF($C31=1,'Sjekkliste for utfylling'!B51,"") ->  | H31: =IF(C31=1,'Sjekkliste for utfylling'!H51," ") -> 
A32: ='Sjekkliste for utfylling'!A52 -> 29 | B32: =IF('Sjekkliste for utfylling'!E52<>"",1,0) -> 0 | C32: 0 | E32: =IF($C32=1,'Sjekkliste for utfylling'!A52,"") ->  | F32: =IF($C32=1,'Sjekkliste for utfylling'!B52,"") ->  | H32: =IF(C32=1,'Sjekkliste for utfylling'!H52," ") -> 
A33: ='Sjekkliste for utfylling'!A54 -> 30 | B33: =IF('Sjekkliste for utfylling'!E54<>"",1,0) -> 0 | C33: 0 | E33: =IF($C33=1,'Sjekkliste for utfylling'!A54,"") ->  | F33: =IF($C33=1,'Sjekkliste for utfylling'!B54,"") ->  | H33: =IF(C33=1,'Sjekkliste for utfylling'!H54," ") -> 
A34: ='Sjekkliste for utfylling'!A58 -> 31 | B34: =IF('Sjekkliste for utfylling'!E58<>"",1,0) -> 0 | C34: =SUM(B34:B34) -> 0 | E34: =IF($C34=1,'Sjekkliste for utfylling'!A58,"") ->  | F34: =IF($C34=1,'Sjekkliste for utfylling'!B58,"") ->  | H34: =IF(C34=1,'Sjekkliste for utfylling'!H58," ") -> 
A35: ='Sjekkliste for utfylling'!A62 -> 32 | B35: =IF('Sjekkliste for utfylling'!E62<>"",1,0) -> 0 | C35: 0 | E35: =IF($C35=1,'Sjekkliste for utfylling'!A62,"") ->  | F35: =IF($C35=1,'Sjekkliste for utfylling'!B62,"") ->  | H35: =IF(C35=1,'Sjekkliste for utfylling'!H62," ") -> 
A36: ='Sjekkliste for utfylling'!A63 -> 33 | B36: =IF('Sjekkliste for utfylling'!E63<>"",1,0) -> 0 | C36: 0 | E36: =IF($C36=1,'Sjekkliste for utfylling'!A63,"") ->  | F36: =IF($C36=1,'Sjekkliste for utfylling'!B63,"") ->  | H36: =IF(C36=1,'Sjekkliste for utfylling'!H63," ") -> 
A37: ='Sjekkliste for utfylling'!A64 -> 34 | B37: =IF('Sjekkliste for utfylling'!E64<>"",1,0) -> 0 | C37: 0 | E37: =IF($C37=1,'Sjekkliste for utfylling'!A64,"") ->  | F37: =IF($C37=1,'Sjekkliste for utfylling'!B64,"") ->  | H37: =IF(C37=1,'Sjekkliste for utfylling'!H64," ") -> 
A38: ='Sjekkliste for utfylling'!A65 -> 35 | B38: =IF('Sjekkliste for utfylling'!E65<>"",1,0) -> 0 | C38: 0 | E38: =IF($C38=1,'Sjekkliste for utfylling'!A65,"") ->  | F38: =IF($C38=1,'Sjekkliste for utfylling'!B65,"") ->  | H38: =IF(C38=1,'Sjekkliste for utfylling'!H65," ") -> 
A39: ='Sjekkliste for utfylling'!A66 -> 36 | B39: =IF('Sjekkliste for utfylling'!E66<>"",1,0) -> 0 | C39: 0 | E39: =IF($C39=1,'Sjekkliste for utfylling'!A66,"") ->  | F39: =IF($C39=1,'Sjekkliste for utfylling'!B66,"") ->  | H39: =IF(C39=1,'Sjekkliste for utfylling'!H66," ") -> 
A40: ='Sjekkliste for utfylling'!A73 -> 37 | B40: =IF('Sjekkliste for utfylling'!E73<>"",1,0) -> 0 | C40: 0 | E40: =IF($C40=1,'Sjekkliste for utfylling'!A73,"") ->  | F40: =IF($C40=1,'Sjekkliste for utfylling'!B73,"") ->  | H40: =IF(C40=1,'Sjekkliste for utfylling'!H73," ") -> 
A41: ='Sjekkliste for utfylling'!A74 -> 38 | B41: =IF('Sjekkliste for utfylling'!E74<>"",1,0) -> 0 | C41: 0 | E41: =IF($C41=1,'Sjekkliste for utfylling'!A74,"") ->  | F41: =IF($C41=1,'Sjekkliste for utfylling'!B74,"") ->  | H41: =IF(C41=1,'Sjekkliste for utfylling'!H74," ") -> 
A42: ='Sjekkliste for utfylling'!A75 -> 39 | B42: =IF('Sjekkliste for utfylling'!E75<>"",1,0) -> 0 | C42: 0 | E42: =IF($C42=1,'Sjekkliste for utfylling'!A75,"") ->  | F42: =IF($C42=1,'Sjekkliste for utfylling'!B75,"") ->  | H42: =IF(C42=1,'Sjekkliste for utfylling'!H75," ") -> 
A43: ='Sjekkliste for utfylling'!A76 -> 40 | B43: =IF('Sjekkliste for utfylling'!E76<>"",1,0) -> 0 | C43: 0 | E43: =IF($C43=1,'Sjekkliste for utfylling'!A76,"") ->  | F43: =IF($C43=1,'Sjekkliste for utfylling'!B76,"") ->  | H43: =IF(C43=1,'Sjekkliste for utfylling'!H76," ") -> 
A44: ='Sjekkliste for utfylling'!A77 -> 41 | B44: =IF('Sjekkliste for utfylling'!E77<>"",1,0) -> 0 | C44: 0 | E44: =IF($C44=1,'Sjekkliste for utfylling'!A77,"") ->  | F44: =IF($C44=1,'Sjekkliste for utfylling'!B77,"") ->  | H44: =IF(C44=1,'Sjekkliste for utfylling'!H77," ") -> 
A45: ='Sjekkliste for utfylling'!A79 -> 42 | B45: =IF('Sjekkliste for utfylling'!E79<>"",1,0) -> 0 | C45: 0 | E45: =IF($C45=1,'Sjekkliste for utfylling'!A79,"") ->  | F45: =IF($C45=1,'Sjekkliste for utfylling'!B79,"") ->  | H45: =IF(C45=1,'Sjekkliste for utfylling'!H79," ") -> 
A46: ='Sjekkliste for utfylling'!A82 -> 43 | B46: =IF('Sjekkliste for utfylling'!E82<>"",1,0) -> 0 | C46: 0 | E46: =IF($C46=1,'Sjekkliste for utfylling'!A82,"") ->  | F46: =IF($C46=1,'Sjekkliste for utfylling'!B82,"") ->  | H46: =IF(C46=1,'Sjekkliste for utfylling'!H82," ") -> 
A47: ='Sjekkliste for utfylling'!A83 -> 44 | B47: =IF('Sjekkliste for utfylling'!E83<>"",1,0) -> 0 | C47: 0 | E47: =IF($C47=1,'Sjekkliste for utfylling'!A83,"") ->  | F47: =IF($C47=1,'Sjekkliste for utfylling'!B83,"") ->  | H47: =IF(C47=1,'Sjekkliste for utfylling'!H83," ") -> 
A48: ='Sjekkliste for utfylling'!A85 -> 45 | B48: =IF('Sjekkliste for utfylling'!E85<>"",1,0) -> 0 | C48: 0 | E48: =IF($C48=1,'Sjekkliste for utfylling'!A85,"") ->  | F48: =IF($C48=1,'Sjekkliste for utfylling'!B85,"") ->  | H48: =IF(C48=1,'Sjekkliste for utfylling'!H85," ") -> 
A49: ='Sjekkliste for utfylling'!A86 -> 46 | B49: =IF('Sjekkliste for utfylling'!E86<>"",1,0) -> 0 | C49: 0 | E49: =IF($C49=1,'Sjekkliste for utfylling'!A86,"") ->  | F49: =IF($C49=1,'Sjekkliste for utfylling'!B86,"") ->  | H49: =IF(C49=1,'Sjekkliste for utfylling'!H86," ") -> 
A50: ='Sjekkliste for utfylling'!A91 -> 47 | B50: =IF('Sjekkliste for utfylling'!E91<>"",1,0) -> 0 | C50: 0 | E50: =IF($C50=1,'Sjekkliste for utfylling'!A91,"") ->  | F50: =IF($C50=1,'Sjekkliste for utfylling'!B91,"") ->  | H50: =IF(C50=1,'Sjekkliste for utfylling'!H91," ") -> 
A51: ='Sjekkliste for utfylling'!A93 -> 48 | B51: =IF('Sjekkliste for utfylling'!E93<>"",1,0) -> 0 | C51: 0 | E51: =IF($C51=1,'Sjekkliste for utfylling'!A93,"") ->  | F51: =IF($C51=1,'Sjekkliste for utfylling'!B93,"") ->  | H51: =IF(C51=1,'Sjekkliste for utfylling'!H93," ") -> 
A52: ='Sjekkliste for utfylling'!A95 -> 49 | B52: =IF('Sjekkliste for utfylling'!E95<>"",1,0) -> 0 | C52: 0 | E52: =IF($C52=1,'Sjekkliste for utfylling'!A95,"") ->  | F52: =IF($C52=1,'Sjekkliste for utfylling'!B95,"") ->  | H52: =IF(C52=1,'Sjekkliste for utfylling'!H95," ") -> 
A53: ='Sjekkliste for utfylling'!A96 -> 50 | B53: =IF('Sjekkliste for utfylling'!E96<>"",1,0) -> 0 | C53: 0 | E53: =IF($C53=1,'Sjekkliste for utfylling'!A96,"") ->  | F53: =IF($C53=1,'Sjekkliste for utfylling'!B96,"") ->  | H53: =IF(C53=1,'Sjekkliste for utfylling'!H96," ") -> 
A54: ='Sjekkliste for utfylling'!A97 -> 51 | B54: =IF('Sjekkliste for utfylling'!E97<>"",1,0) -> 0 | C54: 0 | E54: =IF($C54=1,'Sjekkliste for utfylling'!A97,"") ->  | F54: =IF($C54=1,'Sjekkliste for utfylling'!B97,"") ->  | H54: =IF(C54=1,'Sjekkliste for utfylling'!H97," ") -> 
A55: ='Sjekkliste for utfylling'!A99 -> 52 | B55: =IF('Sjekkliste for utfylling'!E99<>"",1,0) -> 0 | C55: 0 | E55: =IF($C55=1,'Sjekkliste for utfylling'!A99,"") ->  | F55: =IF($C55=1,'Sjekkliste for utfylling'!B99,"") ->  | H55: =IF(C55=1,'Sjekkliste for utfylling'!H99," ") -> 
A56: ='Sjekkliste for utfylling'!A103 -> 53 | B56: =IF('Sjekkliste for utfylling'!E103<>"",1,0) -> 0 | C56: 0 | E56: =IF($C56=1,'Sjekkliste for utfylling'!A103,"") ->  | F56: =IF($C56=1,'Sjekkliste for utfylling'!B103,"") ->  | H56: =IF(C56=1,'Sjekkliste for utfylling'!H103," ") -> 
A57: ='Sjekkliste for utfylling'!A110 -> 54 | B57: =IF('Sjekkliste for utfylling'!E110<>"",1,0) -> 0 | C57: 0 | E57: =IF($C57=1,'Sjekkliste for utfylling'!A110,"") ->  | F57: =IF($C57=1,'Sjekkliste for utfylling'!B110,"") ->  | H57: =IF(C57=1,'Sjekkliste for utfylling'!H110," ") -> 
A58: ='Sjekkliste for utfylling'!A114 -> 55 | B58: =IF('Sjekkliste for utfylling'!E114<>"",1,0) -> 0 | C58: 0 | E58: =IF($C58=1,'Sjekkliste for utfylling'!A114,"") ->  | F58: =IF($C58=1,'Sjekkliste for utfylling'!B114,"") ->  | H58: =IF(C58=1,'Sjekkliste for utfylling'!H114," ") -> 
A59: ='Sjekkliste for utfylling'!A115 -> 56 | B59: =IF('Sjekkliste for utfylling'!E115<>"",1,0) -> 0 | C59: 0 | E59: =IF($C59=1,'Sjekkliste for utfylling'!A115,"") ->  | F59: =IF($C59=1,'Sjekkliste for utfylling'!B115,"") ->  | H59: =IF(C59=1,'Sjekkliste for utfylling'!H115," ") -> 
A60: ='Sjekkliste for utfylling'!A116 -> 57 | B60: =IF('Sjekkliste for utfylling'!E116<>"",1,0) -> 0 | C60: 0 | E60: =IF($C60=1,'Sjekkliste for utfylling'!A116,"") ->  | F60: =IF($C60=1,'Sjekkliste for utfylling'!B116,"") ->  | H60: =IF(C60=1,'Sjekkliste for utfylling'!H116," ") -> 
A61: ='Sjekkliste for utfylling'!A117 -> 58 | B61: =IF('Sjekkliste for utfylling'!E117<>"",1,0) -> 0 | C61: 0 | E61: =IF($C61=1,'Sjekkliste for utfylling'!A117,"") ->  | F61: =IF($C61=1,'Sjekkliste for utfylling'!B117,"") ->  | H61: =IF(C61=1,'Sjekkliste for utfylling'!H117," ") -> 
A62: ='Sjekkliste for utfylling'!A118 -> 59 | B62: =IF('Sjekkliste for utfylling'!E118<>"",1,0) -> 0 | C62: 0 | E62: =IF($C62=1,'Sjekkliste for utfylling'!A118,"") ->  | F62: =IF($C62=1,'Sjekkliste for utfylling'!B118,"") ->  | H62: =IF(C62=1,'Sjekkliste for utfylling'!H118," ") -> 
A63: ='Sjekkliste for utfylling'!A119 -> 60 | B63: =IF('Sjekkliste for utfylling'!E119<>"",1,0) -> 0 | C63: 0 | E63: =IF($C63=1,'Sjekkliste for utfylling'!A119,"") ->  | F63: =IF($C63=1,'Sjekkliste for utfylling'!B119,"") ->  | H63: =IF(C63=1,'Sjekkliste for utfylling'!H119," ") -> 
A64: ='Sjekkliste for utfylling'!A120 -> 61 | B64: =IF('Sjekkliste for utfylling'!E120<>"",1,0) -> 0 | C64: 0 | E64: =IF($C64=1,'Sjekkliste for utfylling'!A120,"") ->  | F64: =IF($C64=1,'Sjekkliste for utfylling'!B120,"") ->  | H64: =IF(C64=1,'Sjekkliste for utfylling'!H120," ") -> 
A65: ='Sjekkliste for utfylling'!A126 -> 62 | B65: =IF('Sjekkliste for utfylling'!E126<>"",1,0) -> 0 | C65: 0 | E65: =IF($C65=1,'Sjekkliste for utfylling'!A126,"") ->  | F65: =IF($C65=1,'Sjekkliste for utfylling'!B126,"") ->  | H65: =IF(C65=1,'Sjekkliste for utfylling'!H126," ") -> 
A66: ='Sjekkliste for utfylling'!A128 -> 63 | B66: =IF('Sjekkliste for utfylling'!E128<>"",1,0) -> 0 | C66: =SUM(B66:B66) -> 0 | E66: =IF($C66=1,'Sjekkliste for utfylling'!A128,"") ->  | F66: =IF($C66=1,'Sjekkliste for utfylling'!B128,"") ->  | H66: =IF(C66=1,'Sjekkliste for utfylling'!H128," ") -> 
A67: ='Sjekkliste for utfylling'!A129 -> 64 | B67: =IF('Sjekkliste for utfylling'!E129<>"",1,0) -> 0 | C67: 0 | E67: =IF($C67=1,'Sjekkliste for utfylling'!A129,"") ->  | F67: =IF($C67=1,'Sjekkliste for utfylling'!B129,"") ->  | H67: =IF(C67=1,'Sjekkliste for utfylling'!H129," ") -> 
A68: ='Sjekkliste for utfylling'!A130 -> 65 | B68: =IF('Sjekkliste for utfylling'!E130<>"",1,0) -> 0 | C68: 0 | E68: =IF($C68=1,'Sjekkliste for utfylling'!A130,"") ->  | F68: =IF($C68=1,'Sjekkliste for utfylling'!B130,"") ->  | H68: =IF(C68=1,'Sjekkliste for utfylling'!H130," ") -> 
A69: ='Sjekkliste for utfylling'!A135 -> 66 | B69: =IF('Sjekkliste for utfylling'!E135<>"",1,0) -> 0 | C69: 0 | E69: =IF($C69=1,'Sjekkliste for utfylling'!A135,"") ->  | F69: =IF($C69=1,'Sjekkliste for utfylling'!B135,"") ->  | H69: =IF(C69=1,'Sjekkliste for utfylling'!H135," ") -> 
A70: ='Sjekkliste for utfylling'!A136 -> 67 | B70: =IF('Sjekkliste for utfylling'!E136<>"",1,0) -> 0 | C70: 0 | E70: =IF($C70=1,'Sjekkliste for utfylling'!A136,"") ->  | F70: =IF($C70=1,'Sjekkliste for utfylling'!B136,"") ->  | H70: =IF(C70=1,'Sjekkliste for utfylling'!H136," ") -> 
A71: ='Sjekkliste for utfylling'!A137 -> 68 | B71: =IF('Sjekkliste for utfylling'!E137<>"",1,0) -> 0 | C71: 0 | E71: =IF($C71=1,'Sjekkliste for utfylling'!A137,"") ->  | F71: =IF($C71=1,'Sjekkliste for utfylling'!B137,"") ->  | H71: =IF(C71=1,'Sjekkliste for utfylling'!H137," ") -> 
A72: ='Sjekkliste for utfylling'!A138 -> 69 | B72: =IF('Sjekkliste for utfylling'!E138<>"",1,0) -> 0 | C72: 0 | E72: =IF($C72=1,'Sjekkliste for utfylling'!A138,"") ->  | F72: =IF($C72=1,'Sjekkliste for utfylling'!B138,"") ->  | H72: =IF(C72=1,'Sjekkliste for utfylling'!H138," ") -> 
A73: ='Sjekkliste for utfylling'!A140 -> 70 | B73: =IF('Sjekkliste for utfylling'!E140<>"",1,0) -> 0 | C73: 0 | E73: =IF($C73=1,'Sjekkliste for utfylling'!A140,"") ->  | F73: =IF($C73=1,'Sjekkliste for utfylling'!B140,"") ->  | H73: =IF(C73=1,'Sjekkliste for utfylling'!H140," ") -> 
A74: ='Sjekkliste for utfylling'!A155 -> 73 | B74: =IF('Sjekkliste for utfylling'!E155<>"",1,0) -> 0 | C74: 0 | E74: =IF($C74=1,'Sjekkliste for utfylling'!A155,"") ->  | F74: =IF($C74=1,'Sjekkliste for utfylling'!B155,"") ->  | H74: =IF(C74=1,'Sjekkliste for utfylling'!H155," ") -> 
A75: ='Sjekkliste for utfylling'!A157 -> 74 | B75: =IF('Sjekkliste for utfylling'!E157<>"",1,0) -> 0 | C75: 0 | E75: =IF($C75=1,'Sjekkliste for utfylling'!A157,"") ->  | F75: =IF($C75=1,'Sjekkliste for utfylling'!B157,"") ->  | H75: =IF(C75=1,'Sjekkliste for utfylling'!H157," ") -> 
A76: ='Sjekkliste for utfylling'!A158 -> 75 | B76: =IF('Sjekkliste for utfylling'!E158<>"",1,0) -> 0 | C76: 0 | E76: =IF($C76=1,'Sjekkliste for utfylling'!A158,"") ->  | F76: =IF($C76=1,'Sjekkliste for utfylling'!B158,"") ->  | H76: =IF(C76=1,'Sjekkliste for utfylling'!H158," ") -> 
A77: ='Sjekkliste for utfylling'!A159 -> 76 | B77: =IF('Sjekkliste for utfylling'!E159<>"",1,0) -> 0 | C77: 0 | E77: =IF($C77=1,'Sjekkliste for utfylling'!A159,"") ->  | F77: =IF($C77=1,'Sjekkliste for utfylling'!B159,"") ->  | H77: =IF(C77=1,'Sjekkliste for utfylling'!H159," ") -> 
A78: ='Sjekkliste for utfylling'!A160 -> 77 | B78: =IF('Sjekkliste for utfylling'!E160<>"",1,0) -> 0 | C78: 0 | E78: =IF($C78=1,'Sjekkliste for utfylling'!A160,"") ->  | F78: =IF($C78=1,'Sjekkliste for utfylling'!B160,"") ->  | H78: =IF(C78=1,'Sjekkliste for utfylling'!H160," ") -> 
A79: ='Sjekkliste for utfylling'!A161 -> 78 | B79: =IF('Sjekkliste for utfylling'!E161<>"",1,0) -> 0 | C79: 0 | E79: =IF($C79=1,'Sjekkliste for utfylling'!A161,"") ->  | F79: =IF($C79=1,'Sjekkliste for utfylling'!B161,"") ->  | H79: =IF(C79=1,'Sjekkliste for utfylling'!H161," ") -> 
A80: ='Sjekkliste for utfylling'!A163 -> 79 | B80: =IF('Sjekkliste for utfylling'!E163<>"",1,0) -> 0 | C80: 0 | E80: =IF($C80=1,'Sjekkliste for utfylling'!A163,"") ->  | F80: =IF($C80=1,'Sjekkliste for utfylling'!B163,"") ->  | H80: =IF(C80=1,'Sjekkliste for utfylling'!H163," ") -> 
A81: ='Sjekkliste for utfylling'!A164 -> 80 | B81: =IF('Sjekkliste for utfylling'!E164<>"",1,0) -> 0 | C81: 0 | E81: =IF($C81=1,'Sjekkliste for utfylling'!A164,"") ->  | F81: =IF($C81=1,'Sjekkliste for utfylling'!B164,"") ->  | H81: =IF(C81=1,'Sjekkliste for utfylling'!H164," ") -> 
A82: ='Sjekkliste for utfylling'!A167 -> 81 | B82: =IF('Sjekkliste for utfylling'!E167<>"",1,0) -> 0 | C82: 0 | E82: =IF($C82=1,'Sjekkliste for utfylling'!A167,"") ->  | F82: =IF($C82=1,'Sjekkliste for utfylling'!B167,"") ->  | H82: =IF(C82=1,'Sjekkliste for utfylling'!H167," ") -> 
A83: ='Sjekkliste for utfylling'!A168 -> 82 | B83: =IF('Sjekkliste for utfylling'!E168<>"",1,0) -> 0 | C83: 0 | E83: =IF($C83=1,'Sjekkliste for utfylling'!A168,"") ->  | F83: =IF($C83=1,'Sjekkliste for utfylling'!B168,"") ->  | H83: =IF(C83=1,'Sjekkliste for utfylling'!H168," ") -> 
A84: ='Sjekkliste for utfylling'!A169 -> 83 | B84: =IF('Sjekkliste for utfylling'!E169<>"",1,0) -> 0 | C84: 0 | E84: =IF($C84=1,'Sjekkliste for utfylling'!A169,"") ->  | F84: =IF($C84=1,'Sjekkliste for utfylling'!B169,"") ->  | H84: =IF(C84=1,'Sjekkliste for utfylling'!H169," ") -> 
A85: ='Sjekkliste for utfylling'!A171 -> 84 | B85: =IF('Sjekkliste for utfylling'!E171<>"",1,0) -> 0 | C85: 0 | E85: =IF($C85=1,'Sjekkliste for utfylling'!A171,"") ->  | F85: =IF($C85=1,'Sjekkliste for utfylling'!B171,"") ->  | H85: =IF(C85=1,'Sjekkliste for utfylling'!H171," ") -> 
A86: ='Sjekkliste for utfylling'!A173 -> 85 | B86: =IF('Sjekkliste for utfylling'!E173<>"",1,0) -> 0 | C86: 0 | E86: =IF($C86=1,'Sjekkliste for utfylling'!A173,"") ->  | F86: =IF($C86=1,'Sjekkliste for utfylling'!B173,"") ->  | H86: =IF(C86=1,'Sjekkliste for utfylling'!H173," ") -> 
A87: ='Sjekkliste for utfylling'!A174 -> 86 | B87: =IF('Sjekkliste for utfylling'!E174<>"",1,0) -> 0 | C87: 0 | E87: =IF($C87=1,'Sjekkliste for utfylling'!A174,"") ->  | F87: =IF($C87=1,'Sjekkliste for utfylling'!B174,"") ->  | H87: =IF(C87=1,'Sjekkliste for utfylling'!H174," ") -> 
A88: ='Sjekkliste for utfylling'!A175 -> 87 | B88: =IF('Sjekkliste for utfylling'!E175<>"",1,0) -> 0 | C88: 0 | E88: =IF($C88=1,'Sjekkliste for utfylling'!A175,"") ->  | F88: =IF($C88=1,'Sjekkliste for utfylling'!B175,"") ->  | H88: =IF(C88=1,'Sjekkliste for utfylling'!H175," ") -> 
A89: ='Sjekkliste for utfylling'!A176 -> 88 | B89: =IF('Sjekkliste for utfylling'!E176<>"",1,0) -> 0 | C89: 0 | E89: =IF($C89=1,'Sjekkliste for utfylling'!A176,"") ->  | F89: =IF($C89=1,'Sjekkliste for utfylling'!B176,"") ->  | H89: =IF(C89=1,'Sjekkliste for utfylling'!H176," ") -> 
A90: ='Sjekkliste for utfylling'!A177 -> 89 | B90: =IF('Sjekkliste for utfylling'!E177<>"",1,0) -> 0 | C90: 0 | E90: =IF($C90=1,'Sjekkliste for utfylling'!A177,"") ->  | F90: =IF($C90=1,'Sjekkliste for utfylling'!B177,"") ->  | H90: =IF(C90=1,'Sjekkliste for utfylling'!H177," ") -> 
A91: ='Sjekkliste for utfylling'!A178 -> 90 | B91: =IF('Sjekkliste for utfylling'!E178<>"",1,0) -> 0 | C91: 0 | E91: =IF($C91=1,'Sjekkliste for utfylling'!A178,"") ->  | F91: =IF($C91=1,'Sjekkliste for utfylling'!B178,"") ->  | H91: =IF(C91=1,'Sjekkliste for utfylling'!H178," ") -> 
A92: ='Sjekkliste for utfylling'!A179 -> 91 | B92: =IF('Sjekkliste for utfylling'!E179<>"",1,0) -> 0 | C92: 0 | E92: =IF($C92=1,'Sjekkliste for utfylling'!A179,"") ->  | F92: =IF($C92=1,'Sjekkliste for utfylling'!B179,"") ->  | H92: =IF(C92=1,'Sjekkliste for utfylling'!H179," ") -> 
A93: ='Sjekkliste for utfylling'!A180 -> 92 | B93: =IF('Sjekkliste for utfylling'!E180<>"",1,0) -> 0 | C93: 0 | E93: =IF($C93=1,'Sjekkliste for utfylling'!A180,"") ->  | F93: =IF($C93=1,'Sjekkliste for utfylling'!B180,"") ->  | H93: =IF(C93=1,'Sjekkliste for utfylling'!H180," ") -> 
A94: ='Sjekkliste for utfylling'!A181 -> 93 | B94: =IF('Sjekkliste for utfylling'!E181<>"",1,0) -> 0 | C94: 0 | E94: =IF($C94=1,'Sjekkliste for utfylling'!A181,"") ->  | F94: =IF($C94=1,'Sjekkliste for utfylling'!B181,"") ->  | H94: =IF(C94=1,'Sjekkliste for utfylling'!H181," ") -> 
A95: ='Sjekkliste for utfylling'!A182 -> 94 | B95: =IF('Sjekkliste for utfylling'!E182<>"",1,0) -> 0 | C95: 0 | E95: =IF($C95=1,'Sjekkliste for utfylling'!A182,"") ->  | F95: =IF($C95=1,'Sjekkliste for utfylling'!B182,"") ->  | H95: =IF(C95=1,'Sjekkliste for utfylling'!H182," ") -> 
A96: ='Sjekkliste for utfylling'!A186 -> 95 | B96: =IF('Sjekkliste for utfylling'!E186<>"",1,0) -> 0 | C96: 0 | E96: =IF($C96=1,'Sjekkliste for utfylling'!A186,"") ->  | F96: =IF($C96=1,'Sjekkliste for utfylling'!B186,"") ->  | H96: =IF(C96=1,'Sjekkliste for utfylling'!H186," ") -> 
A97: ='Sjekkliste for utfylling'!A187 -> 96 | B97: =IF('Sjekkliste for utfylling'!E187<>"",1,0) -> 0 | C97: 0 | E97: =IF($C97=1,'Sjekkliste for utfylling'!A187,"") ->  | F97: =IF($C97=1,'Sjekkliste for utfylling'!B187,"") ->  | H97: =IF(C97=1,'Sjekkliste for utfylling'!H187," ") -> 
A98: ='Sjekkliste for utfylling'!A188 -> 97 | B98: =IF('Sjekkliste for utfylling'!E188<>"",1,0) -> 0 | C98: =SUM(B98:B98) -> 0 | E98: =IF($C98=1,'Sjekkliste for utfylling'!A188,"") ->  | F98: =IF($C98=1,'Sjekkliste for utfylling'!B188,"") ->  | H98: =IF(C98=1,'Sjekkliste for utfylling'!H188," ") -> 
A99: ='Sjekkliste for utfylling'!A189 -> 98 | B99: =IF('Sjekkliste for utfylling'!E189<>"",1,0) -> 0 | C99: 0 | E99: =IF($C99=1,'Sjekkliste for utfylling'!A189,"") ->  | F99: =IF($C99=1,'Sjekkliste for utfylling'!B189,"") ->  | H99: =IF(C99=1,'Sjekkliste for utfylling'!H189," ") -> 
A100: ='Sjekkliste for utfylling'!A197 -> 99 | B100: =IF('Sjekkliste for utfylling'!E197<>"",1,0) -> 0 | C100: 0 | E100: =IF($C100=1,'Sjekkliste for utfylling'!A197,"") ->  | F100: =IF($C100=1,'Sjekkliste for utfylling'!B197,"") ->  | H100: =IF(C100=1,'Sjekkliste for utfylling'!H197," ") -> 
A101: ='Sjekkliste for utfylling'!A198 -> 100 | B101: =IF('Sjekkliste for utfylling'!E198<>"",1,0) -> 0 | C101: 0 | E101: =IF($C101=1,'Sjekkliste for utfylling'!A198,"") ->  | F101: =IF($C101=1,'Sjekkliste for utfylling'!B198,"") ->  | H101: =IF(C101=1,'Sjekkliste for utfylling'!H198," ") -> 
A102: ='Sjekkliste for utfylling'!A199 -> 101 | B102: =IF('Sjekkliste for utfylling'!E199<>"",1,0) -> 0 | C102: 0 | E102: =IF($C102=1,'Sjekkliste for utfylling'!A199,"") ->  | F102: =IF($C102=1,'Sjekkliste for utfylling'!B199,"") ->  | H102: =IF(C102=1,'Sjekkliste for utfylling'!H199," ") -> 
A103: ='Sjekkliste for utfylling'!A204 -> 105 | B103: =IF('Sjekkliste for utfylling'!E204<>"",1,0) -> 0 | C103: 0 | E103: =IF($C103=1,'Sjekkliste for utfylling'!A204,"") ->  | F103: =IF($C103=1,'Sjekkliste for utfylling'!B204,"") ->  | H103: =IF(C103=1,'Sjekkliste for utfylling'!H204," ") -> 
A104: ='Sjekkliste for utfylling'!A205 -> 106 | B104: =IF('Sjekkliste for utfylling'!E205<>"",1,0) -> 0 | C104: 0 | E104: =IF($C104=1,'Sjekkliste for utfylling'!A205,"") ->  | F104: =IF($C104=1,'Sjekkliste for utfylling'!B205,"") ->  | H104: =IF(C104=1,'Sjekkliste for utfylling'!H205," ") -> 
A105: ='Sjekkliste for utfylling'!A206 -> 107 | B105: =IF('Sjekkliste for utfylling'!E206<>"",1,0) -> 0 | C105: 0 | E105: =IF($C105=1,'Sjekkliste for utfylling'!A206,"") ->  | F105: =IF($C105=1,'Sjekkliste for utfylling'!B206,"") ->  | H105: =IF(C105=1,'Sjekkliste for utfylling'!H206," ") -> 
A106: ='Sjekkliste for utfylling'!A207 -> 108 | B106: =IF('Sjekkliste for utfylling'!E207<>"",1,0) -> 0 | C106: 0 | E106: =IF($C106=1,'Sjekkliste for utfylling'!A207,"") ->  | F106: =IF($C106=1,'Sjekkliste for utfylling'!B207,"") ->  | H106: =IF(C106=1,'Sjekkliste for utfylling'!H207," ") -> 
A107: ='Sjekkliste for utfylling'!A208 -> 109 | B107: =IF('Sjekkliste for utfylling'!E208<>"",1,0) -> 0 | C107: 0 | E107: =IF($C107=1,'Sjekkliste for utfylling'!A208,"") ->  | F107: =IF($C107=1,'Sjekkliste for utfylling'!B208,"") ->  | H107: =IF(C107=1,'Sjekkliste for utfylling'!H208," ") -> 
A108: ='Sjekkliste for utfylling'!A216 -> 110 | B108: =IF('Sjekkliste for utfylling'!E216<>"",1,0) -> 0 | C108: 0 | E108: =IF($C108=1,'Sjekkliste for utfylling'!A216,"") ->  | F108: =IF($C108=1,'Sjekkliste for utfylling'!B216,"") ->  | H108: =IF(C108=1,'Sjekkliste for utfylling'!H216," ") -> 
A109: ='Sjekkliste for utfylling'!A219 -> 112 | B109: =IF('Sjekkliste for utfylling'!E219<>"",1,0) -> 0 | C109: 0 | E109: =IF($C109=1,'Sjekkliste for utfylling'!A219,"") ->  | F109: =IF($C109=1,'Sjekkliste for utfylling'!B219,"") ->  | H109: =IF(C109=1,'Sjekkliste for utfylling'!H219," ") -> 
A110: ='Sjekkliste for utfylling'!A221 -> 113 | B110: =IF('Sjekkliste for utfylling'!E221<>"",1,0) -> 0 | C110: 0 | E110: =IF($C110=1,'Sjekkliste for utfylling'!A221,"") ->  | F110: =IF($C110=1,'Sjekkliste for utfylling'!B221,"") ->  | H110: =IF(C110=1,'Sjekkliste for utfylling'!H221," ") -> 
A111: ='Sjekkliste for utfylling'!A223 -> 115 | B111: =IF('Sjekkliste for utfylling'!E223<>"",1,0) -> 0 | C111: 0 | E111: =IF($C111=1,'Sjekkliste for utfylling'!A223,"") ->  | F111: =IF($C111=1,'Sjekkliste for utfylling'!B223,"") ->  | H111: =IF(C111=1,'Sjekkliste for utfylling'!H223," ") -> 
A112: ='Sjekkliste for utfylling'!A225 -> 117 | B112: =IF('Sjekkliste for utfylling'!E225<>"",1,0) -> 0 | C112: 0 | E112: =IF($C112=1,'Sjekkliste for utfylling'!A225,"") ->  | F112: =IF($C112=1,'Sjekkliste for utfylling'!B225,"") ->  | H112: =IF(C112=1,'Sjekkliste for utfylling'!H225," ") -> 
A113: ='Sjekkliste for utfylling'!A228 -> 118 | B113: =IF('Sjekkliste for utfylling'!E228<>"",1,0) -> 0 | C113: 0 | E113: =IF($C113=1,'Sjekkliste for utfylling'!A228,"") ->  | F113: =IF($C113=1,'Sjekkliste for utfylling'!B228,"") ->  | H113: =IF(C113=1,'Sjekkliste for utfylling'!H228," ") -> 
A114: ='Sjekkliste for utfylling'!A240 -> 123 | B114: =IF('Sjekkliste for utfylling'!E240<>"",1,0) -> 0 | C114: 0 | E114: =IF($C114=1,'Sjekkliste for utfylling'!A240,"") ->  | F114: =IF($C114=1,'Sjekkliste for utfylling'!B240,"") ->  | H114: =IF(C114=1,'Sjekkliste for utfylling'!H240," ") -> 
A115: ='Sjekkliste for utfylling'!A244 -> 124 | B115: =IF('Sjekkliste for utfylling'!E244<>"",1,0) -> 0 | C115: 0 | E115: =IF($C115=1,'Sjekkliste for utfylling'!A244,"") ->  | F115: =IF($C115=1,'Sjekkliste for utfylling'!B244,"") ->  | H115: =IF(C115=1,'Sjekkliste for utfylling'!H244," ") -> 
A116: ='Sjekkliste for utfylling'!A245 -> 125 | B116: =IF('Sjekkliste for utfylling'!E245<>"",1,0) -> 0 | C116: 0 | E116: =IF($C116=1,'Sjekkliste for utfylling'!A245,"") ->  | F116: =IF($C116=1,'Sjekkliste for utfylling'!B245,"") ->  | H116: =IF(C116=1,'Sjekkliste for utfylling'!H245," ") -> 
A117: ='Sjekkliste for utfylling'!A246 -> 126 | B117: =IF('Sjekkliste for utfylling'!E246<>"",1,0) -> 0 | C117: 0 | E117: =IF($C117=1,'Sjekkliste for utfylling'!A246,"") ->  | F117: =IF($C117=1,'Sjekkliste for utfylling'!B246,"") ->  | H117: =IF(C117=1,'Sjekkliste for utfylling'!H246," ") -> 
A118: ='Sjekkliste for utfylling'!A249 -> 127 | B118: =IF('Sjekkliste for utfylling'!E249<>"",1,0) -> 0 | C118: 0 | E118: =IF($C118=1,'Sjekkliste for utfylling'!A249,"") ->  | F118: =IF($C118=1,'Sjekkliste for utfylling'!B249,"") ->  | H118: =IF(C118=1,'Sjekkliste for utfylling'!H249," ") -> 
A119: ='Sjekkliste for utfylling'!A251 -> 128 | B119: =IF('Sjekkliste for utfylling'!E251<>"",1,0) -> 0 | C119: 0 | E119: =IF($C119=1,'Sjekkliste for utfylling'!A251,"") ->  | F119: =IF($C119=1,'Sjekkliste for utfylling'!B251,"") ->  | H119: =IF(C119=1,'Sjekkliste for utfylling'!H251," ") -> 
A120: ='Sjekkliste for utfylling'!A253 -> 129 | B120: =IF('Sjekkliste for utfylling'!E253<>"",1,0) -> 0 | C120: 0 | E120: =IF($C120=1,'Sjekkliste for utfylling'!A253,"") ->  | F120: =IF($C120=1,'Sjekkliste for utfylling'!B253,"") ->  | H120: =IF(C120=1,'Sjekkliste for utfylling'!H253," ") -> 
A121: ='Sjekkliste for utfylling'!A257 -> 130 | B121: =IF('Sjekkliste for utfylling'!E257<>"",1,0) -> 0 | C121: 0 | E121: =IF($C121=1,'Sjekkliste for utfylling'!A257,"") ->  | F121: =IF($C121=1,'Sjekkliste for utfylling'!B257,"") ->  | H121: =IF(C121=1,'Sjekkliste for utfylling'!H257," ") -> 
A122: ='Sjekkliste for utfylling'!A258 -> 131 | B122: =IF('Sjekkliste for utfylling'!E258<>"",1,0) -> 0 | C122: 0 | E122: =IF($C122=1,'Sjekkliste for utfylling'!A258,"") ->  | F122: =IF($C122=1,'Sjekkliste for utfylling'!B258,"") ->  | H122: =IF(C122=1,'Sjekkliste for utfylling'!H258," ") -> 
A123: ='Sjekkliste for utfylling'!A259 -> 132 | B123: =IF('Sjekkliste for utfylling'!E259<>"",1,0) -> 0 | C123: 0 | E123: =IF($C123=1,'Sjekkliste for utfylling'!A259,"") ->  | F123: =IF($C123=1,'Sjekkliste for utfylling'!B259,"") ->  | H123: =IF(C123=1,'Sjekkliste for utfylling'!H259," ") -> 
A124: ='Sjekkliste for utfylling'!A260 -> 133 | B124: =IF('Sjekkliste for utfylling'!E260<>"",1,0) -> 0 | C124: 0 | E124: =IF($C124=1,'Sjekkliste for utfylling'!A260,"") ->  | F124: =IF($C124=1,'Sjekkliste for utfylling'!B260,"") ->  | H124: =IF(C124=1,'Sjekkliste for utfylling'!H260," ") -> 
A125: ='Sjekkliste for utfylling'!A261 -> 134 | B125: =IF('Sjekkliste for utfylling'!E261<>"",1,0) -> 0 | C125: 0 | E125: =IF($C125=1,'Sjekkliste for utfylling'!A261,"") ->  | F125: =IF($C125=1,'Sjekkliste for utfylling'!B261,"") ->  | H125: =IF(C125=1,'Sjekkliste for utfylling'!H261," ") -> 
A126: ='Sjekkliste for utfylling'!A265 -> 135 | B126: =IF('Sjekkliste for utfylling'!E265<>"",1,0) -> 0 | C126: 0 | E126: =IF($C126=1,'Sjekkliste for utfylling'!A265,"") ->  | F126: =IF($C126=1,'Sjekkliste for utfylling'!B265,"") ->  | H126: =IF(C126=1,'Sjekkliste for utfylling'!H265," ") -> 
A127: ='Sjekkliste for utfylling'!A268 -> 136 | B127: =IF('Sjekkliste for utfylling'!E268<>"",1,0) -> 0 | C127: 0 | E127: =IF($C127=1,'Sjekkliste for utfylling'!A268,"") ->  | F127: =IF($C127=1,'Sjekkliste for utfylling'!B268,"") ->  | H127: =IF(C127=1,'Sjekkliste for utfylling'!H268," ") -> 
A128: ='Sjekkliste for utfylling'!A269 -> 137 | B128: =IF('Sjekkliste for utfylling'!E269<>"",1,0) -> 0 | C128: 0 | E128: =IF($C128=1,'Sjekkliste for utfylling'!A269,"") ->  | F128: =IF($C128=1,'Sjekkliste for utfylling'!B269,"") ->  | H128: =IF(C128=1,'Sjekkliste for utfylling'!H269," ") -> 
A129: ='Sjekkliste for utfylling'!A270 -> 138 | B129: =IF('Sjekkliste for utfylling'!E270<>"",1,0) -> 0 | C129: 0 | E129: =IF($C129=1,'Sjekkliste for utfylling'!A270,"") ->  | F129: =IF($C129=1,'Sjekkliste for utfylling'!B270,"") ->  | H129: =IF(C129=1,'Sjekkliste for utfylling'!H270," ") -> 
A130: ='Sjekkliste for utfylling'!A271 -> 139 | B130: =IF('Sjekkliste for utfylling'!E271<>"",1,0) -> 0 | C130: =SUM(B130:B130) -> 0 | E130: =IF($C130=1,'Sjekkliste for utfylling'!A271,"") ->  | F130: =IF($C130=1,'Sjekkliste for utfylling'!B271,"") ->  | H130: =IF(C130=1,'Sjekkliste for utfylling'!H271," ") -> 
A131: ='Sjekkliste for utfylling'!#REF! ->  | B131: =IF('Sjekkliste for utfylling'!#REF!<>"",1,0) ->  | E131: =IF($C131=1,'Sjekkliste for utfylling'!#REF!,"") ->  | F131: =IF($C131=1,'Sjekkliste for utfylling'!#REF!,"") ->  | H131: =IF(C131=1,'Sjekkliste for utfylling'!#REF!," ") -> 

Sheet Nei-svar (hidden)
C1: =COUNTIF(C2:C56,"=1")-D1 -> 0 | D1: =SUM(D2:D23) -> 0 | E1: Nei-svar | F1: ='Sjekkliste for utfylling'!B2 -> 0 | G1: ='Sjekkliste for utfylling'!B3 -> 2023 | H1: ='Sjekkliste for utfylling'!C3 -> 0
A2: ='Sjekkliste for utfylling'!A274 -> 140 | B2: =IF('Sjekkliste for utfylling'!F274<>"",1,0) -> 0 | C2: =SUM(B2:B2) -> 0 | E2: =IF($C2=1,'Sjekkliste for utfylling'!A274,"") ->  | F2: =IF($C2=1,'Sjekkliste for utfylling'!B274,"") ->  | H2: =IF(C2=1,'Sjekkliste for utfylling'!H274," ") -> 
A3: ='Sjekkliste for utfylling'!A227 -> 0 | B3: =IF('Sjekkliste for utfylling'!F227<>"",1,0) -> 0 | C3: 0 | E3: =IF($C3=1,'Sjekkliste for utfylling'!A227,"") ->  | F3: =IF($C3=1,'Sjekkliste for utfylling'!B227,"") ->  | H3: =IF(C3=1,'Sjekkliste for utfylling'!H227," ") -> 
A4: ='Sjekkliste for utfylling'!A13 -> 1 | B4: =IF('Sjekkliste for utfylling'!F13<>"",1,0) -> 0 | C4: 0 | E4: =IF($C4=1,'Sjekkliste for utfylling'!A13,"") ->  | F4: =IF($C4=1,'Sjekkliste for utfylling'!B13,"") ->  | H4: =IF(C4=1,'Sjekkliste for utfylling'!H13," ") -> 
A5: ='Sjekkliste for utfylling'!A14 -> 2 | B5: =IF('Sjekkliste for utfylling'!F14<>"",1,0) -> 0 | C5: 0 | E5: =IF($C5=1,'Sjekkliste for utfylling'!A14,"") ->  | F5: =IF($C5=1,'Sjekkliste for utfylling'!B14,"") ->  | H5: =IF(C5=1,'Sjekkliste for utfylling'!H14," ") -> 
A6: ='Sjekkliste for utfylling'!A15 -> 3 | B6: =IF('Sjekkliste for utfylling'!F15<>"",1,0) -> 0 | C6: 0 | E6: =IF($C6=1,'Sjekkliste for utfylling'!A15,"") ->  | F6: =IF($C6=1,'Sjekkliste for utfylling'!B15,"") ->  | H6: =IF(C6=1,'Sjekkliste for utfylling'!H15," ") -> 
A7: ='Sjekkliste for utfylling'!A17 -> 4 | B7: =IF('Sjekkliste for utfylling'!F17<>"",1,0) -> 0 | C7: 0 | E7: =IF($C7=1,'Sjekkliste for utfylling'!A17,"") ->  | F7: =IF($C7=1,'Sjekkliste for utfylling'!B17,"") ->  | H7: =IF(C7=1,'Sjekkliste for utfylling'!H17," ") -> 
A8: ='Sjekkliste for utfylling'!A20 -> 5 | B8: =IF('Sjekkliste for utfylling'!F20<>"",1,0) -> 0 | C8: 0 | E8: =IF($C8=1,'Sjekkliste for utfylling'!A20,"") ->  | F8: =IF($C8=1,'Sjekkliste for utfylling'!B20,"") ->  | H8: =IF(C8=1,'Sjekkliste for utfylling'!H20," ") -> 
A9: ='Sjekkliste for utfylling'!A21 -> 6 | B9: =IF('Sjekkliste for utfylling'!F21<>"",1,0) -> 0 | C9: 0 | E9: =IF($C9=1,'Sjekkliste for utfylling'!A21,"") ->  | F9: =IF($C9=1,'Sjekkliste for utfylling'!B21,"") ->  | H9: =IF(C9=1,'Sjekkliste for utfylling'!H21," ") -> 
A10: ='Sjekkliste for utfylling'!A22 -> 7 | B10: =IF('Sjekkliste for utfylling'!F22<>"",1,0) -> 0 | C10: 0 | E10: =IF($C10=1,'Sjekkliste for utfylling'!A22,"") ->  | F10: =IF($C10=1,'Sjekkliste for utfylling'!B22,"") ->  | H10: =IF(C10=1,'Sjekkliste for utfylling'!H22," ") -> 
A11: ='Sjekkliste for utfylling'!A23 -> 8 | B11: =IF('Sjekkliste for utfylling'!F23<>"",1,0) -> 0 | C11: 0 | E11: =IF($C11=1,'Sjekkliste for utfylling'!A23,"") ->  | F11: =IF($C11=1,'Sjekkliste for utfylling'!B23,"") ->  | H11: =IF(C11=1,'Sjekkliste for utfylling'!H23," ") -> 
A12: ='Sjekkliste for utfylling'!A24 -> 9 | B12: =IF('Sjekkliste for utfylling'!F24<>"",1,0) -> 0 | C12: 0 | E12: =IF($C12=1,'Sjekkliste for utfylling'!A24,"") ->  | F12: =IF($C12=1,'Sjekkliste for utfylling'!B24,"") ->  | H12: =IF(C12=1,'Sjekkliste for utfylling'!H24," ") -> 
A13: ='Sjekkliste for utfylling'!A25 -> 10 | B13: =IF('Sjekkliste for utfylling'!F25<>"",1,0) -> 0 | C13: 0 | E13: =IF($C13=1,'Sjekkliste for utfylling'!A25,"") ->  | F13: =IF($C13=1,'Sjekkliste for utfylling'!B25,"") ->  | H13: =IF(C13=1,'Sjekkliste for utfylling'!H25," ") -> 
A14: ='Sjekkliste for utfylling'!A26 -> 11 | B14: =IF('Sjekkliste for utfylling'!F26<>"",1,0) -> 0 | C14: 0 | E14: =IF($C14=1,'Sjekkliste for utfylling'!A26,"") ->  | F14: =IF($C14=1,'Sjekkliste for utfylling'!B26,"") ->  | H14: =IF(C14=1,'Sjekkliste for utfylling'!H26," ") -> 
A15: ='Sjekkliste for utfylling'!A30 -> 12 | B15: =IF('Sjekkliste for utfylling'!F30<>"",1,0) -> 0 | C15: 0 | E15: =IF($C15=1,'Sjekkliste for utfylling'!A30,"") ->  | F15: =IF($C15=1,'Sjekkliste for utfylling'!B30,"") ->  | H15: =IF(C15=1,'Sjekkliste for utfylling'!H30," ") -> 
A16: ='Sjekkliste for utfylling'!A31 -> 13 | B16: =IF('Sjekkliste for utfylling'!F31<>"",1,0) -> 0 | C16: 0 | E16: =IF($C16=1,'Sjekkliste for utfylling'!A31,"") ->  | F16: =IF($C16=1,'Sjekkliste for utfylling'!B31,"") ->  | H16: =IF(C16=1,'Sjekkliste for utfylling'!H31," ") -> 
A17: ='Sjekkliste for utfylling'!A32 -> 14 | B17: =IF('Sjekkliste for utfylling'!F32<>"",1,0) -> 0 | C17: 0 | E17: =IF($C17=1,'Sjekkliste for utfylling'!A32,"") ->  | F17: =IF($C17=1,'Sjekkliste for utfylling'!B32,"") ->  | H17: =IF(C17=1,'Sjekkliste for utfylling'!H32," ") -> 
A18: ='Sjekkliste for utfylling'!A33 -> 15 | B18: =IF('Sjekkliste for utfylling'!F33<>"",1,0) -> 0 | C18: 0 | E18: =IF($C18=1,'Sjekkliste for utfylling'!A33,"") ->  | F18: =IF($C18=1,'Sjekkliste for utfylling'!B33,"") ->  | H18: =IF(C18=1,'Sjekkliste for utfylling'!H33," ") -> 
A19: ='Sjekkliste for utfylling'!A38 -> 16 | B19: =IF('Sjekkliste for utfylling'!F38<>"",1,0) -> 0 | C19: 0 | E19: =IF($C19=1,'Sjekkliste for utfylling'!A38,"") ->  | F19: =IF($C19=1,'Sjekkliste for utfylling'!B38,"") ->  | H19: =IF(C19=1,'Sjekkliste for utfylling'!H38," ") -> 
A20: ='Sjekkliste for utfylling'!A39 -> 17 | B20: =IF('Sjekkliste for utfylling'!F39<>"",1,0) -> 0 | C20: 0 | E20: =IF($C20=1,'Sjekkliste for utfylling'!A39,"") ->  | F20: =IF($C20=1,'Sjekkliste for utfylling'!B39,"") ->  | H20: =IF(C20=1,'Sjekkliste for utfylling'!H39," ") -> 
A21: ='Sjekkliste for utfylling'!A40 -> 18 | B21: =IF('Sjekkliste for utfylling'!F40<>"",1,0) -> 0 | C21: 0 | E21: =IF($C21=1,'Sjekkliste for utfylling'!A40,"") ->  | F21: =IF($C21=1,'Sjekkliste for utfylling'!B40,"") ->  | H21: =IF(C21=1,'Sjekkliste for utfylling'!H40," ") -> 
A22: ='Sjekkliste for utfylling'!A41 -> 19 | B22: =IF('Sjekkliste for utfylling'!F41<>"",1,0) -> 0 | C22: 0 | E22: =IF($C22=1,'Sjekkliste for utfylling'!A41,"") ->  | F22: =IF($C22=1,'Sjekkliste for utfylling'!B41,"") ->  | H22: =IF(C22=1,'Sjekkliste for utfylling'!H41," ") -> 
A23: ='Sjekkliste for utfylling'!A42 -> 20 | B23: =IF('Sjekkliste for utfylling'!F42<>"",1,0) -> 0 | C23: 0 | E23: =IF($C23=1,'Sjekkliste for utfylling'!A42,"") ->  | F23: =IF($C23=1,'Sjekkliste for utfylling'!B42,"") ->  | H23: =IF(C23=1,'Sjekkliste for utfylling'!H42," ") -> 
A24: ='Sjekkliste for utfylling'!A43 -> 21 | B24: =IF('Sjekkliste for utfylling'!F43<>"",1,0) -> 0 | C24: 0 | E24: =IF($C24=1,'Sjekkliste for utfylling'!A43,"") ->  | F24: =IF($C24=1,'Sjekkliste for utfylling'!B43,"") ->  | H24: =IF(C24=1,'Sjekkliste for utfylling'!H43," ") -> 
A25: ='Sjekkliste for utfylling'!A44 -> 22 | B25: =IF('Sjekkliste for utfylling'!F44<>"",1,0) -> 0 | C25: 0 | E25: =IF($C25=1,'Sjekkliste for utfylling'!A44,"") ->  | F25: =IF($C25=1,'Sjekkliste for utfylling'!B44,"") ->  | H25: =IF(C25=1,'Sjekkliste for utfylling'!H44," ") -> 
A26: ='Sjekkliste for utfylling'!A45 -> 23 | B26: =IF('Sjekkliste for utfylling'!F45<>"",1,0) -> 0 | C26: 0 | E26: =IF($C26=1,'Sjekkliste for utfylling'!A45,"") ->  | F26: =IF($C26=1,'Sjekkliste for utfylling'!B45,"") ->  | H26: =IF(C26=1,'Sjekkliste for utfylling'!H45," ") -> 
A27: ='Sjekkliste for utfylling'!A46 -> 24 | B27: =IF('Sjekkliste for utfylling'!F46<>"",1,0) -> 0 | C27: 0 | E27: =IF($C27=1,'Sjekkliste for utfylling'!A46,"") ->  | F27: =IF($C27=1,'Sjekkliste for utfylling'!B46,"") ->  | H27: =IF(C27=1,'Sjekkliste for utfylling'!H46," ") -> 
A28: ='Sjekkliste for utfylling'!A47 -> 25 | B28: =IF('Sjekkliste for utfylling'!F47<>"",1,0) -> 0 | C28: 0 | E28: =IF($C28=1,'Sjekkliste for utfylling'!A47,"") ->  | F28: =IF($C28=1,'Sjekkliste for utfylling'!B47,"") ->  | H28: =IF(C28=1,'Sjekkliste for utfylling'!H47," ") -> 
A29: ='Sjekkliste for utfylling'!A48 -> 26 | B29: =IF('Sjekkliste for utfylling'!F48<>"",1,0) -> 0 | C29: 0 | E29: =IF($C29=1,'Sjekkliste for utfylling'!A48,"") ->  | F29: =IF($C29=1,'Sjekkliste for utfylling'!B48,"") ->  | H29: =IF(C29=1,'Sjekkliste for utfylling'!H48," ") -> 
A30: ='Sjekkliste for utfylling'!A49 -> 27 | B30: =IF('Sjekkliste for utfylling'!F49<>"",1,0) -> 0 | C30: 0 | E30: =IF($C30=1,'Sjekkliste for utfylling'!A49,"") ->  | F30: =IF($C30=1,'Sjekkliste for utfylling'!B49,"") ->  | H30: =IF(C30=1,'Sjekkliste for utfylling'!H49," ") -> 
A31: ='Sjekkliste for utfylling'!A51 -> 28 | B31: =IF('Sjekkliste for utfylling'!F51<>"",1,0) -> 0 | C31: 0 | E31: =IF($C31=1,'Sjekkliste for utfylling'!A51,"") ->  | F31: =IF($C31=1,'Sjekkliste for utfylling'!B51,"") ->  | H31: =IF(C31=1,'Sjekkliste for utfylling'!H51," ") -> 
A32: ='Sjekkliste for utfylling'!A52 -> 29 | B32: =IF('Sjekkliste for utfylling'!F52<>"",1,0) -> 0 | C32: 0 | E32: =IF($C32=1,'Sjekkliste for utfylling'!A52,"") ->  | F32: =IF($C32=1,'Sjekkliste for utfylling'!B52,"") ->  | H32: =IF(C32=1,'Sjekkliste for utfylling'!H52," ") -> 
A33: ='Sjekkliste for utfylling'!A54 -> 30 | B33: =IF('Sjekkliste for utfylling'!F54<>"",1,0) -> 0 | C33: 0 | E33: =IF($C33=1,'Sjekkliste for utfylling'!A54,"") ->  | F33: =IF($C33=1,'Sjekkliste for utfylling'!B54,"") ->  | H33: =IF(C33=1,'Sjekkliste for utfylling'!H54," ") -> 
A34: ='Sjekkliste for utfylling'!A58 -> 31 | B34: =IF('Sjekkliste for utfylling'!F58<>"",1,0) -> 0 | C34: =SUM(B34:B34) -> 0 | E34: =IF($C34=1,'Sjekkliste for utfylling'!A58,"") ->  | F34: =IF($C34=1,'Sjekkliste for utfylling'!B58,"") ->  | H34: =IF(C34=1,'Sjekkliste for utfylling'!H58," ") -> 
A35: ='Sjekkliste for utfylling'!A62 -> 32 | B35: =IF('Sjekkliste for utfylling'!F62<>"",1,0) -> 0 | C35: 0 | E35: =IF($C35=1,'Sjekkliste for utfylling'!A62,"") ->  | F35: =IF($C35=1,'Sjekkliste for utfylling'!B62,"") ->  | H35: =IF(C35=1,'Sjekkliste for utfylling'!H62," ") -> 
A36: ='Sjekkliste for utfylling'!A63 -> 33 | B36: =IF('Sjekkliste for utfylling'!F63<>"",1,0) -> 0 | C36: 0 | E36: =IF($C36=1,'Sjekkliste for utfylling'!A63,"") ->  | F36: =IF($C36=1,'Sjekkliste for utfylling'!B63,"") ->  | H36: =IF(C36=1,'Sjekkliste for utfylling'!H63," ") -> 
A37: ='Sjekkliste for utfylling'!A64 -> 34 | B37: =IF('Sjekkliste for utfylling'!F64<>"",1,0) -> 0 | C37: 0 | E37: =IF($C37=1,'Sjekkliste for utfylling'!A64,"") ->  | F37: =IF($C37=1,'Sjekkliste for utfylling'!B64,"") ->  | H37: =IF(C37=1,'Sjekkliste for utfylling'!H64," ") -> 
A38: ='Sjekkliste for utfylling'!A65 -> 35 | B38: =IF('Sjekkliste for utfylling'!F65<>"",1,0) -> 0 | C38: 0 | E38: =IF($C38=1,'Sjekkliste for utfylling'!A65,"") ->  | F38: =IF($C38=1,'Sjekkliste for utfylling'!B65,"") ->  | H38: =IF(C38=1,'Sjekkliste for utfylling'!H65," ") -> 
A39: ='Sjekkliste for utfylling'!A66 -> 36 | B39: =IF('Sjekkliste for utfylling'!F66<>"",1,0) -> 0 | C39: 0 | E39: =IF($C39=1,'Sjekkliste for utfylling'!A66,"") ->  | F39: =IF($C39=1,'Sjekkliste for utfylling'!B66,"") ->  | H39: =IF(C39=1,'Sjekkliste for utfylling'!H66," ") -> 
A40: ='Sjekkliste for utfylling'!A73 -> 37 | B40: =IF('Sjekkliste for utfylling'!F73<>"",1,0) -> 0 | C40: 0 | E40: =IF($C40=1,'Sjekkliste for utfylling'!A73,"") ->  | F40: =IF($C40=1,'Sjekkliste for utfylling'!B73,"") ->  | H40: =IF(C40=1,'Sjekkliste for utfylling'!H73," ") -> 
A41: ='Sjekkliste for utfylling'!A74 -> 38 | B41: =IF('Sjekkliste for utfylling'!F74<>"",1,0) -> 0 | C41: 0 | E41: =IF($C41=1,'Sjekkliste for utfylling'!A74,"") ->  | F41: =IF($C41=1,'Sjekkliste for utfylling'!B74,"") ->  | H41: =IF(C41=1,'Sjekkliste for utfylling'!H74," ") -> 
A42: ='Sjekkliste for utfylling'!A75 -> 39 | B42: =IF('Sjekkliste for utfylling'!F75<>"",1,0) -> 0 | C42: 0 | E42: =IF($C42=1,'Sjekkliste for utfylling'!A75,"") ->  | F42: =IF($C42=1,'Sjekkliste for utfylling'!B75,"") ->  | H42: =IF(C42=1,'Sjekkliste for utfylling'!H75," ") -> 
A43: ='Sjekkliste for utfylling'!A76 -> 40 | B43: =IF('Sjekkliste for utfylling'!F76<>"",1,0) -> 0 | C43: 0 | E43: =IF($C43=1,'Sjekkliste for utfylling'!A76,"") ->  | F43: =IF($C43=1,'Sjekkliste for utfylling'!B76,"") ->  | H43: =IF(C43=1,'Sjekkliste for utfylling'!H76," ") -> 
A44: ='Sjekkliste for utfylling'!A77 -> 41 | B44: =IF('Sjekkliste for utfylling'!F77<>"",1,0) -> 0 | C44: 0 | E44: =IF($C44=1,'Sjekkliste for utfylling'!A77,"") ->  | F44: =IF($C44=1,'Sjekkliste for utfylling'!B77,"") ->  | H44: =IF(C44=1,'Sjekkliste for utfylling'!H77," ") -> 
A45: ='Sjekkliste for utfylling'!A79 -> 42 | B45: =IF('Sjekkliste for utfylling'!F79<>"",1,0) -> 0 | C45: 0 | E45: =IF($C45=1,'Sjekkliste for utfylling'!A79,"") ->  | F45: =IF($C45=1,'Sjekkliste for utfylling'!B79,"") ->  | H45: =IF(C45=1,'Sjekkliste for utfylling'!H79," ") -> 
A46: ='Sjekkliste for utfylling'!A82 -> 43 | B46: =IF('Sjekkliste for utfylling'!F82<>"",1,0) -> 0 | C46: 0 | E46: =IF($C46=1,'Sjekkliste for utfylling'!A82,"") ->  | F46: =IF($C46=1,'Sjekkliste for utfylling'!B82,"") ->  | H46: =IF(C46=1,'Sjekkliste for utfylling'!H82," ") -> 
A47: ='Sjekkliste for utfylling'!A83 -> 44 | B47: =IF('Sjekkliste for utfylling'!F83<>"",1,0) -> 0 | C47: 0 | E47: =IF($C47=1,'Sjekkliste for utfylling'!A83,"") ->  | F47: =IF($C47=1,'Sjekkliste for utfylling'!B83,"") ->  | H47: =IF(C47=1,'Sjekkliste for utfylling'!H83," ") -> 
A48: ='Sjekkliste for utfylling'!A85 -> 45 | B48: =IF('Sjekkliste for utfylling'!F85<>"",1,0) -> 0 | C48: 0 | E48: =IF($C48=1,'Sjekkliste for utfylling'!A85,"") ->  | F48: =IF($C48=1,'Sjekkliste for utfylling'!B85,"") ->  | H48: =IF(C48=1,'Sjekkliste for utfylling'!H85," ") -> 
A49: ='Sjekkliste for utfylling'!A86 -> 46 | B49: =IF('Sjekkliste for utfylling'!F86<>"",1,0) -> 0 | C49: 0 | E49: =IF($C49=1,'Sjekkliste for utfylling'!A86,"") ->  | F49: =IF($C49=1,'Sjekkliste for utfylling'!B86,"") ->  | H49: =IF(C49=1,'Sjekkliste for utfylling'!H86," ") -> 
A50: ='Sjekkliste for utfylling'!A91 -> 47 | B50: =IF('Sjekkliste for utfylling'!F91<>"",1,0) -> 0 | C50: 0 | E50: =IF($C50=1,'Sjekkliste for utfylling'!A91,"") ->  | F50: =IF($C50=1,'Sjekkliste for utfylling'!B91,"") ->  | H50: =IF(C50=1,'Sjekkliste for utfylling'!H91," ") -> 
A51: ='Sjekkliste for utfylling'!A93 -> 48 | B51: =IF('Sjekkliste for utfylling'!F93<>"",1,0) -> 0 | C51: 0 | E51: =IF($C51=1,'Sjekkliste for utfylling'!A93,"") ->  | F51: =IF($C51=1,'Sjekkliste for utfylling'!B93,"") ->  | H51: =IF(C51=1,'Sjekkliste for utfylling'!H93," ") -> 
A52: ='Sjekkliste for utfylling'!A95 -> 49 | B52: =IF('Sjekkliste for utfylling'!F95<>"",1,0) -> 0 | C52: 0 | E52: =IF($C52=1,'Sjekkliste for utfylling'!A95,"") ->  | F52: =IF($C52=1,'Sjekkliste for utfylling'!B95,"") ->  | H52: =IF(C52=1,'Sjekkliste for utfylling'!H95," ") -> 
A53: ='Sjekkliste for utfylling'!A96 -> 50 | B53: =IF('Sjekkliste for utfylling'!F96<>"",1,0) -> 0 | C53: 0 | E53: =IF($C53=1,'Sjekkliste for utfylling'!A96,"") ->  | F53: =IF($C53=1,'Sjekkliste for utfylling'!B96,"") ->  | H53: =IF(C53=1,'Sjekkliste for utfylling'!H96," ") -> 
A54: ='Sjekkliste for utfylling'!A97 -> 51 | B54: =IF('Sjekkliste for utfylling'!F97<>"",1,0) -> 0 | C54: 0 | E54: =IF($C54=1,'Sjekkliste for utfylling'!A97,"") ->  | F54: =IF($C54=1,'Sjekkliste for utfylling'!B97,"") ->  | H54: =IF(C54=1,'Sjekkliste for utfylling'!H97," ") -> 
A55: ='Sjekkliste for utfylling'!A99 -> 52 | B55: =IF('Sjekkliste for utfylling'!F99<>"",1,0) -> 0 | C55: 0 | E55: =IF($C55=1,'Sjekkliste for utfylling'!A99,"") ->  | F55: =IF($C55=1,'Sjekkliste for utfylling'!B99,"") ->  | H55: =IF(C55=1,'Sjekkliste for utfylling'!H99," ") -> 
A56: ='Sjekkliste for utfylling'!A103 -> 53 | B56: =IF('Sjekkliste for utfylling'!F103<>"",1,0) -> 0 | C56: 0 | E56: =IF($C56=1,'Sjekkliste for utfylling'!A103,"") ->  | F56: =IF($C56=1,'Sjekkliste for utfylling'!B103,"") ->  | H56: =IF(C56=1,'Sjekkliste for utfylling'!H103," ") -> 
A57: ='Sjekkliste for utfylling'!A110 -> 54 | B57: =IF('Sjekkliste for utfylling'!F110<>"",1,0) -> 0 | C57: 0 | E57: =IF($C57=1,'Sjekkliste for utfylling'!A110,"") ->  | F57: =IF($C57=1,'Sjekkliste for utfylling'!B110,"") ->  | H57: =IF(C57=1,'Sjekkliste for utfylling'!H110," ") -> 
A58: ='Sjekkliste for utfylling'!A114 -> 55 | B58: =IF('Sjekkliste for utfylling'!F114<>"",1,0) -> 0 | C58: 0 | E58: =IF($C58=1,'Sjekkliste for utfylling'!A114,"") ->  | F58: =IF($C58=1,'Sjekkliste for utfylling'!B114,"") ->  | H58: =IF(C58=1,'Sjekkliste for utfylling'!H114," ") -> 
A59: ='Sjekkliste for utfylling'!A115 -> 56 | B59: =IF('Sjekkliste for utfylling'!F115<>"",1,0) -> 0 | C59: 0 | E59: =IF($C59=1,'Sjekkliste for utfylling'!A115,"") ->  | F59: =IF($C59=1,'Sjekkliste for utfylling'!B115,"") ->  | H59: =IF(C59=1,'Sjekkliste for utfylling'!H115," ") -> 
A60: ='Sjekkliste for utfylling'!A116 -> 57 | B60: =IF('Sjekkliste for utfylling'!F116<>"",1,0) -> 0 | C60: 0 | E60: =IF($C60=1,'Sjekkliste for utfylling'!A116,"") ->  | F60: =IF($C60=1,'Sjekkliste for utfylling'!B116,"") ->  | H60: =IF(C60=1,'Sjekkliste for utfylling'!H116," ") -> 
A61: ='Sjekkliste for utfylling'!A117 -> 58 | B61: =IF('Sjekkliste for utfylling'!F117<>"",1,0) -> 0 | C61: 0 | E61: =IF($C61=1,'Sjekkliste for utfylling'!A117,"") ->  | F61: =IF($C61=1,'Sjekkliste for utfylling'!B117,"") ->  | H61: =IF(C61=1,'Sjekkliste for utfylling'!H117," ") -> 
A62: ='Sjekkliste for utfylling'!A118 -> 59 | B62: =IF('Sjekkliste for utfylling'!F118<>"",1,0) -> 0 | C62: 0 | E62: =IF($C62=1,'Sjekkliste for utfylling'!A118,"") ->  | F62: =IF($C62=1,'Sjekkliste for utfylling'!B118,"") ->  | H62: =IF(C62=1,'Sjekkliste for utfylling'!H118," ") -> 
A63: ='Sjekkliste for utfylling'!A119 -> 60 | B63: =IF('Sjekkliste for utfylling'!F119<>"",1,0) -> 0 | C63: 0 | E63: =IF($C63=1,'Sjekkliste for utfylling'!A119,"") ->  | F63: =IF($C63=1,'Sjekkliste for utfylling'!B119,"") ->  | H63: =IF(C63=1,'Sjekkliste for utfylling'!H119," ") -> 
A64: ='Sjekkliste for utfylling'!A120 -> 61 | B64: =IF('Sjekkliste for utfylling'!F120<>"",1,0) -> 0 | C64: 0 | E64: =IF($C64=1,'Sjekkliste for utfylling'!A120,"") ->  | F64: =IF($C64=1,'Sjekkliste for utfylling'!B120,"") ->  | H64: =IF(C64=1,'Sjekkliste for utfylling'!H120," ") -> 
A65: ='Sjekkliste for utfylling'!A126 -> 62 | B65: =IF('Sjekkliste for utfylling'!F126<>"",1,0) -> 0 | C65: 0 | E65: =IF($C65=1,'Sjekkliste for utfylling'!A126,"") ->  | F65: =IF($C65=1,'Sjekkliste for utfylling'!B126,"") ->  | H65: =IF(C65=1,'Sjekkliste for utfylling'!H126," ") -> 
A66: ='Sjekkliste for utfylling'!A128 -> 63 | B66: =IF('Sjekkliste for utfylling'!F128<>"",1,0) -> 0 | C66: =SUM(B66:B66) -> 0 | E66: =IF($C66=1,'Sjekkliste for utfylling'!A128,"") ->  | F66: =IF($C66=1,'Sjekkliste for utfylling'!B128,"") ->  | H66: =IF(C66=1,'Sjekkliste for utfylling'!H128," ") -> 
A67: ='Sjekkliste for utfylling'!A129 -> 64 | B67: =IF('Sjekkliste for utfylling'!F129<>"",1,0) -> 0 | C67: 0 | E67: =IF($C67=1,'Sjekkliste for utfylling'!A129,"") ->  | F67: =IF($C67=1,'Sjekkliste for utfylling'!B129,"") ->  | H67: =IF(C67=1,'Sjekkliste for utfylling'!H129," ") -> 
A68: ='Sjekkliste for utfylling'!A130 -> 65 | B68: =IF('Sjekkliste for utfylling'!F130<>"",1,0) -> 0 | C68: 0 | E68: =IF($C68=1,'Sjekkliste for utfylling'!A130,"") ->  | F68: =IF($C68=1,'Sjekkliste for utfylling'!B130,"") ->  | H68: =IF(C68=1,'Sjekkliste for utfylling'!H130," ") -> 
A69: ='Sjekkliste for utfylling'!A135 -> 66 | B69: =IF('Sjekkliste for utfylling'!F135<>"",1,0) -> 0 | C69: 0 | E69: =IF($C69=1,'Sjekkliste for utfylling'!A135,"") ->  | F69: =IF($C69=1,'Sjekkliste for utfylling'!B135,"") ->  | H69: =IF(C69=1,'Sjekkliste for utfylling'!H135," ") -> 
A70: ='Sjekkliste for utfylling'!A136 -> 67 | B70: =IF('Sjekkliste for utfylling'!F136<>"",1,0) -> 0 | C70: 0 | E70: =IF($C70=1,'Sjekkliste for utfylling'!A136,"") ->  | F70: =IF($C70=1,'Sjekkliste for utfylling'!B136,"") ->  | H70: =IF(C70=1,'Sjekkliste for utfylling'!H136," ") -> 
A71: ='Sjekkliste for utfylling'!A137 -> 68 | B71: =IF('Sjekkliste for utfylling'!F137<>"",1,0) -> 0 | C71: 0 | E71: =IF($C71=1,'Sjekkliste for utfylling'!A137,"") ->  | F71: =IF($C71=1,'Sjekkliste for utfylling'!B137,"") ->  | H71: =IF(C71=1,'Sjekkliste for utfylling'!H137," ") -> 
A72: ='Sjekkliste for utfylling'!A138 -> 69 | B72: =IF('Sjekkliste for utfylling'!F138<>"",1,0) -> 0 | C72: 0 | E72: =IF($C72=1,'Sjekkliste for utfylling'!A138,"") ->  | F72: =IF($C72=1,'Sjekkliste for utfylling'!B138,"") ->  | H72: =IF(C72=1,'Sjekkliste for utfylling'!H138," ") -> 
A73: ='Sjekkliste for utfylling'!A140 -> 70 | B73: =IF('Sjekkliste for utfylling'!F140<>"",1,0) -> 0 | C73: 0 | E73: =IF($C73=1,'Sjekkliste for utfylling'!A140,"") ->  | F73: =IF($C73=1,'Sjekkliste for utfylling'!B140,"") ->  | H73: =IF(C73=1,'Sjekkliste for utfylling'!H140," ") -> 
A74: ='Sjekkliste for utfylling'!A155 -> 73 | B74: =IF('Sjekkliste for utfylling'!F155<>"",1,0) -> 0 | C74: 0 | E74: =IF($C74=1,'Sjekkliste for utfylling'!A155,"") ->  | F74: =IF($C74=1,'Sjekkliste for utfylling'!B155,"") ->  | H74: =IF(C74=1,'Sjekkliste for utfylling'!H155," ") -> 
A75: ='Sjekkliste for utfylling'!A157 -> 74 | B75: =IF('Sjekkliste for utfylling'!F157<>"",1,0) -> 0 | C75: 0 | E75: =IF($C75=1,'Sjekkliste for utfylling'!A157,"") ->  | F75: =IF($C75=1,'Sjekkliste for utfylling'!B157,"") ->  | H75: =IF(C75=1,'Sjekkliste for utfylling'!H157," ") -> 
A76: ='Sjekkliste for utfylling'!A158 -> 75 | B76: =IF('Sjekkliste for utfylling'!F158<>"",1,0) -> 0 | C76: 0 | E76: =IF($C76=1,'Sjekkliste for utfylling'!A158,"") ->  | F76: =IF($C76=1,'Sjekkliste for utfylling'!B158,"") ->  | H76: =IF(C76=1,'Sjekkliste for utfylling'!H158," ") -> 
A77: ='Sjekkliste for utfylling'!A159 -> 76 | B77: =IF('Sjekkliste for utfylling'!F159<>"",1,0) -> 0 | C77: 0 | E77: =IF($C77=1,'Sjekkliste for utfylling'!A159,"") ->  | F77: =IF($C77=1,'Sjekkliste for utfylling'!B159,"") ->  | H77: =IF(C77=1,'Sjekkliste for utfylling'!H159," ") -> 
A78: ='Sjekkliste for utfylling'!A160 -> 77 | B78: =IF('Sjekkliste for utfylling'!F160<>"",1,0) -> 0 | C78: 0 | E78: =IF($C78=1,'Sjekkliste for utfylling'!A160,"") ->  | F78: =IF($C78=1,'Sjekkliste for utfylling'!B160,"") ->  | H78: =IF(C78=1,'Sjekkliste for utfylling'!H160," ") -> 
A79: ='Sjekkliste for utfylling'!A161 -> 78 | B79: =IF('Sjekkliste for utfylling'!F161<>"",1,0) -> 0 | C79: 0 | E79: =IF($C79=1,'Sjekkliste for utfylling'!A161,"") ->  | F79: =IF($C79=1,'Sjekkliste for utfylling'!B161,"") ->  | H79: =IF(C79=1,'Sjekkliste for utfylling'!H161," ") -> 
A80: ='Sjekkliste for utfylling'!A163 -> 79 | B80: =IF('Sjekkliste for utfylling'!F163<>"",1,0) -> 0 | C80: 0 | E80: =IF($C80=1,'Sjekkliste for utfylling'!A163,"") ->  | F80: =IF($C80=1,'Sjekkliste for utfylling'!B163,"") ->  | H80: =IF(C80=1,'Sjekkliste for utfylling'!H163," ") -> 
A81: ='Sjekkliste for utfylling'!A164 -> 80 | B81: =IF('Sjekkliste for utfylling'!F164<>"",1,0) -> 0 | C81: 0 | E81: =IF($C81=1,'Sjekkliste for utfylling'!A164,"") ->  | F81: =IF($C81=1,'Sjekkliste for utfylling'!B164,"") ->  | H81: =IF(C81=1,'Sjekkliste for utfylling'!H164," ") -> 
A82: ='Sjekkliste for utfylling'!A167 -> 81 | B82: =IF('Sjekkliste for utfylling'!F167<>"",1,0) -> 0 | C82: 0 | E82: =IF($C82=1,'Sjekkliste for utfylling'!A167,"") ->  | F82: =IF($C82=1,'Sjekkliste for utfylling'!B167,"") ->  | H82: =IF(C82=1,'Sjekkliste for utfylling'!H167," ") -> 
A83: ='Sjekkliste for utfylling'!A168 -> 82 | B83: =IF('Sjekkliste for utfylling'!F168<>"",1,0) -> 0 | C83: 0 | E83: =IF($C83=1,'Sjekkliste for utfylling'!A168,"") ->  | F83: =IF($C83=1,'Sjekkliste for utfylling'!B168,"") ->  | H83: =IF(C83=1,'Sjekkliste for utfylling'!H168," ") -> 
A84: ='Sjekkliste for utfylling'!A169 -> 83 | B84: =IF('Sjekkliste for utfylling'!F169<>"",1,0) -> 0 | C84: 0 | E84: =IF($C84=1,'Sjekkliste for utfylling'!A169,"") ->  | F84: =IF($C84=1,'Sjekkliste for utfylling'!B169,"") ->  | H84: =IF(C84=1,'Sjekkliste for utfylling'!H169," ") -> 
A85: ='Sjekkliste for utfylling'!A171 -> 84 | B85: =IF('Sjekkliste for utfylling'!F171<>"",1,0) -> 0 | C85: 0 | E85: =IF($C85=1,'Sjekkliste for utfylling'!A171,"") ->  | F85: =IF($C85=1,'Sjekkliste for utfylling'!B171,"") ->  | H85: =IF(C85=1,'Sjekkliste for utfylling'!H171," ") -> 
A86: ='Sjekkliste for utfylling'!A173 -> 85 | B86: =IF('Sjekkliste for utfylling'!F173<>"",1,0) -> 0 | C86: 0 | E86: =IF($C86=1,'Sjekkliste for utfylling'!A173,"") ->  | F86: =IF($C86=1,'Sjekkliste for utfylling'!B173,"") ->  | H86: =IF(C86=1,'Sjekkliste for utfylling'!H173," ") -> 
A87: ='Sjekkliste for utfylling'!A174 -> 86 | B87: =IF('Sjekkliste for utfylling'!F174<>"",1,0) -> 0 | C87: 0 | E87: =IF($C87=1,'Sjekkliste for utfylling'!A174,"") ->  | F87: =IF($C87=1,'Sjekkliste for utfylling'!B174,"") ->  | H87: =IF(C87=1,'Sjekkliste for utfylling'!H174," ") -> 
A88: ='Sjekkliste for utfylling'!A175 -> 87 | B88: =IF('Sjekkliste for utfylling'!F175<>"",1,0) -> 0 | C88: 0 | E88: =IF($C88=1,'Sjekkliste for utfylling'!A175,"") ->  | F88: =IF($C88=1,'Sjekkliste for utfylling'!B175,"") ->  | H88: =IF(C88=1,'Sjekkliste for utfylling'!H175," ") -> 
A89: ='Sjekkliste for utfylling'!A176 -> 88 | B89: =IF('Sjekkliste for utfylling'!F176<>"",1,0) -> 0 | C89: 0 | E89: =IF($C89=1,'Sjekkliste for utfylling'!A176,"") ->  | F89: =IF($C89=1,'Sjekkliste for utfylling'!B176,"") ->  | H89: =IF(C89=1,'Sjekkliste for utfylling'!H176," ") -> 
A90: ='Sjekkliste for utfylling'!A177 -> 89 | B90: =IF('Sjekkliste for utfylling'!F177<>"",1,0) -> 0 | C90: 0 | E90: =IF($C90=1,'Sjekkliste for utfylling'!A177,"") ->  | F90: =IF($C90=1,'Sjekkliste for utfylling'!B177,"") ->  | H90: =IF(C90=1,'Sjekkliste for utfylling'!H177," ") -> 
A91: ='Sjekkliste for utfylling'!A178 -> 90 | B91: =IF('Sjekkliste for utfylling'!F178<>"",1,0) -> 0 | C91: 0 | E91: =IF($C91=1,'Sjekkliste for utfylling'!A178,"") ->  | F91: =IF($C91=1,'Sjekkliste for utfylling'!B178,"") ->  | H91: =IF(C91=1,'Sjekkliste for utfylling'!H178," ") -> 
A92: ='Sjekkliste for utfylling'!A179 -> 91 | B92: =IF('Sjekkliste for utfylling'!F179<>"",1,0) -> 0 | C92: 0 | E92: =IF($C92=1,'Sjekkliste for utfylling'!A179,"") ->  | F92: =IF($C92=1,'Sjekkliste for utfylling'!B179,"") ->  | H92: =IF(C92=1,'Sjekkliste for utfylling'!H179," ") -> 
A93: ='Sjekkliste for utfylling'!A180 -> 92 | B93: =IF('Sjekkliste for utfylling'!F180<>"",1,0) -> 0 | C93: 0 | E93: =IF($C93=1,'Sjekkliste for utfylling'!A180,"") ->  | F93: =IF($C93=1,'Sjekkliste for utfylling'!B180,"") ->  | H93: =IF(C93=1,'Sjekkliste for utfylling'!H180," ") -> 
A94: ='Sjekkliste for utfylling'!A181 -> 93 | B94: =IF('Sjekkliste for utfylling'!F181<>"",1,0) -> 0 | C94: 0 | E94: =IF($C94=1,'Sjekkliste for utfylling'!A181,"") ->  | F94: =IF($C94=1,'Sjekkliste for utfylling'!B181,"") ->  | H94: =IF(C94=1,'Sjekkliste for utfylling'!H181," ") -> 
A95: ='Sjekkliste for utfylling'!A182 -> 94 | B95: =IF('Sjekkliste for utfylling'!F182<>"",1,0) -> 0 | C95: 0 | E95: =IF($C95=1,'Sjekkliste for utfylling'!A182,"") ->  | F95: =IF($C95=1,'Sjekkliste for utfylling'!B182,"") ->  | H95: =IF(C95=1,'Sjekkliste for utfylling'!H182," ") -> 
A96: ='Sjekkliste for utfylling'!A186 -> 95 | B96: =IF('Sjekkliste for utfylling'!F186<>"",1,0) -> 0 | C96: 0 | E96: =IF($C96=1,'Sjekkliste for utfylling'!A186,"") ->  | F96: =IF($C96=1,'Sjekkliste for utfylling'!B186,"") ->  | H96: =IF(C96=1,'Sjekkliste for utfylling'!H186," ") -> 
A97: ='Sjekkliste for utfylling'!A187 -> 96 | B97: =IF('Sjekkliste for utfylling'!F187<>"",1,0) -> 0 | C97: 0 | E97: =IF($C97=1,'Sjekkliste for utfylling'!A187,"") ->  | F97: =IF($C97=1,'Sjekkliste for utfylling'!B187,"") ->  | H97: =IF(C97=1,'Sjekkliste for utfylling'!H187," ") -> 
A98: ='Sjekkliste for utfylling'!A188 -> 97 | B98: =IF('Sjekkliste for utfylling'!F188<>"",1,0) -> 0 | C98: =SUM(B98:B98) -> 0 | E98: =IF($C98=1,'Sjekkliste for utfylling'!A188,"") ->  | F98: =IF($C98=1,'Sjekkliste for utfylling'!B188,"") ->  | H98: =IF(C98=1,'Sjekkliste for utfylling'!H188," ") -> 
A99: ='Sjekkliste for utfylling'!A189 -> 98 | B99: =IF('Sjekkliste for utfylling'!F189<>"",1,0) -> 0 | C99: 0 | E99: =IF($C99=1,'Sjekkliste for utfylling'!A189,"") ->  | F99: =IF($C99=1,'Sjekkliste for utfylling'!B189,"") ->  | H99: =IF(C99=1,'Sjekkliste for utfylling'!H189," ") -> 
A100: ='Sjekkliste for utfylling'!A197 -> 99 | B100: =IF('Sjekkliste for utfylling'!F197<>"",1,0) -> 0 | C100: 0 | E100: =IF($C100=1,'Sjekkliste for utfylling'!A197,"") ->  | F100: =IF($C100=1,'Sjekkliste for utfylling'!B197,"") ->  | H100: =IF(C100=1,'Sjekkliste for utfylling'!H197," ") -> 
A101: ='Sjekkliste for utfylling'!A198 -> 100 | B101: =IF('Sjekkliste for utfylling'!F198<>"",1,0) -> 0 | C101: 0 | E101: =IF($C101=1,'Sjekkliste for utfylling'!A198,"") ->  | F101: =IF($C101=1,'Sjekkliste for utfylling'!B198,"") ->  | H101: =IF(C101=1,'Sjekkliste for utfylling'!H198," ") -> 
A102: ='Sjekkliste for utfylling'!A199 -> 101 | B102: =IF('Sjekkliste for utfylling'!F199<>"",1,0) -> 0 | C102: 0 | E102: =IF($C102=1,'Sjekkliste for utfylling'!A199,"") ->  | F102: =IF($C102=1,'Sjekkliste for utfylling'!B199,"") ->  | H102: =IF(C102=1,'Sjekkliste for utfylling'!H199," ") -> 
A103: ='Sjekkliste for utfylling'!A204 -> 105 | B103: =IF('Sjekkliste for utfylling'!F204<>"",1,0) -> 0 | C103: 0 | E103: =IF($C103=1,'Sjekkliste for utfylling'!A204,"") ->  | F103: =IF($C103=1,'Sjekkliste for utfylling'!B204,"") ->  | H103: =IF(C103=1,'Sjekkliste for utfylling'!H204," ") -> 
A104: ='Sjekkliste for utfylling'!A205 -> 106 | B104: =IF('Sjekkliste for utfylling'!F205<>"",1,0) -> 0 | C104: 0 | E104: =IF($C104=1,'Sjekkliste for utfylling'!A205,"") ->  | F104: =IF($C104=1,'Sjekkliste for utfylling'!B205,"") ->  | H104: =IF(C104=1,'Sjekkliste for utfylling'!H205," ") -> 
A105: ='Sjekkliste for utfylling'!A206 -> 107 | B105: =IF('Sjekkliste for utfylling'!F206<>"",1,0) -> 0 | C105: 0 | E105: =IF($C105=1,'Sjekkliste for utfylling'!A206,"") ->  | F105: =IF($C105=1,'Sjekkliste for utfylling'!B206,"") ->  | H105: =IF(C105=1,'Sjekkliste for utfylling'!H206," ") -> 
A106: ='Sjekkliste for utfylling'!A207 -> 108 | B106: =IF('Sjekkliste for utfylling'!F207<>"",1,0) -> 0 | C106: 0 | E106: =IF($C106=1,'Sjekkliste for utfylling'!A207,"") ->  | F106: =IF($C106=1,'Sjekkliste for utfylling'!B207,"") ->  | H106: =IF(C106=1,'Sjekkliste for utfylling'!H207," ") -> 
A107: ='Sjekkliste for utfylling'!A208 -> 109 | B107: =IF('Sjekkliste for utfylling'!F208<>"",1,0) -> 0 | C107: 0 | E107: =IF($C107=1,'Sjekkliste for utfylling'!A208,"") ->  | F107: =IF($C107=1,'Sjekkliste for utfylling'!B208,"") ->  | H107: =IF(C107=1,'Sjekkliste for utfylling'!H208," ") -> 
A108: ='Sjekkliste for utfylling'!A216 -> 110 | B108: =IF('Sjekkliste for utfylling'!F216<>"",1,0) -> 0 | C108: 0 | E108: =IF($C108=1,'Sjekkliste for utfylling'!A216,"") ->  | F108: =IF($C108=1,'Sjekkliste for utfylling'!B216,"") ->  | H108: =IF(C108=1,'Sjekkliste for utfylling'!H216," ") -> 
A109: ='Sjekkliste for utfylling'!A219 -> 112 | B109: =IF('Sjekkliste for utfylling'!F219<>"",1,0) -> 0 | C109: 0 | E109: =IF($C109=1,'Sjekkliste for utfylling'!A219,"") ->  | F109: =IF($C109=1,'Sjekkliste for utfylling'!B219,"") ->  | H109: =IF(C109=1,'Sjekkliste for utfylling'!H219," ") -> 
A110: ='Sjekkliste for utfylling'!A221 -> 113 | B110: =IF('Sjekkliste for utfylling'!F221<>"",1,0) -> 0 | C110: 0 | E110: =IF($C110=1,'Sjekkliste for utfylling'!A221,"") ->  | F110: =IF($C110=1,'Sjekkliste for utfylling'!B221,"") ->  | H110: =IF(C110=1,'Sjekkliste for utfylling'!H221," ") -> 
A111: ='Sjekkliste for utfylling'!A223 -> 115 | B111: =IF('Sjekkliste for utfylling'!F223<>"",1,0) -> 0 | C111: 0 | E111: =IF($C111=1,'Sjekkliste for utfylling'!A223,"") ->  | F111: =IF($C111=1,'Sjekkliste for utfylling'!B223,"") ->  | H111: =IF(C111=1,'Sjekkliste for utfylling'!H223," ") -> 
A112: ='Sjekkliste for utfylling'!A225 -> 117 | B112: =IF('Sjekkliste for utfylling'!F225<>"",1,0) -> 0 | C112: 0 | E112: =IF($C112=1,'Sjekkliste for utfylling'!A225,"") ->  | F112: =IF($C112=1,'Sjekkliste for utfylling'!B225,"") ->  | H112: =IF(C112=1,'Sjekkliste for utfylling'!H225," ") -> 
A113: ='Sjekkliste for utfylling'!A228 -> 118 | B113: =IF('Sjekkliste for utfylling'!F228<>"",1,0) -> 0 | C113: 0 | E113: =IF($C113=1,'Sjekkliste for utfylling'!A228,"") ->  | F113: =IF($C113=1,'Sjekkliste for utfylling'!B228,"") ->  | H113: =IF(C113=1,'Sjekkliste for utfylling'!H228," ") -> 
A114: ='Sjekkliste for utfylling'!A240 -> 123 | B114: =IF('Sjekkliste for utfylling'!F240<>"",1,0) -> 0 | C114: 0 | E114: =IF($C114=1,'Sjekkliste for utfylling'!A240,"") ->  | F114: =IF($C114=1,'Sjekkliste for utfylling'!B240,"") ->  | H114: =IF(C114=1,'Sjekkliste for utfylling'!H240," ") -> 
A115: ='Sjekkliste for utfylling'!A244 -> 124 | B115: =IF('Sjekkliste for utfylling'!F244<>"",1,0) -> 0 | C115: 0 | E115: =IF($C115=1,'Sjekkliste for utfylling'!A244,"") ->  | F115: =IF($C115=1,'Sjekkliste for utfylling'!B244,"") ->  | H115: =IF(C115=1,'Sjekkliste for utfylling'!H244," ") -> 
A116: ='Sjekkliste for utfylling'!A245 -> 125 | B116: =IF('Sjekkliste for utfylling'!F245<>"",1,0) -> 0 | C116: 0 | E116: =IF($C116=1,'Sjekkliste for utfylling'!A245,"") ->  | F116: =IF($C116=1,'Sjekkliste for utfylling'!B245,"") ->  | H116: =IF(C116=1,'Sjekkliste for utfylling'!H245," ") -> 
A117: ='Sjekkliste for utfylling'!A246 -> 126 | B117: =IF('Sjekkliste for utfylling'!F246<>"",1,0) -> 0 | C117: 0 | E117: =IF($C117=1,'Sjekkliste for utfylling'!A246,"") ->  | F117: =IF($C117=1,'Sjekkliste for utfylling'!B246,"") ->  | H117: =IF(C117=1,'Sjekkliste for utfylling'!H246," ") -> 
A118: ='Sjekkliste for utfylling'!A249 -> 127 | B118: =IF('Sjekkliste for utfylling'!F249<>"",1,0) -> 0 | C118: 0 | E118: =IF($C118=1,'Sjekkliste for utfylling'!A249,"") ->  | F118: =IF($C118=1,'Sjekkliste for utfylling'!B249,"") ->  | H118: =IF(C118=1,'Sjekkliste for utfylling'!H249," ") -> 
A119: ='Sjekkliste for utfylling'!A251 -> 128 | B119: =IF('Sjekkliste for utfylling'!F251<>"",1,0) -> 0 | C119: 0 | E119: =IF($C119=1,'Sjekkliste for utfylling'!A251,"") ->  | F119: =IF($C119=1,'Sjekkliste for utfylling'!B251,"") ->  | H119: =IF(C119=1,'Sjekkliste for utfylling'!H251," ") -> 
A120: ='Sjekkliste for utfylling'!A253 -> 129 | B120: =IF('Sjekkliste for utfylling'!F253<>"",1,0) -> 0 | C120: 0 | E120: =IF($C120=1,'Sjekkliste for utfylling'!A253,"") ->  | F120: =IF($C120=1,'Sjekkliste for utfylling'!B253,"") ->  | H120: =IF(C120=1,'Sjekkliste for utfylling'!H253," ") -> 
A121: ='Sjekkliste for utfylling'!A257 -> 130 | B121: =IF('Sjekkliste for utfylling'!F257<>"",1,0) -> 0 | C121: 0 | E121: =IF($C121=1,'Sjekkliste for utfylling'!A257,"") ->  | F121: =IF($C121=1,'Sjekkliste for utfylling'!B257,"") ->  | H121: =IF(C121=1,'Sjekkliste for utfylling'!H257," ") -> 
A122: ='Sjekkliste for utfylling'!A258 -> 131 | B122: =IF('Sjekkliste for utfylling'!F258<>"",1,0) -> 0 | C122: 0 | E122: =IF($C122=1,'Sjekkliste for utfylling'!A258,"") ->  | F122: =IF($C122=1,'Sjekkliste for utfylling'!B258,"") ->  | H122: =IF(C122=1,'Sjekkliste for utfylling'!H258," ") -> 
A123: ='Sjekkliste for utfylling'!A259 -> 132 | B123: =IF('Sjekkliste for utfylling'!F259<>"",1,0) -> 0 | C123: 0 | E123: =IF($C123=1,'Sjekkliste for utfylling'!A259,"") ->  | F123: =IF($C123=1,'Sjekkliste for utfylling'!B259,"") ->  | H123: =IF(C123=1,'Sjekkliste for utfylling'!H259," ") -> 
A124: ='Sjekkliste for utfylling'!A260 -> 133 | B124: =IF('Sjekkliste for utfylling'!F260<>"",1,0) -> 0 | C124: 0 | E124: =IF($C124=1,'Sjekkliste for utfylling'!A260,"") ->  | F124: =IF($C124=1,'Sjekkliste for utfylling'!B260,"") ->  | H124: =IF(C124=1,'Sjekkliste for utfylling'!H260," ") -> 
A125: ='Sjekkliste for utfylling'!A261 -> 134 | B125: =IF('Sjekkliste for utfylling'!F261<>"",1,0) -> 0 | C125: 0 | E125: =IF($C125=1,'Sjekkliste for utfylling'!A261,"") ->  | F125: =IF($C125=1,'Sjekkliste for utfylling'!B261,"") ->  | H125: =IF(C125=1,'Sjekkliste for utfylling'!H261," ") -> 
A126: ='Sjekkliste for utfylling'!A265 -> 135 | B126: =IF('Sjekkliste for utfylling'!F265<>"",1,0) -> 0 | C126: 0 | E126: =IF($C126=1,'Sjekkliste for utfylling'!A265,"") ->  | F126: =IF($C126=1,'Sjekkliste for utfylling'!B265,"") ->  | H126: =IF(C126=1,'Sjekkliste for utfylling'!H265," ") -> 
A127: ='Sjekkliste for utfylling'!A268 -> 136 | B127: =IF('Sjekkliste for utfylling'!F268<>"",1,0) -> 0 | C127: 0 | E127: =IF($C127=1,'Sjekkliste for utfylling'!A268,"") ->  | F127: =IF($C127=1,'Sjekkliste for utfylling'!B268,"") ->  | H127: =IF(C127=1,'Sjekkliste for utfylling'!H268," ") -> 
A128: ='Sjekkliste for utfylling'!A269 -> 137 | B128: =IF('Sjekkliste for utfylling'!F269<>"",1,0) -> 0 | C128: 0 | E128: =IF($C128=1,'Sjekkliste for utfylling'!A269,"") ->  | F128: =IF($C128=1,'Sjekkliste for utfylling'!B269,"") ->  | H128: =IF(C128=1,'Sjekkliste for utfylling'!H269," ") -> 
A129: ='Sjekkliste for utfylling'!A270 -> 138 | B129: =IF('Sjekkliste for utfylling'!F270<>"",1,0) -> 0 | C129: 0 | E129: =IF($C129=1,'Sjekkliste for utfylling'!A270,"") ->  | F129: =IF($C129=1,'Sjekkliste for utfylling'!B270,"") ->  | H129: =IF(C129=1,'Sjekkliste for utfylling'!H270," ") -> 
A130: ='Sjekkliste for utfylling'!A271 -> 139 | B130: =IF('Sjekkliste for utfylling'!F271<>"",1,0) -> 0 | C130: =SUM(B130:B130) -> 0 | E130: =IF($C130=1,'Sjekkliste for utfylling'!A271,"") ->  | F130: =IF($C130=1,'Sjekkliste for utfylling'!B271,"") ->  | H130: =IF(C130=1,'Sjekkliste for utfylling'!H271," ") -> 
A131: ='Sjekkliste for utfylling'!#REF! ->  | B131: =IF('Sjekkliste for utfylling'!#REF!<>"",1,0) ->  | E131: =IF($C131=1,'Sjekkliste for utfylling'!#REF!,"") ->  | F131: =IF($C131=1,'Sjekkliste for utfylling'!#REF!,"") ->  | H131: =IF(C131=1,'Sjekkliste for utfylling'!#REF!," ") -> 

Sheet IA-svar (hidden)
C1: =COUNTIF(C2:C11,"=1")-D1 -> 0 | D1: =SUM(D2:D131) -> 0 | E1: IA-svar | F1: ='Sjekkliste for utfylling'!B2 -> 0 | G1: ='Sjekkliste for utfylling'!B3 -> 2023 | H1: ='Sjekkliste for utfylling'!C3 -> 0
A2: ='Sjekkliste for utfylling'!A274 -> 140 | B2: =IF('Sjekkliste for utfylling'!G274<>"",1,0) -> 0 | C2: =SUM(B2:B2) -> 0 | E2: =IF($C2=1,'Sjekkliste for utfylling'!A274,"") ->  | F2: =IF($C2=1,'Sjekkliste for utfylling'!B274,"") ->  | H2: =IF(C2=1,'Sjekkliste for utfylling'!H274," ") -> 
A3: ='Sjekkliste for utfylling'!A227 -> 0 | B3: =IF('Sjekkliste for utfylling'!G227<>"",1,0) -> 0 | C3: 0 | E3: =IF($C3=1,'Sjekkliste for utfylling'!A227,"") ->  | F3: =IF($C3=1,'Sjekkliste for utfylling'!B227,"") ->  | H3: =IF(C3=1,'Sjekkliste for utfylling'!H227," ") -> 
A4: ='Sjekkliste for utfylling'!A13 -> 1 | B4: =IF('Sjekkliste for utfylling'!G13<>"",1,0) -> 0 | C4: 0 | E4: =IF($C4=1,'Sjekkliste for utfylling'!A13,"") ->  | F4: =IF($C4=1,'Sjekkliste for utfylling'!B13,"") ->  | H4: =IF(C4=1,'Sjekkliste for utfylling'!H13," ") -> 
A5: ='Sjekkliste for utfylling'!A14 -> 2 | B5: =IF('Sjekkliste for utfylling'!G14<>"",1,0) -> 0 | C5: 0 | E5: =IF($C5=1,'Sjekkliste for utfylling'!A14,"") ->  | F5: =IF($C5=1,'Sjekkliste for utfylling'!B14,"") ->  | H5: =IF(C5=1,'Sjekkliste for utfylling'!H14," ") -> 
A6: ='Sjekkliste for utfylling'!A15 -> 3 | B6: =IF('Sjekkliste for utfylling'!G15<>"",1,0) -> 0 | C6: 0 | E6: =IF($C6=1,'Sjekkliste for utfylling'!A15,"") ->  | F6: =IF($C6=1,'Sjekkliste for utfylling'!B15,"") ->  | H6: =IF(C6=1,'Sjekkliste for utfylling'!H15," ") -> 
A7: ='Sjekkliste for utfylling'!A17 -> 4 | B7: =IF('Sjekkliste for utfylling'!G17<>"",1,0) -> 0 | C7: 0 | E7: =IF($C7=1,'Sjekkliste for utfylling'!A17,"") ->  | F7: =IF($C7=1,'Sjekkliste for utfylling'!B17,"") ->  | H7: =IF(C7=1,'Sjekkliste for utfylling'!H17," ") -> 
A8: ='Sjekkliste for utfylling'!A20 -> 5 | B8: =IF('Sjekkliste for utfylling'!G20<>"",1,0) -> 0 | C8: 0 | E8: =IF($C8=1,'Sjekkliste for utfylling'!A20,"") ->  | F8: =IF($C8=1,'Sjekkliste for utfylling'!B20,"") ->  | H8: =IF(C8=1,'Sjekkliste for utfylling'!H20," ") -> 
A9: ='Sjekkliste for utfylling'!A21 -> 6 | B9: =IF('Sjekkliste for utfylling'!G21<>"",1,0) -> 0 | C9: 0 | E9: =IF($C9=1,'Sjekkliste for utfylling'!A21,"") ->  | F9: =IF($C9=1,'Sjekkliste for utfylling'!B21,"") ->  | H9: =IF(C9=1,'Sjekkliste for utfylling'!H21," ") -> 
A10: ='Sjekkliste for utfylling'!A22 -> 7 | B10: =IF('Sjekkliste for utfylling'!G22<>"",1,0) -> 0 | C10: 0 | E10: =IF($C10=1,'Sjekkliste for utfylling'!A22,"") ->  | F10: =IF($C10=1,'Sjekkliste for utfylling'!B22,"") ->  | H10: =IF(C10=1,'Sjekkliste for utfylling'!H22," ") -> 
A11: ='Sjekkliste for utfylling'!A23 -> 8 | B11: =IF('Sjekkliste for utfylling'!G23<>"",1,0) -> 0 | C11: 0 | E11: =IF($C11=1,'Sjekkliste for utfylling'!A23,"") ->  | F11: =IF($C11=1,'Sjekkliste for utfylling'!B23,"") ->  | H11: =IF(C11=1,'Sjekkliste for utfylling'!H23," ") -> 
A12: ='Sjekkliste for utfylling'!A24 -> 9 | B12: =IF('Sjekkliste for utfylling'!G24<>"",1,0) -> 0 | C12: 0 | E12: =IF($C12=1,'Sjekkliste for utfylling'!A24,"") ->  | F12: =IF($C12=1,'Sjekkliste for utfylling'!B24,"") ->  | H12: =IF(C12=1,'Sjekkliste for utfylling'!H24," ") -> 
A13: ='Sjekkliste for utfylling'!A25 -> 10 | B13: =IF('Sjekkliste for utfylling'!G25<>"",1,0) -> 0 | C13: 0 | E13: =IF($C13=1,'Sjekkliste for utfylling'!A25,"") ->  | F13: =IF($C13=1,'Sjekkliste for utfylling'!B25,"") ->  | H13: =IF(C13=1,'Sjekkliste for utfylling'!H25," ") -> 
A14: ='Sjekkliste for utfylling'!A26 -> 11 | B14: =IF('Sjekkliste for utfylling'!G26<>"",1,0) -> 0 | C14: 0 | E14: =IF($C14=1,'Sjekkliste for utfylling'!A26,"") ->  | F14: =IF($C14=1,'Sjekkliste for utfylling'!B26,"") ->  | H14: =IF(C14=1,'Sjekkliste for utfylling'!H26," ") -> 
A15: ='Sjekkliste for utfylling'!A30 -> 12 | B15: =IF('Sjekkliste for utfylling'!G30<>"",1,0) -> 0 | C15: 0 | E15: =IF($C15=1,'Sjekkliste for utfylling'!A30,"") ->  | F15: =IF($C15=1,'Sjekkliste for utfylling'!B30,"") ->  | H15: =IF(C15=1,'Sjekkliste for utfylling'!H30," ") -> 
A16: ='Sjekkliste for utfylling'!A31 -> 13 | B16: =IF('Sjekkliste for utfylling'!G31<>"",1,0) -> 0 | C16: 0 | E16: =IF($C16=1,'Sjekkliste for utfylling'!A31,"") ->  | F16: =IF($C16=1,'Sjekkliste for utfylling'!B31,"") ->  | H16: =IF(C16=1,'Sjekkliste for utfylling'!H31," ") -> 
A17: ='Sjekkliste for utfylling'!A32 -> 14 | B17: =IF('Sjekkliste for utfylling'!G32<>"",1,0) -> 0 | C17: 0 | E17: =IF($C17=1,'Sjekkliste for utfylling'!A32,"") ->  | F17: =IF($C17=1,'Sjekkliste for utfylling'!B32,"") ->  | H17: =IF(C17=1,'Sjekkliste for utfylling'!H32," ") -> 
A18: ='Sjekkliste for utfylling'!A33 -> 15 | B18: =IF('Sjekkliste for utfylling'!G33<>"",1,0) -> 0 | C18: 0 | E18: =IF($C18=1,'Sjekkliste for utfylling'!A33,"") ->  | F18: =IF($C18=1,'Sjekkliste for utfylling'!B33,"") ->  | H18: =IF(C18=1,'Sjekkliste for utfylling'!H33," ") -> 
A19: ='Sjekkliste for utfylling'!A38 -> 16 | B19: =IF('Sjekkliste for utfylling'!G38<>"",1,0) -> 0 | C19: 0 | E19: =IF($C19=1,'Sjekkliste for utfylling'!A38,"") ->  | F19: =IF($C19=1,'Sjekkliste for utfylling'!B38,"") ->  | H19: =IF(C19=1,'Sjekkliste for utfylling'!H38," ") -> 
A20: ='Sjekkliste for utfylling'!A39 -> 17 | B20: =IF('Sjekkliste for utfylling'!G39<>"",1,0) -> 0 | C20: 0 | E20: =IF($C20=1,'Sjekkliste for utfylling'!A39,"") ->  | F20: =IF($C20=1,'Sjekkliste for utfylling'!B39,"") ->  | H20: =IF(C20=1,'Sjekkliste for utfylling'!H39," ") -> 
A21: ='Sjekkliste for utfylling'!A40 -> 18 | B21: =IF('Sjekkliste for utfylling'!G40<>"",1,0) -> 0 | C21: 0 | E21: =IF($C21=1,'Sjekkliste for utfylling'!A40,"") ->  | F21: =IF($C21=1,'Sjekkliste for utfylling'!B40,"") ->  | H21: =IF(C21=1,'Sjekkliste for utfylling'!H40," ") -> 
A22: ='Sjekkliste for utfylling'!A41 -> 19 | B22: =IF('Sjekkliste for utfylling'!G41<>"",1,0) -> 0 | C22: 0 | E22: =IF($C22=1,'Sjekkliste for utfylling'!A41,"") ->  | F22: =IF($C22=1,'Sjekkliste for utfylling'!B41,"") ->  | H22: =IF(C22=1,'Sjekkliste for utfylling'!H41," ") -> 
A23: ='Sjekkliste for utfylling'!A42 -> 20 | B23: =IF('Sjekkliste for utfylling'!G42<>"",1,0) -> 0 | C23: 0 | E23: =IF($C23=1,'Sjekkliste for utfylling'!A42,"") ->  | F23: =IF($C23=1,'Sjekkliste for utfylling'!B42,"") ->  | H23: =IF(C23=1,'Sjekkliste for utfylling'!H42," ") -> 
A24: ='Sjekkliste for utfylling'!A43 -> 21 | B24: =IF('Sjekkliste for utfylling'!G43<>"",1,0) -> 0 | C24: 0 | E24: =IF($C24=1,'Sjekkliste for utfylling'!A43,"") ->  | F24: =IF($C24=1,'Sjekkliste for utfylling'!B43,"") ->  | H24: =IF(C24=1,'Sjekkliste for utfylling'!H43," ") -> 
A25: ='Sjekkliste for utfylling'!A44 -> 22 | B25: =IF('Sjekkliste for utfylling'!G44<>"",1,0) -> 0 | C25: 0 | E25: =IF($C25=1,'Sjekkliste for utfylling'!A44,"") ->  | F25: =IF($C25=1,'Sjekkliste for utfylling'!B44,"") ->  | H25: =IF(C25=1,'Sjekkliste for utfylling'!H44," ") -> 
A26: ='Sjekkliste for utfylling'!A45 -> 23 | B26: =IF('Sjekkliste for utfylling'!G45<>"",1,0) -> 0 | C26: 0 | E26: =IF($C26=1,'Sjekkliste for utfylling'!A45,"") ->  | F26: =IF($C26=1,'Sjekkliste for utfylling'!B45,"") ->  | H26: =IF(C26=1,'Sjekkliste for utfylling'!H45," ") -> 
A27: ='Sjekkliste for utfylling'!A46 -> 24 | B27: =IF('Sjekkliste for utfylling'!G46<>"",1,0) -> 0 | C27: 0 | E27: =IF($C27=1,'Sjekkliste for utfylling'!A46,"") ->  | F27: =IF($C27=1,'Sjekkliste for utfylling'!B46,"") ->  | H27: =IF(C27=1,'Sjekkliste for utfylling'!H46," ") -> 
A28: ='Sjekkliste for utfylling'!A47 -> 25 | B28: =IF('Sjekkliste for utfylling'!G47<>"",1,0) -> 0 | C28: 0 | E28: =IF($C28=1,'Sjekkliste for utfylling'!A47,"") ->  | F28: =IF($C28=1,'Sjekkliste for utfylling'!B47,"") ->  | H28: =IF(C28=1,'Sjekkliste for utfylling'!H47," ") -> 
A29: ='Sjekkliste for utfylling'!A48 -> 26 | B29: =IF('Sjekkliste for utfylling'!G48<>"",1,0) -> 0 | C29: 0 | E29: =IF($C29=1,'Sjekkliste for utfylling'!A48,"") ->  | F29: =IF($C29=1,'Sjekkliste for utfylling'!B48,"") ->  | H29: =IF(C29=1,'Sjekkliste for utfylling'!H48," ") -> 
A30: ='Sjekkliste for utfylling'!A49 -> 27 | B30: =IF('Sjekkliste for utfylling'!G49<>"",1,0) -> 0 | C30: 0 | E30: =IF($C30=1,'Sjekkliste for utfylling'!A49,"") ->  | F30: =IF($C30=1,'Sjekkliste for utfylling'!B49,"") ->  | H30: =IF(C30=1,'Sjekkliste for utfylling'!H49," ") -> 
A31: ='Sjekkliste for utfylling'!A51 -> 28 | B31: =IF('Sjekkliste for utfylling'!G51<>"",1,0) -> 0 | C31: 0 | E31: =IF($C31=1,'Sjekkliste for utfylling'!A51,"") ->  | F31: =IF($C31=1,'Sjekkliste for utfylling'!B51,"") ->  | H31: =IF(C31=1,'Sjekkliste for utfylling'!H51," ") -> 
A32: ='Sjekkliste for utfylling'!A52 -> 29 | B32: =IF('Sjekkliste for utfylling'!G52<>"",1,0) -> 0 | C32: 0 | E32: =IF($C32=1,'Sjekkliste for utfylling'!A52,"") ->  | F32: =IF($C32=1,'Sjekkliste for utfylling'!B52,"") ->  | H32: =IF(C32=1,'Sjekkliste for utfylling'!H52," ") -> 
A33: ='Sjekkliste for utfylling'!A54 -> 30 | B33: =IF('Sjekkliste for utfylling'!G54<>"",1,0) -> 0 | C33: 0 | E33: =IF($C33=1,'Sjekkliste for utfylling'!A54,"") ->  | F33: =IF($C33=1,'Sjekkliste for utfylling'!B54,"") ->  | H33: =IF(C33=1,'Sjekkliste for utfylling'!H54," ") -> 
A34: ='Sjekkliste for utfylling'!A58 -> 31 | B34: =IF('Sjekkliste for utfylling'!G58<>"",1,0) -> 0 | C34: =SUM(B34:B34) -> 0 | E34: =IF($C34=1,'Sjekkliste for utfylling'!A58,"") ->  | F34: =IF($C34=1,'Sjekkliste for utfylling'!B58,"") ->  | H34: =IF(C34=1,'Sjekkliste for utfylling'!H58," ") -> 
A35: ='Sjekkliste for utfylling'!A62 -> 32 | B35: =IF('Sjekkliste for utfylling'!G62<>"",1,0) -> 0 | C35: 0 | E35: =IF($C35=1,'Sjekkliste for utfylling'!A62,"") ->  | F35: =IF($C35=1,'Sjekkliste for utfylling'!B62,"") ->  | H35: =IF(C35=1,'Sjekkliste for utfylling'!H62," ") -> 
A36: ='Sjekkliste for utfylling'!A63 -> 33 | B36: =IF('Sjekkliste for utfylling'!G63<>"",1,0) -> 0 | C36: 0 | E36: =IF($C36=1,'Sjekkliste for utfylling'!A63,"") ->  | F36: =IF($C36=1,'Sjekkliste for utfylling'!B63,"") ->  | H36: =IF(C36=1,'Sjekkliste for utfylling'!H63," ") -> 
A37: ='Sjekkliste for utfylling'!A64 -> 34 | B37: =IF('Sjekkliste for utfylling'!G64<>"",1,0) -> 0 | C37: 0 | E37: =IF($C37=1,'Sjekkliste for utfylling'!A64,"") ->  | F37: =IF($C37=1,'Sjekkliste for utfylling'!B64,"") ->  | H37: =IF(C37=1,'Sjekkliste for utfylling'!H64," ") -> 
A38: ='Sjekkliste for utfylling'!A65 -> 35 | B38: =IF('Sjekkliste for utfylling'!G65<>"",1,0) -> 0 | C38: 0 | E38: =IF($C38=1,'Sjekkliste for utfylling'!A65,"") ->  | F38: =IF($C38=1,'Sjekkliste for utfylling'!B65,"") ->  | H38: =IF(C38=1,'Sjekkliste for utfylling'!H65," ") -> 
A39: ='Sjekkliste for utfylling'!A66 -> 36 | B39: =IF('Sjekkliste for utfylling'!G66<>"",1,0) -> 0 | C39: 0 | E39: =IF($C39=1,'Sjekkliste for utfylling'!A66,"") ->  | F39: =IF($C39=1,'Sjekkliste for utfylling'!B66,"") ->  | H39: =IF(C39=1,'Sjekkliste for utfylling'!H66," ") -> 
A40: ='Sjekkliste for utfylling'!A73 -> 37 | B40: =IF('Sjekkliste for utfylling'!G73<>"",1,0) -> 0 | C40: 0 | E40: =IF($C40=1,'Sjekkliste for utfylling'!A73,"") ->  | F40: =IF($C40=1,'Sjekkliste for utfylling'!B73,"") ->  | H40: =IF(C40=1,'Sjekkliste for utfylling'!H73," ") -> 
A41: ='Sjekkliste for utfylling'!A74 -> 38 | B41: =IF('Sjekkliste for utfylling'!G74<>"",1,0) -> 0 | C41: 0 | E41: =IF($C41=1,'Sjekkliste for utfylling'!A74,"") ->  | F41: =IF($C41=1,'Sjekkliste for utfylling'!B74,"") ->  | H41: =IF(C41=1,'Sjekkliste for utfylling'!H74," ") -> 
A42: ='Sjekkliste for utfylling'!A75 -> 39 | B42: =IF('Sjekkliste for utfylling'!G75<>"",1,0) -> 0 | C42: 0 | E42: =IF($C42=1,'Sjekkliste for utfylling'!A75,"") ->  | F42: =IF($C42=1,'Sjekkliste for utfylling'!B75,"") ->  | H42: =IF(C42=1,'Sjekkliste for utfylling'!H75," ") -> 
A43: ='Sjekkliste for utfylling'!A76 -> 40 | B43: =IF('Sjekkliste for utfylling'!G76<>"",1,0) -> 0 | C43: 0 | E43: =IF($C43=1,'Sjekkliste for utfylling'!A76,"") ->  | F43: =IF($C43=1,'Sjekkliste for utfylling'!B76,"") ->  | H43: =IF(C43=1,'Sjekkliste for utfylling'!H76," ") -> 
A44: ='Sjekkliste for utfylling'!A77 -> 41 | B44: =IF('Sjekkliste for utfylling'!G77<>"",1,0) -> 0 | C44: 0 | E44: =IF($C44=1,'Sjekkliste for utfylling'!A77,"") ->  | F44: =IF($C44=1,'Sjekkliste for utfylling'!B77,"") ->  | H44: =IF(C44=1,'Sjekkliste for utfylling'!H77," ") -> 
A45: ='Sjekkliste for utfylling'!A79 -> 42 | B45: =IF('Sjekkliste for utfylling'!G79<>"",1,0) -> 0 | C45: 0 | E45: =IF($C45=1,'Sjekkliste for utfylling'!A79,"") ->  | F45: =IF($C45=1,'Sjekkliste for utfylling'!B79,"") ->  | H45: =IF(C45=1,'Sjekkliste for utfylling'!H79," ") -> 
A46: ='Sjekkliste for utfylling'!A82 -> 43 | B46: =IF('Sjekkliste for utfylling'!G82<>"",1,0) -> 0 | C46: 0 | E46: =IF($C46=1,'Sjekkliste for utfylling'!A82,"") ->  | F46: =IF($C46=1,'Sjekkliste for utfylling'!B82,"") ->  | H46: =IF(C46=1,'Sjekkliste for utfylling'!H82," ") -> 
A47: ='Sjekkliste for utfylling'!A83 -> 44 | B47: =IF('Sjekkliste for utfylling'!G83<>"",1,0) -> 0 | C47: 0 | E47: =IF($C47=1,'Sjekkliste for utfylling'!A83,"") ->  | F47: =IF($C47=1,'Sjekkliste for utfylling'!B83,"") ->  | H47: =IF(C47=1,'Sjekkliste for utfylling'!H83," ") -> 
A48: ='Sjekkliste for utfylling'!A85 -> 45 | B48: =IF('Sjekkliste for utfylling'!G85<>"",1,0) -> 0 | C48: 0 | E48: =IF($C48=1,'Sjekkliste for utfylling'!A85,"") ->  | F48: =IF($C48=1,'Sjekkliste for utfylling'!B85,"") ->  | H48: =IF(C48=1,'Sjekkliste for utfylling'!H85," ") -> 
A49: ='Sjekkliste for utfylling'!A86 -> 46 | B49: =IF('Sjekkliste for utfylling'!G86<>"",1,0) -> 0 | C49: 0 | E49: =IF($C49=1,'Sjekkliste for utfylling'!A86,"") ->  | F49: =IF($C49=1,'Sjekkliste for utfylling'!B86,"") ->  | H49: =IF(C49=1,'Sjekkliste for utfylling'!H86," ") -> 
A50: ='Sjekkliste for utfylling'!A91 -> 47 | B50: =IF('Sjekkliste for utfylling'!G91<>"",1,0) -> 0 | C50: 0 | E50: =IF($C50=1,'Sjekkliste for utfylling'!A91,"") ->  | F50: =IF($C50=1,'Sjekkliste for utfylling'!B91,"") ->  | H50: =IF(C50=1,'Sjekkliste for utfylling'!H91," ") -> 
A51: ='Sjekkliste for utfylling'!A93 -> 48 | B51: =IF('Sjekkliste for utfylling'!G93<>"",1,0) -> 0 | C51: 0 | E51: =IF($C51=1,'Sjekkliste for utfylling'!A93,"") ->  | F51: =IF($C51=1,'Sjekkliste for utfylling'!B93,"") ->  | H51: =IF(C51=1,'Sjekkliste for utfylling'!H93," ") -> 
A52: ='Sjekkliste for utfylling'!A95 -> 49 | B52: =IF('Sjekkliste for utfylling'!G95<>"",1,0) -> 0 | C52: 0 | E52: =IF($C52=1,'Sjekkliste for utfylling'!A95,"") ->  | F52: =IF($C52=1,'Sjekkliste for utfylling'!B95,"") ->  | H52: =IF(C52=1,'Sjekkliste for utfylling'!H95," ") -> 
A53: ='Sjekkliste for utfylling'!A96 -> 50 | B53: =IF('Sjekkliste for utfylling'!G96<>"",1,0) -> 0 | C53: 0 | E53: =IF($C53=1,'Sjekkliste for utfylling'!A96,"") ->  | F53: =IF($C53=1,'Sjekkliste for utfylling'!B96,"") ->  | H53: =IF(C53=1,'Sjekkliste for utfylling'!H96," ") -> 
A54: ='Sjekkliste for utfylling'!A97 -> 51 | B54: =IF('Sjekkliste for utfylling'!G97<>"",1,0) -> 0 | C54: 0 | E54: =IF($C54=1,'Sjekkliste for utfylling'!A97,"") ->  | F54: =IF($C54=1,'Sjekkliste for utfylling'!B97,"") ->  | H54: =IF(C54=1,'Sjekkliste for utfylling'!H97," ") -> 
A55: ='Sjekkliste for utfylling'!A99 -> 52 | B55: =IF('Sjekkliste for utfylling'!G99<>"",1,0) -> 0 | C55: 0 | E55: =IF($C55=1,'Sjekkliste for utfylling'!A99,"") ->  | F55: =IF($C55=1,'Sjekkliste for utfylling'!B99,"") ->  | H55: =IF(C55=1,'Sjekkliste for utfylling'!H99," ") -> 
A56: ='Sjekkliste for utfylling'!A103 -> 53 | B56: =IF('Sjekkliste for utfylling'!G103<>"",1,0) -> 0 | C56: 0 | E56: =IF($C56=1,'Sjekkliste for utfylling'!A103,"") ->  | F56: =IF($C56=1,'Sjekkliste for utfylling'!B103,"") ->  | H56: =IF(C56=1,'Sjekkliste for utfylling'!H103," ") -> 
A57: ='Sjekkliste for utfylling'!A110 -> 54 | B57: =IF('Sjekkliste for utfylling'!G110<>"",1,0) -> 0 | C57: 0 | E57: =IF($C57=1,'Sjekkliste for utfylling'!A110,"") ->  | F57: =IF($C57=1,'Sjekkliste for utfylling'!B110,"") ->  | H57: =IF(C57=1,'Sjekkliste for utfylling'!H110," ") -> 
A58: ='Sjekkliste for utfylling'!A114 -> 55 | B58: =IF('Sjekkliste for utfylling'!G114<>"",1,0) -> 0 | C58: 0 | E58: =IF($C58=1,'Sjekkliste for utfylling'!A114,"") ->  | F58: =IF($C58=1,'Sjekkliste for utfylling'!B114,"") ->  | H58: =IF(C58=1,'Sjekkliste for utfylling'!H114," ") -> 
A59: ='Sjekkliste for utfylling'!A115 -> 56 | B59: =IF('Sjekkliste for utfylling'!G115<>"",1,0) -> 0 | C59: 0 | E59: =IF($C59=1,'Sjekkliste for utfylling'!A115,"") ->  | F59: =IF($C59=1,'Sjekkliste for utfylling'!B115,"") ->  | H59: =IF(C59=1,'Sjekkliste for utfylling'!H115," ") -> 
A60: ='Sjekkliste for utfylling'!A116 -> 57 | B60: =IF('Sjekkliste for utfylling'!G116<>"",1,0) -> 0 | C60: 0 | E60: =IF($C60=1,'Sjekkliste for utfylling'!A116,"") ->  | F60: =IF($C60=1,'Sjekkliste for utfylling'!B116,"") ->  | H60: =IF(C60=1,'Sjekkliste for utfylling'!H116," ") -> 
A61: ='Sjekkliste for utfylling'!A117 -> 58 | B61: =IF('Sjekkliste for utfylling'!G117<>"",1,0) -> 0 | C61: 0 | E61: =IF($C61=1,'Sjekkliste for utfylling'!A117,"") ->  | F61: =IF($C61=1,'Sjekkliste for utfylling'!B117,"") ->  | H61: =IF(C61=1,'Sjekkliste for utfylling'!H117," ") -> 
A62: ='Sjekkliste for utfylling'!A118 -> 59 | B62: =IF('Sjekkliste for utfylling'!G118<>"",1,0) -> 0 | C62: 0 | E62: =IF($C62=1,'Sjekkliste for utfylling'!A118,"") ->  | F62: =IF($C62=1,'Sjekkliste for utfylling'!B118,"") ->  | H62: =IF(C62=1,'Sjekkliste for utfylling'!H118," ") -> 
A63: ='Sjekkliste for utfylling'!A119 -> 60 | B63: =IF('Sjekkliste for utfylling'!G119<>"",1,0) -> 0 | C63: 0 | E63: =IF($C63=1,'Sjekkliste for utfylling'!A119,"") ->  | F63: =IF($C63=1,'Sjekkliste for utfylling'!B119,"") ->  | H63: =IF(C63=1,'Sjekkliste for utfylling'!H119," ") -> 
A64: ='Sjekkliste for utfylling'!A120 -> 61 | B64: =IF('Sjekkliste for utfylling'!G120<>"",1,0) -> 0 | C64: 0 | E64: =IF($C64=1,'Sjekkliste for utfylling'!A120,"") ->  | F64: =IF($C64=1,'Sjekkliste for utfylling'!B120,"") ->  | H64: =IF(C64=1,'Sjekkliste for utfylling'!H120," ") -> 
A65: ='Sjekkliste for utfylling'!A126 -> 62 | B65: =IF('Sjekkliste for utfylling'!G126<>"",1,0) -> 0 | C65: 0 | E65: =IF($C65=1,'Sjekkliste for utfylling'!A126,"") ->  | F65: =IF($C65=1,'Sjekkliste for utfylling'!B126,"") ->  | H65: =IF(C65=1,'Sjekkliste for utfylling'!H126," ") -> 
A66: ='Sjekkliste for utfylling'!A128 -> 63 | B66: =IF('Sjekkliste for utfylling'!G128<>"",1,0) -> 0 | C66: =SUM(B66:B66) -> 0 | E66: =IF($C66=1,'Sjekkliste for utfylling'!A128,"") ->  | F66: =IF($C66=1,'Sjekkliste for utfylling'!B128,"") ->  | H66: =IF(C66=1,'Sjekkliste for utfylling'!H128," ") -> 
A67: ='Sjekkliste for utfylling'!A129 -> 64 | B67: =IF('Sjekkliste for utfylling'!G129<>"",1,0) -> 0 | C67: 0 | E67: =IF($C67=1,'Sjekkliste for utfylling'!A129,"") ->  | F67: =IF($C67=1,'Sjekkliste for utfylling'!B129,"") ->  | H67: =IF(C67=1,'Sjekkliste for utfylling'!H129," ") -> 
A68: ='Sjekkliste for utfylling'!A130 -> 65 | B68: =IF('Sjekkliste for utfylling'!G130<>"",1,0) -> 0 | C68: 0 | E68: =IF($C68=1,'Sjekkliste for utfylling'!A130,"") ->  | F68: =IF($C68=1,'Sjekkliste for utfylling'!B130,"") ->  | H68: =IF(C68=1,'Sjekkliste for utfylling'!H130," ") -> 
A69: ='Sjekkliste for utfylling'!A135 -> 66 | B69: =IF('Sjekkliste for utfylling'!G135<>"",1,0) -> 0 | C69: 0 | E69: =IF($C69=1,'Sjekkliste for utfylling'!A135,"") ->  | F69: =IF($C69=1,'Sjekkliste for utfylling'!B135,"") ->  | H69: =IF(C69=1,'Sjekkliste for utfylling'!H135," ") -> 
A70: ='Sjekkliste for utfylling'!A136 -> 67 | B70: =IF('Sjekkliste for utfylling'!G136<>"",1,0) -> 0 | C70: 0 | E70: =IF($C70=1,'Sjekkliste for utfylling'!A136,"") ->  | F70: =IF($C70=1,'Sjekkliste for utfylling'!B136,"") ->  | H70: =IF(C70=1,'Sjekkliste for utfylling'!H136," ") -> 
A71: ='Sjekkliste for utfylling'!A137 -> 68 | B71: =IF('Sjekkliste for utfylling'!G137<>"",1,0) -> 0 | C71: 0 | E71: =IF($C71=1,'Sjekkliste for utfylling'!A137,"") ->  | F71: =IF($C71=1,'Sjekkliste for utfylling'!B137,"") ->  | H71: =IF(C71=1,'Sjekkliste for utfylling'!H137," ") -> 
A72: ='Sjekkliste for utfylling'!A138 -> 69 | B72: =IF('Sjekkliste for utfylling'!G138<>"",1,0) -> 0 | C72: 0 | E72: =IF($C72=1,'Sjekkliste for utfylling'!A138,"") ->  | F72: =IF($C72=1,'Sjekkliste for utfylling'!B138,"") ->  | H72: =IF(C72=1,'Sjekkliste for utfylling'!H138," ") -> 
A73: ='Sjekkliste for utfylling'!A140 -> 70 | B73: =IF('Sjekkliste for utfylling'!G140<>"",1,0) -> 0 | C73: 0 | E73: =IF($C73=1,'Sjekkliste for utfylling'!A140,"") ->  | F73: =IF($C73=1,'Sjekkliste for utfylling'!B140,"") ->  | H73: =IF(C73=1,'Sjekkliste for utfylling'!H140," ") -> 
A74: ='Sjekkliste for utfylling'!A155 -> 73 | B74: =IF('Sjekkliste for utfylling'!G155<>"",1,0) -> 0 | C74: 0 | E74: =IF($C74=1,'Sjekkliste for utfylling'!A155,"") ->  | F74: =IF($C74=1,'Sjekkliste for utfylling'!B155,"") ->  | H74: =IF(C74=1,'Sjekkliste for utfylling'!H155," ") -> 
A75: ='Sjekkliste for utfylling'!A157 -> 74 | B75: =IF('Sjekkliste for utfylling'!G157<>"",1,0) -> 0 | C75: 0 | E75: =IF($C75=1,'Sjekkliste for utfylling'!A157,"") ->  | F75: =IF($C75=1,'Sjekkliste for utfylling'!B157,"") ->  | H75: =IF(C75=1,'Sjekkliste for utfylling'!H157," ") -> 
A76: ='Sjekkliste for utfylling'!A158 -> 75 | B76: =IF('Sjekkliste for utfylling'!G158<>"",1,0) -> 0 | C76: 0 | E76: =IF($C76=1,'Sjekkliste for utfylling'!A158,"") ->  | F76: =IF($C76=1,'Sjekkliste for utfylling'!B158,"") ->  | H76: =IF(C76=1,'Sjekkliste for utfylling'!H158," ") -> 
A77: ='Sjekkliste for utfylling'!A159 -> 76 | B77: =IF('Sjekkliste for utfylling'!G159<>"",1,0) -> 0 | C77: 0 | E77: =IF($C77=1,'Sjekkliste for utfylling'!A159,"") ->  | F77: =IF($C77=1,'Sjekkliste for utfylling'!B159,"") ->  | H77: =IF(C77=1,'Sjekkliste for utfylling'!H159," ") -> 
A78: ='Sjekkliste for utfylling'!A160 -> 77 | B78: =IF('Sjekkliste for utfylling'!G160<>"",1,0) -> 0 | C78: 0 | E78: =IF($C78=1,'Sjekkliste for utfylling'!A160,"") ->  | F78: =IF($C78=1,'Sjekkliste for utfylling'!B160,"") ->  | H78: =IF(C78=1,'Sjekkliste for utfylling'!H160," ") -> 
A79: ='Sjekkliste for utfylling'!A161 -> 78 | B79: =IF('Sjekkliste for utfylling'!G161<>"",1,0) -> 0 | C79: 0 | E79: =IF($C79=1,'Sjekkliste for utfylling'!A161,"") ->  | F79: =IF($C79=1,'Sjekkliste for utfylling'!B161,"") ->  | H79: =IF(C79=1,'Sjekkliste for utfylling'!H161," ") -> 
A80: ='Sjekkliste for utfylling'!A163 -> 79 | B80: =IF('Sjekkliste for utfylling'!G163<>"",1,0) -> 0 | C80: 0 | E80: =IF($C80=1,'Sjekkliste for utfylling'!A163,"") ->  | F80: =IF($C80=1,'Sjekkliste for utfylling'!B163,"") ->  | H80: =IF(C80=1,'Sjekkliste for utfylling'!H163," ") -> 
A81: ='Sjekkliste for utfylling'!A164 -> 80 | B81: =IF('Sjekkliste for utfylling'!G164<>"",1,0) -> 0 | C81: 0 | E81: =IF($C81=1,'Sjekkliste for utfylling'!A164,"") ->  | F81: =IF($C81=1,'Sjekkliste for utfylling'!B164,"") ->  | H81: =IF(C81=1,'Sjekkliste for utfylling'!H164," ") -> 
A82: ='Sjekkliste for utfylling'!A167 -> 81 | B82: =IF('Sjekkliste for utfylling'!G167<>"",1,0) -> 0 | C82: 0 | E82: =IF($C82=1,'Sjekkliste for utfylling'!A167,"") ->  | F82: =IF($C82=1,'Sjekkliste for utfylling'!B167,"") ->  | H82: =IF(C82=1,'Sjekkliste for utfylling'!H167," ") -> 
A83: ='Sjekkliste for utfylling'!A168 -> 82 | B83: =IF('Sjekkliste for utfylling'!G168<>"",1,0) -> 0 | C83: 0 | E83: =IF($C83=1,'Sjekkliste for utfylling'!A168,"") ->  | F83: =IF($C83=1,'Sjekkliste for utfylling'!B168,"") ->  | H83: =IF(C83=1,'Sjekkliste for utfylling'!H168," ") -> 
A84: ='Sjekkliste for utfylling'!A169 -> 83 | B84: =IF('Sjekkliste for utfylling'!G169<>"",1,0) -> 0 | C84: 0 | E84: =IF($C84=1,'Sjekkliste for utfylling'!A169,"") ->  | F84: =IF($C84=1,'Sjekkliste for utfylling'!B169,"") ->  | H84: =IF(C84=1,'Sjekkliste for utfylling'!H169," ") -> 
A85: ='Sjekkliste for utfylling'!A171 -> 84 | B85: =IF('Sjekkliste for utfylling'!G171<>"",1,0) -> 0 | C85: 0 | E85: =IF($C85=1,'Sjekkliste for utfylling'!A171,"") ->  | F85: =IF($C85=1,'Sjekkliste for utfylling'!B171,"") ->  | H85: =IF(C85=1,'Sjekkliste for utfylling'!H171," ") -> 
A86: ='Sjekkliste for utfylling'!A173 -> 85 | B86: =IF('Sjekkliste for utfylling'!G173<>"",1,0) -> 0 | C86: 0 | E86: =IF($C86=1,'Sjekkliste for utfylling'!A173,"") ->  | F86: =IF($C86=1,'Sjekkliste for utfylling'!B173,"") ->  | H86: =IF(C86=1,'Sjekkliste for utfylling'!H173," ") -> 
A87: ='Sjekkliste for utfylling'!A174 -> 86 | B87: =IF('Sjekkliste for utfylling'!G174<>"",1,0) -> 0 | C87: 0 | E87: =IF($C87=1,'Sjekkliste for utfylling'!A174,"") ->  | F87: =IF($C87=1,'Sjekkliste for utfylling'!B174,"") ->  | H87: =IF(C87=1,'Sjekkliste for utfylling'!H174," ") -> 
A88: ='Sjekkliste for utfylling'!A175 -> 87 | B88: =IF('Sjekkliste for utfylling'!G175<>"",1,0) -> 0 | C88: 0 | E88: =IF($C88=1,'Sjekkliste for utfylling'!A175,"") ->  | F88: =IF($C88=1,'Sjekkliste for utfylling'!B175,"") ->  | H88: =IF(C88=1,'Sjekkliste for utfylling'!H175," ") -> 
A89: ='Sjekkliste for utfylling'!A176 -> 88 | B89: =IF('Sjekkliste for utfylling'!G176<>"",1,0) -> 0 | C89: 0 | E89: =IF($C89=1,'Sjekkliste for utfylling'!A176,"") ->  | F89: =IF($C89=1,'Sjekkliste for utfylling'!B176,"") ->  | H89: =IF(C89=1,'Sjekkliste for utfylling'!H176," ") -> 
A90: ='Sjekkliste for utfylling'!A177 -> 89 | B90: =IF('Sjekkliste for utfylling'!G177<>"",1,0) -> 0 | C90: 0 | E90: =IF($C90=1,'Sjekkliste for utfylling'!A177,"") ->  | F90: =IF($C90=1,'Sjekkliste for utfylling'!B177,"") ->  | H90: =IF(C90=1,'Sjekkliste for utfylling'!H177," ") -> 
A91: ='Sjekkliste for utfylling'!A178 -> 90 | B91: =IF('Sjekkliste for utfylling'!G178<>"",1,0) -> 0 | C91: 0 | E91: =IF($C91=1,'Sjekkliste for utfylling'!A178,"") ->  | F91: =IF($C91=1,'Sjekkliste for utfylling'!B178,"") ->  | H91: =IF(C91=1,'Sjekkliste for utfylling'!H178," ") -> 
A92: ='Sjekkliste for utfylling'!A179 -> 91 | B92: =IF('Sjekkliste for utfylling'!G179<>"",1,0) -> 0 | C92: 0 | E92: =IF($C92=1,'Sjekkliste for utfylling'!A179,"") ->  | F92: =IF($C92=1,'Sjekkliste for utfylling'!B179,"") ->  | H92: =IF(C92=1,'Sjekkliste for utfylling'!H179," ") -> 
A93: ='Sjekkliste for utfylling'!A180 -> 92 | B93: =IF('Sjekkliste for utfylling'!G180<>"",1,0) -> 0 | C93: 0 | E93: =IF($C93=1,'Sjekkliste for utfylling'!A180,"") ->  | F93: =IF($C93=1,'Sjekkliste for utfylling'!B180,"") ->  | H93: =IF(C93=1,'Sjekkliste for utfylling'!H180," ") -> 
A94: ='Sjekkliste for utfylling'!A181 -> 93 | B94: =IF('Sjekkliste for utfylling'!G181<>"",1,0) -> 0 | C94: 0 | E94: =IF($C94=1,'Sjekkliste for utfylling'!A181,"") ->  | F94: =IF($C94=1,'Sjekkliste for utfylling'!B181,"") ->  | H94: =IF(C94=1,'Sjekkliste for utfylling'!H181," ") -> 
A95: ='Sjekkliste for utfylling'!A182 -> 94 | B95: =IF('Sjekkliste for utfylling'!G182<>"",1,0) -> 0 | C95: 0 | E95: =IF($C95=1,'Sjekkliste for utfylling'!A182,"") ->  | F95: =IF($C95=1,'Sjekkliste for utfylling'!B182,"") ->  | H95: =IF(C95=1,'Sjekkliste for utfylling'!H182," ") -> 
A96: ='Sjekkliste for utfylling'!A186 -> 95 | B96: =IF('Sjekkliste for utfylling'!G186<>"",1,0) -> 0 | C96: 0 | E96: =IF($C96=1,'Sjekkliste for utfylling'!A186,"") ->  | F96: =IF($C96=1,'Sjekkliste for utfylling'!B186,"") ->  | H96: =IF(C96=1,'Sjekkliste for utfylling'!H186," ") -> 
A97: ='Sjekkliste for utfylling'!A187 -> 96 | B97: =IF('Sjekkliste for utfylling'!G187<>"",1,0) -> 0 | C97: 0 | E97: =IF($C97=1,'Sjekkliste for utfylling'!A187,"") ->  | F97: =IF($C97=1,'Sjekkliste for utfylling'!B187,"") ->  | H97: =IF(C97=1,'Sjekkliste for utfylling'!H187," ") -> 
A98: ='Sjekkliste for utfylling'!A188 -> 97 | B98: =IF('Sjekkliste for utfylling'!G188<>"",1,0) -> 0 | C98: =SUM(B98:B98) -> 0 | E98: =IF($C98=1,'Sjekkliste for utfylling'!A188,"") ->  | F98: =IF($C98=1,'Sjekkliste for utfylling'!B188,"") ->  | H98: =IF(C98=1,'Sjekkliste for utfylling'!H188," ") -> 
A99: ='Sjekkliste for utfylling'!A189 -> 98 | B99: =IF('Sjekkliste for utfylling'!G189<>"",1,0) -> 0 | C99: 0 | E99: =IF($C99=1,'Sjekkliste for utfylling'!A189,"") ->  | F99: =IF($C99=1,'Sjekkliste for utfylling'!B189,"") ->  | H99: =IF(C99=1,'Sjekkliste for utfylling'!H189," ") -> 
A100: ='Sjekkliste for utfylling'!A197 -> 99 | B100: =IF('Sjekkliste for utfylling'!G197<>"",1,0) -> 0 | C100: 0 | E100: =IF($C100=1,'Sjekkliste for utfylling'!A197,"") ->  | F100: =IF($C100=1,'Sjekkliste for utfylling'!B197,"") ->  | H100: =IF(C100=1,'Sjekkliste for utfylling'!H197," ") -> 
A101: ='Sjekkliste for utfylling'!A198 -> 100 | B101: =IF('Sjekkliste for utfylling'!G198<>"",1,0) -> 0 | C101: 0 | E101: =IF($C101=1,'Sjekkliste for utfylling'!A198,"") ->  | F101: =IF($C101=1,'Sjekkliste for utfylling'!B198,"") ->  | H101: =IF(C101=1,'Sjekkliste for utfylling'!H198," ") -> 
A102: ='Sjekkliste for utfylling'!A199 -> 101 | B102: =IF('Sjekkliste for utfylling'!G199<>"",1,0) -> 0 | C102: 0 | E102: =IF($C102=1,'Sjekkliste for utfylling'!A199,"") ->  | F102: =IF($C102=1,'Sjekkliste for utfylling'!B199,"") ->  | H102: =IF(C102=1,'Sjekkliste for utfylling'!H199," ") -> 
A103: ='Sjekkliste for utfylling'!A204 -> 105 | B103: =IF('Sjekkliste for utfylling'!G204<>"",1,0) -> 0 | C103: 0 | E103: =IF($C103=1,'Sjekkliste for utfylling'!A204,"") ->  | F103: =IF($C103=1,'Sjekkliste for utfylling'!B204,"") ->  | H103: =IF(C103=1,'Sjekkliste for utfylling'!H204," ") -> 
A104: ='Sjekkliste for utfylling'!A205 -> 106 | B104: =IF('Sjekkliste for utfylling'!G205<>"",1,0) -> 0 | C104: 0 | E104: =IF($C104=1,'Sjekkliste for utfylling'!A205,"") ->  | F104: =IF($C104=1,'Sjekkliste for utfylling'!B205,"") ->  | H104: =IF(C104=1,'Sjekkliste for utfylling'!H205," ") -> 
A105: ='Sjekkliste for utfylling'!A206 -> 107 | B105: =IF('Sjekkliste for utfylling'!G206<>"",1,0) -> 0 | C105: 0 | E105: =IF($C105=1,'Sjekkliste for utfylling'!A206,"") ->  | F105: =IF($C105=1,'Sjekkliste for utfylling'!B206,"") ->  | H105: =IF(C105=1,'Sjekkliste for utfylling'!H206," ") -> 
A106: ='Sjekkliste for utfylling'!A207 -> 108 | B106: =IF('Sjekkliste for utfylling'!G207<>"",1,0) -> 0 | C106: 0 | E106: =IF($C106=1,'Sjekkliste for utfylling'!A207,"") ->  | F106: =IF($C106=1,'Sjekkliste for utfylling'!B207,"") ->  | H106: =IF(C106=1,'Sjekkliste for utfylling'!H207," ") -> 
A107: ='Sjekkliste for utfylling'!A208 -> 109 | B107: =IF('Sjekkliste for utfylling'!G208<>"",1,0) -> 0 | C107: 0 | E107: =IF($C107=1,'Sjekkliste for utfylling'!A208,"") ->  | F107: =IF($C107=1,'Sjekkliste for utfylling'!B208,"") ->  | H107: =IF(C107=1,'Sjekkliste for utfylling'!H208," ") -> 
A108: ='Sjekkliste for utfylling'!A216 -> 110 | B108: =IF('Sjekkliste for utfylling'!G216<>"",1,0) -> 0 | C108: 0 | E108: =IF($C108=1,'Sjekkliste for utfylling'!A216,"") ->  | F108: =IF($C108=1,'Sjekkliste for utfylling'!B216,"") ->  | H108: =IF(C108=1,'Sjekkliste for utfylling'!H216," ") -> 
A109: ='Sjekkliste for utfylling'!A219 -> 112 | B109: =IF('Sjekkliste for utfylling'!G219<>"",1,0) -> 0 | C109: 0 | E109: =IF($C109=1,'Sjekkliste for utfylling'!A219,"") ->  | F109: =IF($C109=1,'Sjekkliste for utfylling'!B219,"") ->  | H109: =IF(C109=1,'Sjekkliste for utfylling'!H219," ") -> 
A110: ='Sjekkliste for utfylling'!A221 -> 113 | B110: =IF('Sjekkliste for utfylling'!G221<>"",1,0) -> 0 | C110: 0 | E110: =IF($C110=1,'Sjekkliste for utfylling'!A221,"") ->  | F110: =IF($C110=1,'Sjekkliste for utfylling'!B221,"") ->  | H110: =IF(C110=1,'Sjekkliste for utfylling'!H221," ") -> 
A111: ='Sjekkliste for utfylling'!A223 -> 115 | B111: =IF('Sjekkliste for utfylling'!G223<>"",1,0) -> 0 | C111: 0 | E111: =IF($C111=1,'Sjekkliste for utfylling'!A223,"") ->  | F111: =IF($C111=1,'Sjekkliste for utfylling'!B223,"") ->  | H111: =IF(C111=1,'Sjekkliste for utfylling'!H223," ") -> 
A112: ='Sjekkliste for utfylling'!A225 -> 117 | B112: =IF('Sjekkliste for utfylling'!G225<>"",1,0) -> 0 | C112: 0 | E112: =IF($C112=1,'Sjekkliste for utfylling'!A225,"") ->  | F112: =IF($C112=1,'Sjekkliste for utfylling'!B225,"") ->  | H112: =IF(C112=1,'Sjekkliste for utfylling'!H225," ") -> 
A113: ='Sjekkliste for utfylling'!A228 -> 118 | B113: =IF('Sjekkliste for utfylling'!G228<>"",1,0) -> 0 | C113: 0 | E113: =IF($C113=1,'Sjekkliste for utfylling'!A228,"") ->  | F113: =IF($C113=1,'Sjekkliste for utfylling'!B228,"") ->  | H113: =IF(C113=1,'Sjekkliste for utfylling'!H228," ") -> 
A114: ='Sjekkliste for utfylling'!A240 -> 123 | B114: =IF('Sjekkliste for utfylling'!G240<>"",1,0) -> 0 | C114: 0 | E114: =IF($C114=1,'Sjekkliste for utfylling'!A240,"") ->  | F114: =IF($C114=1,'Sjekkliste for utfylling'!B240,"") ->  | H114: =IF(C114=1,'Sjekkliste for utfylling'!H240," ") -> 
A115: ='Sjekkliste for utfylling'!A244 -> 124 | B115: =IF('Sjekkliste for utfylling'!G244<>"",1,0) -> 0 | C115: 0 | E115: =IF($C115=1,'Sjekkliste for utfylling'!A244,"") ->  | F115: =IF($C115=1,'Sjekkliste for utfylling'!B244,"") ->  | H115: =IF(C115=1,'Sjekkliste for utfylling'!H244," ") -> 
A116: ='Sjekkliste for utfylling'!A245 -> 125 | B116: =IF('Sjekkliste for utfylling'!G245<>"",1,0) -> 0 | C116: 0 | E116: =IF($C116=1,'Sjekkliste for utfylling'!A245,"") ->  | F116: =IF($C116=1,'Sjekkliste for utfylling'!B245,"") ->  | H116: =IF(C116=1,'Sjekkliste for utfylling'!H245," ") -> 
A117: ='Sjekkliste for utfylling'!A246 -> 126 | B117: =IF('Sjekkliste for utfylling'!G246<>"",1,0) -> 0 | C117: 0 | E117: =IF($C117=1,'Sjekkliste for utfylling'!A246,"") ->  | F117: =IF($C117=1,'Sjekkliste for utfylling'!B246,"") ->  | H117: =IF(C117=1,'Sjekkliste for utfylling'!H246," ") -> 
A118: ='Sjekkliste for utfylling'!A249 -> 127 | B118: =IF('Sjekkliste for utfylling'!G249<>"",1,0) -> 0 | C118: 0 | E118: =IF($C118=1,'Sjekkliste for utfylling'!A249,"") ->  | F118: =IF($C118=1,'Sjekkliste for utfylling'!B249,"") ->  | H118: =IF(C118=1,'Sjekkliste for utfylling'!H249," ") -> 
A119: ='Sjekkliste for utfylling'!A251 -> 128 | B119: =IF('Sjekkliste for utfylling'!G251<>"",1,0) -> 0 | C119: 0 | E119: =IF($C119=1,'Sjekkliste for utfylling'!A251,"") ->  | F119: =IF($C119=1,'Sjekkliste for utfylling'!B251,"") ->  | H119: =IF(C119=1,'Sjekkliste for utfylling'!H251," ") -> 
A120: ='Sjekkliste for utfylling'!A253 -> 129 | B120: =IF('Sjekkliste for utfylling'!G253<>"",1,0) -> 0 | C120: 0 | E120: =IF($C120=1,'Sjekkliste for utfylling'!A253,"") ->  | F120: =IF($C120=1,'Sjekkliste for utfylling'!B253,"") ->  | H120: =IF(C120=1,'Sjekkliste for utfylling'!H253," ") -> 
A121: ='Sjekkliste for utfylling'!A257 -> 130 | B121: =IF('Sjekkliste for utfylling'!G257<>"",1,0) -> 0 | C121: 0 | E121: =IF($C121=1,'Sjekkliste for utfylling'!A257,"") ->  | F121: =IF($C121=1,'Sjekkliste for utfylling'!B257,"") ->  | H121: =IF(C121=1,'Sjekkliste for utfylling'!H257," ") -> 
A122: ='Sjekkliste for utfylling'!A258 -> 131 | B122: =IF('Sjekkliste for utfylling'!G258<>"",1,0) -> 0 | C122: 0 | E122: =IF($C122=1,'Sjekkliste for utfylling'!A258,"") ->  | F122: =IF($C122=1,'Sjekkliste for utfylling'!B258,"") ->  | H122: =IF(C122=1,'Sjekkliste for utfylling'!H258," ") -> 
A123: ='Sjekkliste for utfylling'!A259 -> 132 | B123: =IF('Sjekkliste for utfylling'!G259<>"",1,0) -> 0 | C123: 0 | E123: =IF($C123=1,'Sjekkliste for utfylling'!A259,"") ->  | F123: =IF($C123=1,'Sjekkliste for utfylling'!B259,"") ->  | H123: =IF(C123=1,'Sjekkliste for utfylling'!H259," ") -> 
A124: ='Sjekkliste for utfylling'!A260 -> 133 | B124: =IF('Sjekkliste for utfylling'!G260<>"",1,0) -> 0 | C124: 0 | E124: =IF($C124=1,'Sjekkliste for utfylling'!A260,"") ->  | F124: =IF($C124=1,'Sjekkliste for utfylling'!B260,"") ->  | H124: =IF(C124=1,'Sjekkliste for utfylling'!H260," ") -> 
A125: ='Sjekkliste for utfylling'!A261 -> 134 | B125: =IF('Sjekkliste for utfylling'!G261<>"",1,0) -> 0 | C125: 0 | E125: =IF($C125=1,'Sjekkliste for utfylling'!A261,"") ->  | F125: =IF($C125=1,'Sjekkliste for utfylling'!B261,"") ->  | H125: =IF(C125=1,'Sjekkliste for utfylling'!H261," ") -> 
A126: ='Sjekkliste for utfylling'!A265 -> 135 | B126: =IF('Sjekkliste for utfylling'!G265<>"",1,0) -> 0 | C126: 0 | E126: =IF($C126=1,'Sjekkliste for utfylling'!A265,"") ->  | F126: =IF($C126=1,'Sjekkliste for utfylling'!B265,"") ->  | H126: =IF(C126=1,'Sjekkliste for utfylling'!H265," ") -> 
A127: ='Sjekkliste for utfylling'!A268 -> 136 | B127: =IF('Sjekkliste for utfylling'!G268<>"",1,0) -> 0 | C127: 0 | E127: =IF($C127=1,'Sjekkliste for utfylling'!A268,"") ->  | F127: =IF($C127=1,'Sjekkliste for utfylling'!B268,"") ->  | H127: =IF(C127=1,'Sjekkliste for utfylling'!H268," ") -> 
A128: ='Sjekkliste for utfylling'!A269 -> 137 | B128: =IF('Sjekkliste for utfylling'!G269<>"",1,0) -> 0 | C128: 0 | E128: =IF($C128=1,'Sjekkliste for utfylling'!A269,"") ->  | F128: =IF($C128=1,'Sjekkliste for utfylling'!B269,"") ->  | H128: =IF(C128=1,'Sjekkliste for utfylling'!H269," ") -> 
A129: ='Sjekkliste for utfylling'!A270 -> 138 | B129: =IF('Sjekkliste for utfylling'!G270<>"",1,0) -> 0 | C129: 0 | E129: =IF($C129=1,'Sjekkliste for utfylling'!A270,"") ->  | F129: =IF($C129=1,'Sjekkliste for utfylling'!B270,"") ->  | H129: =IF(C129=1,'Sjekkliste for utfylling'!H270," ") -> 
A130: ='Sjekkliste for utfylling'!A271 -> 139 | B130: =IF('Sjekkliste for utfylling'!G271<>"",1,0) -> 0 | C130: =SUM(B130:B130) -> 0 | E130: =IF($C130=1,'Sjekkliste for utfylling'!A271,"") ->  | F130: =IF($C130=1,'Sjekkliste for utfylling'!B271,"") ->  | H130: =IF(C130=1,'Sjekkliste for utfylling'!H271," ") -> 
A131: ='Sjekkliste for utfylling'!#REF! ->  | B131: =IF('Sjekkliste for utfylling'!#REF!<>"",1,0) ->  | E131: =IF($C131=1,'Sjekkliste for utfylling'!#REF!,"") ->  | F131: =IF($C131=1,'Sjekkliste for utfylling'!#REF!,"") ->  | H131: =IF(C131=1,'Sjekkliste for utfylling'!#REF!," ") -> 
